Workbook

Sheet Read Me
A4: Retrospective Soil Health Economic Calculator (R-SHEC) Tool
A5: ROW CROP VERSION
A6: © 2022 American Farmland Trust
A7: Updated: September 28, 2022
A8: The Row Crop version of the R-SHEC Tool is designed to estimate the economic effects, retrospectively, of soil health practices adopted by "soil health successful" row crop farmers. The Tool can be used with row crop farmers that have adopted any combination of No-till or Reduced Tillage, Cover Cropping, and Nutrient Management, OR Conservation Crop Rotation for four or more years and within the last 15 years, on fields growing barley, corn grain, corn silage, grain sorghum (milo), soybeans, oats, wheat, and/or hay. The Tool analyzes the costs and benefits of benchmark operations (pre-adoption of soil health practices) versus current operations (post-adoption of soil health practices) that changed with adoption. The farmer must have a clear understanding of their average benchmark versus current costs and benefits. The Tool employs a partial budget analysis (PBA) to estimate the change in net income due to adoption of soil health practices. A PBA focuses only on variables that change. This PBA analyzes economic effects within these cost/benefit categories: machinery, fertilizer, pesticide, yield, erosion repair, learning costs, and open-ended "other costs/benefits". The Tool compares average costs & benefits in these categories "before" & "after" soil health practice adoption, relying on a combination of user inputs and standardized cost and price information built into the Tool. Whenever possible, national prices or costs are used to avoid biasing the results in cases where the farmer's prices may not be representative of typical prices. However, the user does have the option to use the farmer's own prices for fertilizer and crops. Prices and their sources are listed on the "Prices", "Machinery Costs", and "Net Income Values by Crop" tabs. Results are displayed in a PBA table on an annual basis for the Study Area on the Partial Budget Analysis tabs. Visit https://farmland.salsalabs.org/sh_casestudies_methods/index.html to download the Soil Health Case Study Tool Kit to gain access to the R-SHEC Questionnaire and for the latest verison of this Tool and associated documents. Notes: - The Row Crop R-SHEC Tool was designed for use in Mid-Western and Mid-Atlantic states but could be used elsewhere with price or cost adjustments as needed. - Users should first complete the Row Crop R-SHEC Questionnaire so that data needed by the Tool is organized and at hand. - Adoption of a Conservation Crop Rotation cannot be analyzed with other soil health practices. Users can only analyze a Conservation Crop Rotation as a sole soil health practice. See "ONLY CCR" tab for more details. - Users cannot analyze corn silage with the adoption of a conservation crop rotation because there is no commodity cost and return data (see "Net Income Values by Crop") to calculate the net income value of corn silage. American Farmland Trust (AFT) used the R-SHEC Tool to conduct the PBA for case studies of soil health successful farms in various states as part of a Conservation Innovation Grant, "Quantifying the Economic and Environmental Benefits of Soil Health" (NR183A750008G008). These case studies as well as a summary of the findings are available on the AFT website: For more information, please contact: Michelle Perez, Project Leader and Water Initiative Director, American Farmland Trust at mperez@farmland.org For trouble-shooting assistance with the R-SHEC Tool, please contact: Ellen Yeatman, Agricultural Economist, American Farmland Trust at eyeatman@farmland.org Special thanks to Florence Swartz, Lead Developer of the R-SHEC Tool and Consulting Economist for AFT 2018 - 2021, Retired NRCS-NY Economist
A58: BEFORE BEGINNING DATA ENTRY, CREATE A NEW VERSION OF THE WORKBOOK
A59: FOR YOUR SOIL HEALTH SUCCESSFUL FARMER
B61: Practices Evaluated
B62: NRCS Practice Code | C62: Practice Name
B63: 329 | C63: Residue and Tillage Management - No-Till
B64: 345 | C64: Residue and Tillage Management - Reduced Till
B65: 340 | C65: Cover Crops
B66: 590 | C66: Nutrient Management
B67: 328 | C67: Conservation Crop Rotation
B68: Note: With the exception of the two Residue and Tillage Management Practices, data entry for each practice occurs on a separate worksheet. No-Till and Reduced Tillage data entry is combined into a single worksheet due to similarity between the two practices.
B72: General Information
A73: 1 | B73: This workbook is protected in order to protect formulas throughout the workbook. Data entry is allowed in yellow-shaded cells.
B74: In order to adjust any information on the Price, Machinery Costs, Net Income Values by Crop, or Lists tabs (also referred to as
B75: worksheets) or to view formulas, follow these steps for full access to protected sheets:
B76: a. Click on "File" in the green banner in the top left corner;
B77: b. Click on "Info" to open a page containing a yellow box called "Protect Workbook" that lists protected worksheets;
B78: c. Click on "Unprotect" adjacent to each worksheet you wish to have access to;
B79: d. To re-protect a worksheet, select "File" as before; select "Info"; select "Protect Workbook"; select "Protect Current Sheet".
B80: You will be presented with a box offering the options of selecting a password and what access, if any, you wish to allow.
B81: You should allow access to unlocked cells, at a minimum, in order to allow data entry. Navigate to the next sheet you
B82: wish to unprotect or protect and follow the same process.
A83: 2 | B83: Results are stated on an annual basis per acre and for the entire Study Area.
A84: 3 | B84: Results of all per acre calculations are weighted averages based on the crop rotation.
A85: 4 | B85: Calculations of costs and benefits for the individual practices (or Combined Practice Effects) occur within each of the worksheets.
A86: 6 | B86: Enter reductions as negative values and increases as positive values for changes in yield, fertilizer use, and pesticide use.
A87: 7 | B87: Results are summarized on the Partial Budget Analysis tabs in table format.
B89: About Individual Worksheets (aka 'Tabs')
A90: 1 | B90: Farm Info:
B91: a. Records information used throughout the workbook.
B92: b. REQUIRED: User must complete "Benchmark Rotation" and "Current Rotation" tables even if farmer did not change their rotation
B93: (in that case fill in both tables with identical information)
B94: c. "Clear All Data" button will clear all data entered in yellow-shaded cells.
A95: 2 | B95: Tillage:
B96: a. Machinery costs associated with hay establishment is prorated by the number of years of hay in the rotation.
B97: b. Acres and years in rotation populate automatically once user selects a crop.
B98: c. Captures difference in tillage costs by equipment cost and number of passes over the field "before" versus "after"
B99: adoption of reduced tillage soil health practices.
B100: d. Calculates how changes in tillage affects yield, costs of nutrients, costs of pesticides, and soil erosion.
A101: 3 | B101: Cover Crops:
B102: a. Captures costs of cover crop and any effects on cash crop yield, costs of nutrients, and costs of pesticides.
B103: b. Cover Crop costs prior to hay is prorated based on number of years of hay in the rotation. We are assuming the farmer will not plant a cover crop every year during hay production.
A105: 4 | B105: Nutrient Management:
B106: a. This worksheet is set up like the Tillage worksheet. User selects equipment that comes closest to what the
B107: farmer is using and costs are calculated automatically.
B108: b. Machinery costs are for equipment ONLY and do not include costs for fertilizer (that is included in "change in nutrients used" tables.)
A109: 5 | B109: Combined Practice Effects:
B110: a. This worksheet provides a place to record benefits or costs that cannot be attributed to a single soil health practice.
A111: 6 | B111: Conservation Crop Rotation:
B112: a. Captures net income change with CCR and any additional effects on yield, costs of nutrients, and costs of pesticides.
B113: b. NOTE: Users can only analyze a Conservation Crop Rotation as a sole soil health practice; it cannot be analyzed with other
B114: soil health practices due to data discrepancies. See "ONLY CCR" tab for more details.
B115: c. First two tables are populated automatically from Farm Info worksheet.
B116: d. Net income vales for establishing, growing, fertilizing, and harvesting crops are loaded from the "Prices" and "Net Income Values by
B117: Crop" tabs and used to automatically calculate changes in costs and production with a change in crop rotation.
A118: 7 | B118: Partial Budget Analysis (PBA):
B119: a. The PBA tab performs a partial budget analysis using calculations from each soil health practice worksheet and placing them in the
B120: correct quadrant of the PBA table to determine Annual Total and Per Acre Change in Net Income and Return on Investment.
B121: b. The PBA table is divided into four quadrants then presents the results at the bottom of the table:
B122: i. Increase in Income (top left side of PBA Table)
B123: ii. Decrease in Cost (bottom left side of PBA Table)
B124: iii. Decrease in Income (top right side of PBA Table)
B125: ii. Increase in Cost (bottom right side of PBA Table)
B126: iii. Results are displayed as Change in Total Net Income, Change in Per Acre Net Income, and % Return on Investment
B127: c. This tab should never be unprotected to save results to reference.
A128: 8 | B128: Editable PBA:
B129: a. This unprotected worksheet can be modified to create a publishable version of the Partial Budget Analysis table. Instructions and
B130: guidance are provided at the top of the Editable PBA worksheet.
A131: 9 | B131: Prices:
B132: a. For reference, contains prices used throughout the workbook and relevant Producer Prices Paid Index for updating prices as needed.
B133: b. Organic crop prices are included for producers who are certified organic. These prices will be used automatically if the
B134: user enters "Y" or "y" for Is this an organic farm? (Y/N) in the Yield Impacts section on each of the practice worksheets.
B135: c. Provides references to all price data sources.
A136: 10 | B136: Machinery Costs:
B137: a. For reference, contains per acre machinery costs used by the Tillage and Nutrient Management tabs.
B138: d. You can add to this list as needed, but we encourage only using published prices as they include depreciation, labor, fuel, interest, discount value, salvage cost, etc. Most farmers will undervalue their per acre machinery costs.
A139: 11 | B139: Net Income Values by Crop:
B140: a. For reference, this worksheet provides the 2020 and 2021 commodity costs and returns values by crop compiled by USDA Economic
B141: Research Service collected through the Agricultural Resource Management Survey.
B142: c. Includes a description of how we calculate net income for use on the "ONLY CCR" tab.
A143: 12 | B143: Lists:
B144: a. This worksheet contains lists used in drop-down menus throughout the workbook.
B145: b. You can add to this list as needed.
A147: BEFORE BEGINNING DATA ENTRY, CREATE A NEW VERSION OF THE WORKBOOK
A148: FOR YOUR SOIL HEALTH SUCCESSFUL FARMER
B150: Data Sources
B151: Item | C151: Release Date | D151: Source
B152: Crop Prices, Non-organic | C152: February | D152: USDA NASS. (February 2022). Crop Values: 2021 Summary. Retrieved on February 28, 2022 from https://usda.library.cornell.edu/concern/publications/k35694332
B153: Crop Prices, Organic | C153: Dec. 15, 2022 | D153: USDA NASS. (October 22, 2022). Table 13. Certified Organic Field Crops and Hay Harvested and Value of Sales: 2019 Organic Survey. Retrieved February 28, 2022, from https://www.nass.usda.gov/Surveys/Guide_to_NASS_Surveys/Organic_Production/index.php
B154: Fertilizer Prices | C154: January | D154: Iowa State University Extension and Outreach. (January 2022). Ag Decision Maker: Estimated Costs of Crop Production in Iowa (File A1-20). Retrieved on February 22, 2022 from https://www.extension.iastate.edu/agdm/crops/html/a1-20.html
B155: Hay Production Costs | C155: January | D155: Iowa State University Extension and Outreach. (January 2022). Ag Decision Maker: Estimated Costs of Crop Production in Iowa (File A1-20). Retrieved on February 22, 2022 from https://www.extension.iastate.edu/agdm/crops/html/a1-20.html
B156: Hay Yield, National Average | C156: Indeterminant | D156: USDA NASS. QuickStats: Statistics by Subject: Hay - Yield, Measured in Tons/Acre, National Average 2010-2021. Retrieved on March 2, 2022 from https://quickstats.nass.usda.gov/
B157: Labor Rate, Farm Manager | C157: March 31 | D157: U.S. Bureau of Labor Statistics. (March 31, 2022). 45-1011 First-Line Supervisors of Farming, Fishing, and Forestry Workers. Occupational Employment and Wage Statistics, May 2021. Retrieved April 6, 2022, from https://www.bls.gov/oes/current/oes451011.htm
B158: Machinery Cost Estimates | C158: Biennially | D158: University of Illinois at Urbana-Champaign Department of Ag and Consumer Economics. (September 2021). Farm Business Management Machinery Cost Estimates: Field Operations. Retrieved on February 22, 2022 from https://farmdoc.illinois.edu/management#handbook
B159: Machinery Costs for Fertilizer Applications | C159: March | D159: Iowa State University Extension and Outreach. (March 2022). Ag Decision Maker: 2022 Iowa Farm Custom Rate Survey (File A3-10). Retrieved on March 23, 2022 from https://www.extension.iastate.edu/agdm/crops/html/a3-10.html
B160: Net Income Values | C160: May 2 & Oct 3 | D160: USDA Economic Research Service. (May 2, 2022). Commodity Costs and Returns: Recent Costs and Returns. Retrieved on June 17, 2022 from https://www.ers.usda.gov/data-products/commodity-costs-and-returns/
B161: Prices Paid Index | C161: Monthly | D161: USDA NASS. (Ongoing). Prices Paid: Indexes for All Items and Production Items by Month - United States. Retrieved September 22, 2022, from https://www.nass.usda.gov/Charts_and_Maps/Agricultural_Prices/index.php
B162: Prices Received Index | C162: Monthly | D162: USDA NASS. (Ongoing). Prices Received: Indexes for Ag, Crop, and Livestock Production by Month - United States. Retrieved September 22, 2022, from https://www.nass.usda.gov/Charts_and_Maps/Agricultural_Prices/index.php

Sheet Farm Info
A1: Row Crop Farm General Information
A3: ABOUT THIS TAB:
A4: The Farm Info tab records very general information including farmer name, name of farm, location, watershed, Study Area benchmark and current crop rotations, Study Area soil health practices, time spent each year on educational activities, and farmer's fertilizer and crop prices (optional).
B8: Farmer Name | C8: County | D8: State
B10: Farm
B12: Watershed Name
B16: Study Area Crop Rotation (required entry)
B17: Tips: (1) Enter information gathered in the R-SHEC Questionnaire Section I for the Study Area Current and Benchmark Rotation. (2) In order to annualize the costs and benefits analyzed in this Tool, user must calculate acres of each crop in the rotation by dividing the total acres in the rotation by the number of years in rotation, then multiply by the number of years that a specific crop is in rotation: E.g., If the Study Area is 400 acres with a 4-year crop rotation (2-corn, 1-wheat, 1-soybeans), then user enters 200 acres for corn [(400/4) * 2], 100 acres in wheat, and 100 acres in soybeans [(400/4)*1]. (3) Only enter a crop once per rotation, and adjust the number of years and acres appropriately. (4) If there is no change in the rotation, enter identical information for the Benchmark and Current Rotations. Important note: If you have changed your crop rotation for soil health, the R-SHEC Tool is unable to analyze this conservation crop rotation (CCR) practice alongside other soil health practices. A change in CCR can only be analyzed alone with no other soil health practices included within the analysis. To learn more, see detailed information on the "ONLY CCR" tab.
B18: Benchmark Rotation
B19: Crop | C19: # Years | D19: Acres
B24: Total (Study Area) | C24: =SUM(C20:C23) -> 0 | D24: =SUM(D20:D23) -> 0
B25: Current Rotation
B26: Crop | C26: # Years | D26: Acres
B31: Total (Study Area) | C31: =SUM(C27:C30) -> 0 | D31: =IF(SUM(D27:D30)<>D24,"Total Acres must be the same as Benchmark Rotation",SUM(D27:D30)) -> 0
B34: Study Area Soil Health Practices for Analysis
B35: TIP: Enter an "x" in all that apply.
B36: Soil Health Practice
B37: No-Till or Reduced Tillage
B38: Nutrient Management
B39: Cover Crops
B40: Note: A change in crop rotation cannot be analyzed with other soil health practices due to data discrepancies.
B42: Conservation Crop Rotation (CCR)
B44: Time Spent on Educational Activities
B45: TIPS: (1) Do not enter hours for individual practices if using Combined Practice Learning Activities. (2) Use Combined Practice Learning Activities only when the farmer cannot separate hours spent by practice.
B48: Conservation Practice | C48: Hours/Year | D48: Total $/Yr*
B49: Residue and Tillage Mgt. Learning Activities | D49: =IF(C$56>0,C$56*C49,C49*Prices!$C$61) -> 0
B50: Cover Crops Learning Activities | D50: =IF(C$56>0,C$56*C50,C50*Prices!$C$61) -> 0
B51: Nutrient Mgt. Learning Activities | D51: =IF(C$56>0,C$56*C51,C51*Prices!$C$61) -> 0
B52: Conservation Crop Rotation Learning Activities | D52: =IF(C$56>0,C$56*C52,C52*Prices!$C$61) -> 0
B54: Combined Practices Learning Activities | D54: =IF(SUM(D49:D52)>0,"See Tip 3",IF(C$56>0,C$56*C54,C54*Prices!$C$61)) -> 0
C55: $/Hr
B56: Farmer's Reported Labor Hourly Rate (Optional)
B57: *Total $/Yr is calculated using Farmer's Hourly Rate (if provided) or default hourly labor rate (see "Prices" tab) multiplied by the number of learning activity hours by practice.
B58: Click here for default hourly labor rate & data source on Prices tab
B61: Farmer's Fertilizer and Crop Values (optional)
B62: TIP: If the farmer provided values, enter them here and they will be used throughout the workbook. If no values entered, national average prices will be used throughout the workbook (see "Prices" tab).
B63: Fertilizer | C63: Unit | D63: $/Unit
B64: Nitrogen | C64: Lb
B65: Phosphorus | C65: Lb
B66: Potassium | C66: Lb
B67: Crop Prices | C67: Unit | D67: $/Unit
B68: Barley | C68: Bu
B69: Corn Grain | C69: Bu
B70: Corn Silage | C70: Ton
B71: Grain sorghum (milo) | C71: Cwt
B72: Hay | C72: Ton
B73: Oats | C73: Bu
B74: Soybeans | C74: Bu
B75: Wheat | C75: Bu

Sheet Tillage
A1: Changes due to Changing Tillage
A3: ABOUT THIS TAB:
A4: The Tillage tab calculates the increases and decreases in costs and returns (called economic effects) due to changes in type of tillage used. Economic effects on this tab include changes in: (1) machinery costs associated with crop establishment; (2) yield; (3) fertilizer use; (4) pesticide use; (5) soil erosion; and (6) other benefits or costs as identified by the farmer. All effects on this tab are calculated on an annual per acre basis and for the entire Study Area. If a particular effect cannot be attributed solely to a change in tillage, the user can enter it on the Combined Practice Effects tab.
B10: Impact of Tillage Change on Establishment Cost due to Change in Tillage
B11: TIPS: (1) Benchmark Tillage refers to the field operation(s) used establishing the crop before reducing tillage. (2) Current Tillage refers to the current field operation(s) used with no-till or reduced tillage. (3) User must enter Crop (using dropdown options) to calculate changes in tillage machinery/implement costs. (4) User must enter Passes per Year. (5) If growing hay in rotation, the tool adjusts the acreage to account for the fact that hay production involves only one year of machinery costs to establish as a perennial crop. (6) Only enter benchmark and current machinery operations if there was a change due to adoption of reduced tillage practices. Make sure you are not double counting if additional soil health practices are being analyzed. (7) Review the list of machinery and associated costs on the "Machinery Costs" tab to determine the machinery that most closely matches your equipment. Alternatively, follow directions on the "Machinery Costs" tab to add your own costs.
B12: Crop 1:
B13: Benchmark Tillage:
B14: Benchmark Acres: | C14: =IFERROR(IF($C$12="Hay",VLOOKUP($C$12,'Farm Info'!$B$20:$D$23,3,0)/$C15,VLOOKUP($C$12,'Farm Info'!$B$20:$D$23,3,0)),0) -> 0
B15: Benchmark Years in Rotation: | C15: =SUMIF('Farm Info'!$B$20:$B$23,$C12,'Farm Info'!$C$20:$C$23) -> 0
B16: Crop 1 Benchmark Tillage Machinery | C16: Cost/Ac | D16: # Passes/Yr | E16: Total Cost/Ac
C17: =IFERROR(VLOOKUP(B17,'Machinery Costs'!B$21:F$118,5,FALSE),0) -> 0 | E17: =IFERROR(D17*C17, "See 'Machinery Costs' tab") -> 0
C18: =IFERROR(VLOOKUP(B18,'Machinery Costs'!B$21:F$118,5,FALSE),0) -> 0 | E18: =IFERROR(D18*C18, "See 'Machinery Costs' tab") -> 0
C19: =IFERROR(VLOOKUP(B19,'Machinery Costs'!B$21:F$118,5,FALSE),0) -> 0 | E19: 0
C20: =IFERROR(VLOOKUP(B20,'Machinery Costs'!B$21:F$118,5,FALSE),0) -> 0 | E20: 0
B21: Total | E21: =SUM(E17:E20) -> 0
B22: Current Tillage:
B23: Current Acreage: | C23: =IFERROR(IF($C$12="Hay",VLOOKUP($C$12,'Farm Info'!$B$27:$D$30,3,0)/$C24,VLOOKUP($C$12,'Farm Info'!$B$27:$D$30,3,0)),0) -> 0
B24: Current Years in Rotation | C24: =SUMIF('Farm Info'!$B$27:$B$30,$C12,'Farm Info'!$C$27:$C$30) -> 0
B25: Crop 1 Current Tillage Machinery | C25: Cost/Ac | D25: # Passes/Yr | E25: Total Cost/Ac
C26: =IFERROR(VLOOKUP(B26,'Machinery Costs'!B$21:F$118,5,FALSE),0) -> 0 | E26: =IFERROR(D26*C26, "See 'Machinery Costs' tab") -> 0
C27: =IFERROR(VLOOKUP(B27,'Machinery Costs'!B$21:F$118,5,FALSE),0) -> 0 | E27: =IFERROR(D27*C27, "See 'Machinery Costs' tab") -> 0
C28: =IFERROR(VLOOKUP(B28,'Machinery Costs'!B$21:F$118,5,FALSE),0) -> 0 | E28: 0
C29: =IFERROR(VLOOKUP(B29,'Machinery Costs'!B$21:F$118,5,FALSE),0) -> 0 | E29: 0
B30: Total | E30: =SUM(E26:E29) -> 0
B33: Crop 2:
B34: Benchmark Tillage:
B35: Benchmark Acres: | C35: =IFERROR(IF($C$33="Hay",VLOOKUP($C$33,'Farm Info'!$B$20:$D$23,3,0)/$C36,VLOOKUP($C$33,'Farm Info'!$B$20:$D$23,3,0)),0) -> 0
B36: Benchmark Years in Rotation | C36: =SUMIF('Farm Info'!$B$20:$B$23,$C33,'Farm Info'!$C$20:$C$23) -> 0
B37: Crop 2 Benchmark Tillage Machinery | C37: Cost/Ac | D37: # Passes/Yr | E37: Total Cost/Ac
C38: =IFERROR(VLOOKUP(B38,'Machinery Costs'!B$21:F$118,5,FALSE),0) -> 0 | E38: =IFERROR(D38*C38, "See 'Machinery Costs' tab") -> 0
C39: =IFERROR(VLOOKUP(B39,'Machinery Costs'!B$21:F$118,5,FALSE),0) -> 0 | E39: =IFERROR(D39*C39, "See 'Machinery Costs' tab") -> 0
C40: =IFERROR(VLOOKUP(B40,'Machinery Costs'!B$21:F$118,5,FALSE),0) -> 0 | E40: 0
C41: =IFERROR(VLOOKUP(B41,'Machinery Costs'!B$21:F$118,5,FALSE),0) -> 0 | E41: 0
B42: Total | E42: =SUM(E38:E41) -> 0
B43: Current Tillage:
B44: Current Acreage: | C44: =IFERROR(IF($C$33="Hay",VLOOKUP($C$33,'Farm Info'!$B$27:$D$30,3,0)/$C45,VLOOKUP($C$33,'Farm Info'!$B$27:$D$30,3,0)),0) -> 0
B45: Current Years in Rotation | C45: =SUMIF('Farm Info'!$B$27:$B$30,$C33,'Farm Info'!$C$27:$C$30) -> 0
B46: Crop 2 Current Tillage Machinery | C46: Cost/Ac | D46: # Passes/Yr | E46: Total Cost/Ac
C47: =IFERROR(VLOOKUP(B47,'Machinery Costs'!B$21:F$118,5,FALSE),0) -> 0 | E47: =IFERROR(D47*C47, "See 'Machinery Costs' tab") -> 0
C48: =IFERROR(VLOOKUP(B48,'Machinery Costs'!B$21:F$118,5,FALSE),0) -> 0 | E48: =IFERROR(D48*C48, "See 'Machinery Costs' tab") -> 0
C49: =IFERROR(VLOOKUP(B49,'Machinery Costs'!B$21:F$118,5,FALSE),0) -> 0 | E49: 0
C50: =IFERROR(VLOOKUP(B50,'Machinery Costs'!B$21:F$118,5,FALSE),0) -> 0 | E50: 0
B51: Total | E51: =SUM(E47:E50) -> 0
B54: Crop 3:
B55: Benchmark Tillage:
B56: Benchmark Acres: | C56: =IFERROR(IF($C$54="Hay",VLOOKUP($C$54,'Farm Info'!$B$20:$D$23,3,0)/$C57,VLOOKUP($C$54,'Farm Info'!$B$20:$D$23,3,0)),0) -> 0
B57: Benchmark Years in Rotation | C57: =SUMIF('Farm Info'!$B$20:$B$23,$C54,'Farm Info'!$C$20:$C$23) -> 0
B58: Crop 3 Benchmark Tillage Machinery | C58: Cost/Ac | D58: # Passes/Yr | E58: Total Cost/Ac
C59: =IFERROR(VLOOKUP(B59,'Machinery Costs'!B$21:F$118,5,FALSE),0) -> 0 | E59: =IFERROR(D59*C59, "See 'Machinery Costs' tab") -> 0
C60: =IFERROR(VLOOKUP(B60,'Machinery Costs'!B$21:F$118,5,FALSE),0) -> 0 | E60: =IFERROR(D60*C60, "See 'Machinery Costs' tab") -> 0
C61: =IFERROR(VLOOKUP(B61,'Machinery Costs'!B$21:F$118,5,FALSE),0) -> 0 | E61: 0
C62: =IFERROR(VLOOKUP(B62,'Machinery Costs'!B$21:F$118,5,FALSE),0) -> 0 | E62: 0
B63: Total | E63: =SUM(E59:E62) -> 0
B64: Current Tillage:
B65: Current Acres: | C65: =IFERROR(IF($C$54="Hay",VLOOKUP($C$54,'Farm Info'!$B$27:$D$30,3,0)/$C66,VLOOKUP($C$54,'Farm Info'!$B$27:$D$30,3,0)),0) -> 0
B66: Current Years in Rotation | C66: =SUMIF('Farm Info'!$B$27:$B$30,$C54,'Farm Info'!$C$27:$C$30) -> 0
B67: Crop 3 Current Tillage Machinery | C67: Cost/Ac | D67: # Passes/Yr | E67: Total Cost/Ac
C68: =IFERROR(VLOOKUP(B68,'Machinery Costs'!B$21:F$118,5,FALSE),0) -> 0 | E68: =IFERROR(D68*C68, "See 'Machinery Costs' tab") -> 0
C69: =IFERROR(VLOOKUP(B69,'Machinery Costs'!B$21:F$118,5,FALSE),0) -> 0 | E69: =IFERROR(D69*C69, "See 'Machinery Costs' tab") -> 0
C70: =IFERROR(VLOOKUP(B70,'Machinery Costs'!B$21:F$118,5,FALSE),0) -> 0 | E70: 0
C71: =IFERROR(VLOOKUP(B71,'Machinery Costs'!B$21:F$118,5,FALSE),0) -> 0 | E71: 0
B72: Total | E72: =SUM(E68:E71) -> 0
B75: Crop 4:
B76: Benchmark Tillage:
B77: Benchmark Acres: | C77: =IFERROR(IF($C$75="Hay",VLOOKUP($C$75,'Farm Info'!$B$20:$D$23,3,0)/$C78,VLOOKUP($C$75,'Farm Info'!$B$20:$D$23,3,0)),0) -> 0
B78: Benchmark Years in Rotation | C78: =SUMIF('Farm Info'!$B$20:$B$23,$C75,'Farm Info'!$C$20:$C$23) -> 0
B79: Crop 4 Benchmark Tillage Machinery | C79: Cost/Ac | D79: # Passes/Yr | E79: Total Cost/Ac
C80: =IFERROR(VLOOKUP(B80,'Machinery Costs'!B$21:F$118,5,FALSE),0) -> 0 | E80: =IFERROR(D80*C80, "See 'Machinery Costs' tab") -> 0
C81: =IFERROR(VLOOKUP(B81,'Machinery Costs'!B$21:F$118,5,FALSE),0) -> 0 | E81: =IFERROR(D81*C81, "See 'Machinery Costs' tab") -> 0
C82: =IFERROR(VLOOKUP(B82,'Machinery Costs'!B$21:F$118,5,FALSE),0) -> 0 | E82: 0
C83: =IFERROR(VLOOKUP(B83,'Machinery Costs'!B$21:F$118,5,FALSE),0) -> 0 | E83: 0
B84: Total | E84: =SUM(E80:E83) -> 0
B85: Current Tillage:
B86: Current Acres: | C86: =IFERROR(IF($C$75="Hay",VLOOKUP($C$75,'Farm Info'!$B$27:$D$30,3,0)/$C87,VLOOKUP($C$75,'Farm Info'!$B$27:$D$30,3,0)),0) -> 0
B87: Current Years in Rotation | C87: =SUMIF('Farm Info'!$B$27:$B$30,$C75,'Farm Info'!$C$27:$C$30) -> 0
B88: Crop 4 Current Tillage Machinery | C88: Cost/Ac | D88: # Passes/Yr | E88: Total Cost/Ac
C89: =IFERROR(VLOOKUP(B89,'Machinery Costs'!B$21:F$118,5,FALSE),0) -> 0 | E89: =IFERROR(D89*C89, "See 'Machinery Costs' tab") -> 0
C90: =IFERROR(VLOOKUP(B90,'Machinery Costs'!B$21:F$118,5,FALSE),0) -> 0 | E90: =IFERROR(D90*C90, "See 'Machinery Costs' tab") -> 0
C91: =IFERROR(VLOOKUP(B91,'Machinery Costs'!B$21:F$118,5,FALSE),0) -> 0 | E91: 0
C92: =IFERROR(VLOOKUP(B92,'Machinery Costs'!B$21:F$118,5,FALSE),0) -> 0 | E92: 0
B93: Total | E93: =SUM(E89:E92) -> 0
B96: Change in Machinery Cost due to Change in Tillage
C97: Benchmark | E97: Current
B98: Crop | C98: Cost/Ac | D98: Total Cost | E98: Cost/Ac | F98: Total Cost
B99: =C12 -> 0 | C99: =E21 -> 0 | D99: =IFERROR(C99*C14,0) -> 0 | E99: =E30 -> 0 | F99: =IFERROR(E99*C23,0) -> 0
B100: =C33 -> 0 | C100: =E42 -> 0 | D100: =IFERROR(C100*C35,0) -> 0 | E100: =E51 -> 0 | F100: =IFERROR(E100*C44,0) -> 0
B101: =C54 -> 0 | C101: =E63 -> 0 | D101: =IFERROR(C101*C56,0) -> 0 | E101: =E72 -> 0 | F101: =IFERROR(E101*C65,0) -> 0
B102: =C75 -> 0 | C102: =E84 -> 0 | D102: =IFERROR(C102*C77,0) -> 0 | E102: =E93 -> 0 | F102: =IFERROR(E102*C86,0) -> 0
B103: Total | D103: =SUM(D99:D102) -> 0 | F103: =SUM(F99:F102) -> 0
C104: Per Acre Change in Cost ($/Ac) | E104: Total Change in Cost ($)
B105: Weighted Average Change in Cost (negative value means decrease in cost) | C105: =IFERROR(E105/(C23+C44+C65+C86),0) -> 0 | E105: =F103-D103 -> 0
B106: Click here for machinery cost references
B109: Yield Impacts due to Change in Tillage
B110: Is this an organic farm? (Y/N)
B111: TIPS: (1) We suggest only entering changes in yield below if Tillage is the only soil health practice analyzed, otherwise enter yield impacts in the Combined Practice Effects tab. (2) User must answer above question "Is this an organic farm?". The table will use the standard crop price as default otherwise. (3) User must enter their "Benchmark Average Yield" AND "% Yield Increase/Decrease" OR "Change in Ave. Yield". If user enters both of the latter, calculation will use % yield change value. (4) Benchmark average yield should reflect the average yield under benchmark practices before soil health practice adoption.
B121: Cash Crop | C121: =C12 -> 0 | D121: =C33 -> 0 | E121: =C54 -> 0 | F121: =C75 -> 0
B122: Unit | C122: =IFERROR(VLOOKUP(C121,Prices!$B69:$F76,2,FALSE),0) -> 0 | D122: =IFERROR(VLOOKUP(D121,Prices!$B69:$F76,2,FALSE),0) -> 0 | E122: =IFERROR(VLOOKUP(E121,Prices!$B69:$F76,2,FALSE),0) -> 0 | F122: =IFERROR(VLOOKUP(F121,Prices!$B69:$F76,2,FALSE),0) -> 0
B123: Benchmark Average Yield (Unit/Acre)
B124: AND
B125: % Yield Increase/Decrease Due To Changing Tillage (+/- %)
B126: Calculated Change in Ave. Yield Due to Changing Tillage (+/- Unit/Ac) | C126: =C123*C125 -> 0 | D126: =D123*D125 -> 0 | E126: 0 | F126: 0
B127: AND/OR
B128: Change in Ave. Yield Due to Changing Tillage (+/- Unit/Ac)
B129: HIDDEN: Calculated Current Ave. Yield Due to Changing Tillage (Unit/Ac) [used in "Current Crop Value Per Acre"]
B131: Standard Crop Price per Unit1 | C131: =IFERROR(IF($C$110="Y",VLOOKUP(C$121,Prices!$B$83:$G$90,6,FALSE),VLOOKUP(C121,Prices!$B$69:$F$76,5,FALSE)),0) -> 0 | D131: =IFERROR(IF($C$110="Y",VLOOKUP(D$121,Prices!$B$83:$G$90,6,FALSE),VLOOKUP(D121,Prices!$B$69:$F$76,5,FALSE)),0) -> 0 | E131: =IFERROR(IF($C$110="Y",VLOOKUP(E$121,Prices!$B$83:$G$90,6,FALSE),VLOOKUP(E121,Prices!$B$69:$F$76,5,FALSE)),0) -> 0 | F131: =IFERROR(IF($C$110="Y",VLOOKUP(F$121,Prices!$B$83:$G$90,6,FALSE),VLOOKUP(F121,Prices!$B$69:$F$76,5,FALSE)),0) -> 0
B132: Farmer's Crop Price per Unit (Optional) | C132: =IFERROR(VLOOKUP(C121,'Farm Info'!$B$68:$D$75,3,FALSE),0) -> 0 | D132: =IFERROR(VLOOKUP(D121,'Farm Info'!$B$68:$D$75,3,FALSE),0) -> 0 | E132: =IFERROR(VLOOKUP(E121,'Farm Info'!$B$68:$D$75,3,FALSE),0) -> 0 | F132: =IFERROR(VLOOKUP(F121,'Farm Info'!$B$68:$D$75,3,FALSE),0) -> 0
B133: Benchmark Crop Acreage | C133: =IFERROR(IF(C123<>0,$C$14,0),0) -> 0 | D133: =IFERROR(IF(D123<>0,$C$35,0),0) -> 0 | E133: =IFERROR(IF(E123<>0,$C$56,0),0) -> 0 | F133: =IFERROR(IF(F123<>0,$C$77,0),0) -> 0
B134: Current Crop Acreage | C134: =IFERROR(IF(C123<>0,$C$23,0),0) -> 0 | D134: =IFERROR(IF(D123<>0,$C$44,0),0) -> 0 | E134: =IFERROR(IF(E123<>0,$C$65,0),0) -> 0 | F134: =IFERROR(IF(F123<>0,$C$86,0),0) -> 0
B135: Benchmark Crop Value Per Acre | C135: =IF(C123>0,(C123*IF(C132>0,C132,C131)),0) -> 0 | D135: =IF(D123>0,(D123*IF(D132>0,D132,D131)),0) -> 0 | E135: 0 | F135: 0
B136: Current Crop Value Per Acre | C136: =IF(C129>0,(C129*IF(C132>0,C132,C131)),0) -> 0 | D136: =IF(D129>0,(D129*IF(D132>0,D132,D131)),0) -> 0 | E136: 0 | F136: 0
B138: Total Change by Crop ($) | C138: =(C134*C136)-(C133*C135) -> 0 | D138: =(D134*D136)-(D133*D135) -> 0 | E138: =(E134*E136)-(E133*E135) -> 0 | F138: =(F134*F136)-(F133*F135) -> 0
B139: Per Acre Change by Crop ($/Ac) | C139: =IF(C138<>0,C138/C134,0) -> 0 | D139: =IF(D138<>0,D138/D134,0) -> 0 | E139: =IF(E138<>0,E138/E134,0) -> 0 | F139: =IF(F138<>0,F138/F134,0) -> 0
B140: Study Area Total Change ($) | F140: =SUM(C138:F138) -> 0
B141: Study Area Per Acre Change (Weighted Average, $/Ac) | F141: =IFERROR(F140/SUM(C134:F134),0) -> 0
B142: 1 National average non-organic or organic price.
B143: Click here for crop price data sources
B146: Impact of Change in Tillage on Primary Nutrients Used
B147: TIPS: (1) Enter negative values to indicate savings and positive values to indicate an increase in cost. (2) Only enter changes due to adoption of reduced tillage practices (e.g., reduced P and K rates by banding with strip-tillage). Make sure you are not double counting if additional soil health practices are being analyzed. (3) In this table, the change in nutrients applied will be applied to the Current Acres that the crop is in rotation.
B152: Cash Crop | C152: =C$12 -> 0 | D152: =C$33 -> 0 | E152: =C$54 -> 0 | F152: =C$75 -> 0
B153: Nitrogen (+/- Lbs/Ac)
B154: Change in Nitrogen Cost/Ac | C154: =IF('Farm Info'!$D64>0,'Farm Info'!$D64*C153,C153*Prices!$D$106) -> 0 | D154: =IF('Farm Info'!$D64>0,'Farm Info'!$D64*D153,D153*Prices!$D$106) -> 0 | E154: =IF('Farm Info'!$D64>0,'Farm Info'!$D64*E153,E153*Prices!$D$106) -> 0 | F154: =IF('Farm Info'!$D64>0,'Farm Info'!$D64*F153,F153*Prices!$D$106) -> 0
B155: Phosphorus (+/- Lbs/Ac)
B156: Change in Phosphorus Cost/Ac | C156: =IF('Farm Info'!$D65>0,'Farm Info'!$D65*C155,C155*Prices!$D$107) -> 0 | D156: =IF('Farm Info'!$D65>0,'Farm Info'!$D65*D155,D155*Prices!$D$107) -> 0 | E156: =IF('Farm Info'!$D65>0,'Farm Info'!$D65*E155,E155*Prices!$D$107) -> 0 | F156: =IF('Farm Info'!$D65>0,'Farm Info'!$D65*F155,F155*Prices!$D$107) -> 0
B157: Potassium (+/- Lbs/Ac)
B158: Change in Potassium Cost/Ac | C158: =IF('Farm Info'!$D66>0,'Farm Info'!$D66*C157,C157*Prices!$D$108) -> 0 | D158: =IF('Farm Info'!$D66>0,'Farm Info'!$D66*D157,D157*Prices!$D$108) -> 0 | E158: =IF('Farm Info'!$D66>0,'Farm Info'!$D66*E157,E157*Prices!$D$108) -> 0 | F158: =IF('Farm Info'!$D66>0,'Farm Info'!$D66*F157,F157*Prices!$D$108) -> 0
B159: Per Acre Change by Crop ($/Ac) | C159: =C154+C156+C158 -> 0 | D159: =D154+D156+D158 -> 0 | E159: =E154+E156+E158 -> 0 | F159: =F154+F156+F158 -> 0
B160: Acres by Crop | C160: =IF(C159<>0,$C$23,0) -> 0 | D160: =IF(D159<>0,$C$44,0) -> 0 | E160: =IF(E159<>0,$C$65,0) -> 0 | F160: =IF(F159<>0,$C$86,0) -> 0
B161: Total Change by Crop ($) | C161: =C159*C160 -> 0 | D161: =D159*D160 -> 0 | E161: 0 | F161: 0
B163: Study Area Total Change ($) | F163: =SUM(C161:F161) -> 0
B164: Study Area Per Acre Change (Weighted Average, $/Ac) | F164: =IFERROR(F163/SUM(C160:F160),0) -> 0
B165: Click here for nutrient prices data sources
B168: Impact of Change in Tillage on Pesticide Use
B169: TIPS: (1) User must enter Cost/Ac and % Change for calculations to work. (2) Enter negative values for % change values to indicate savings and positive values to indicate an increase in cost. (3) Only enter changes due to change in NM activities for soil health. Make sure you are not double counting if additional soil health practices are being analyzed. (4) In this table, the change in pesticides applied will be applied to the Current Acres that the crop is in rotation.
B175: Cash Crop | C175: =C$12 -> 0 | D175: =C$33 -> 0 | E175: =C$54 -> 0 | F175: =C$75 -> 0
B176: Herbicide Cost/Ac
B177: Herbicide % Change (+/-)
B178: Herbicide Change in Cost/Ac | C178: =C177*C176 -> 0 | D178: =D177*D176 -> 0 | E178: =E177*E176 -> 0 | F178: =F177*F176 -> 0
B179: Insecticide Cost/Ac
B180: Insecticide % Change (+/-)
B181: Insecticide Change in Cost/Ac | C181: =C180*C179 -> 0 | D181: =D180*D179 -> 0 | E181: =E180*E179 -> 0 | F181: =F180*F179 -> 0
B182: Fungicide Cost/Ac
B183: Fungicide % Change (+/-)
B184: Fungicide Change in Cost/Ac | C184: =C183*C182 -> 0 | D184: =D183*D182 -> 0 | E184: =E183*E182 -> 0 | F184: =F183*F182 -> 0
B185: Per Acre Change by Crop ($/Ac) | C185: =C184+C181+C178 -> 0 | D185: =D184+D181+D178 -> 0 | E185: =E184+E181+E178 -> 0 | F185: =F184+F181+F178 -> 0
B186: Acres by Crop | C186: =IF(C185<>0,$C$23,0) -> 0 | D186: =IF(D185<>0,$C$44,0) -> 0 | E186: =IF(E185<>0,$C$65,0) -> 0 | F186: =IF(F185<>0,$C$86,0) -> 0
B187: Total Change by Crop ($) | C187: =C185*C186 -> 0 | D187: =D185*D186 -> 0 | E187: =E185*E186 -> 0 | F187: =F185*F186 -> 0
B189: Study Area Total Change ($) | F189: =SUM(C187:F187) -> 0
B190: Study Area Per Acre Change (Weighted Average, $/Ac) | F190: =IFERROR(F189/SUM(C186:F186),0) -> 0
B193: Value of Decreased Erosion due to Change in Tillage
B194: TIPS: (1) We suggest only entering changes in benchmark versus current erosion and repair costs below if Tillage is the only soil health practice analyzed, otherwise enter erosion impacts in the Combined Practice Effects tab. (2) Number of Acres in the area where the reduction in erosion was observed. This could be the entire area where you’ve switched to no-till or reduced tillage in cases where slopes are relatively uniform throughout or, if the area is comprised of a combination of relatively flat areas and steeper ground, the acreage could be the portion encompassed by the steeper ground. (3) Options for Tons Reduced Erosion: a. Enter tons of reduced erosion results (Tons/Acre/Year) modeled using any sediment reduction tool, such as the Nutrient Tracking Tool; b. Enter the erosion reduction value from RUSLE-2 analysis undertaken by your advisor; or c. Any value that seems reasonable based on soil type including zero. (4) Total Annual Change in Repair Cost should only include changes in costs for repairs that occur within the Study Area due to adoption of no-till and/or reduced tillage. (5) Enter a negative value if cost of repairs has decreased and a positive value if cost of repairs increased.
B206: Retained Nutrients Benefits | C206: Amounts
B207: Value of N and P per Ton of Soil | C207: =Prices!F98 -> 2.2904
B208: Number of Acres1
B209: Tons Reduced Erosion (Tons/Acre/Year)
B210: Total Value ($/Year) | C210: =C207*C209*C208 -> 0
B212: Reduced Mechanical Erosion Repair
B213: Total Annual Change in Repair Cost ($/Year)
B215: Value of Decreased Erosion for Study Area ($/Ac) | C215: =IFERROR(((-1*C213)+C210)/'Farm Info'!D31,0) -> 0
B216: 1 Do not exceed study area acres: | C216: ='Farm Info'!D31 -> 0
B217: Click here for value of N and P per Ton of Soil data sources
B220: Annual Financial Assistance Payments
B221: Note: Any financial assistance payments listed are not included in the partial budget analysis because cost-share is temporary and not received by all, but can be noted in the footnote of PBA table.
B223: Source | C223: $/Ac/Yr | D223: Acres Funded | E223: Total ($) | F223: Weighted Average ($/Ac)
E224: =D224*C224 -> 0
E225: =D225*C225 -> 0
B226: Total Received | D226: =SUM(D224:D225) -> 0 | E226: =SUM(E224:E225) -> 0 | F226: =IFERROR(E226/D226,0) -> 0
B229: Other Tillage Benefits and Costs
B230: TIPS: (1) Description should detail the benefits, costs, or changes in activities experienced and responsible for change in Per Acre Value. (2) Per Acre Value should be positive for BOTH Positive Effects/Decreased Costs and Negative Effects/Increased Costs. (3) Acres should not exceed study area acreage. The default value is Study Area acreage.
B234: Positive Effects/Decreased Costs (enter positive Per Acre Values)
B235: Description of Other Benefit(s) | C235: $/Ac | D235: Number of Acres Affected | E235: Total Benefit
D236: ='Farm Info'!$D$31 -> 0 | E236: =D236*C236 -> 0
D237: ='Farm Info'!$D$31 -> 0 | E237: =D237*C237 -> 0
D238: ='Farm Info'!$D$31 -> 0 | E238: =D238*C238 -> 0
B240: Negative Effects/Increased Costs (enter positive Per Acre Values)
B241: Description of Other Cost(s) | C241: $/Ac | D241: Number of Acres Affected | E241: Total Cost
D242: ='Farm Info'!$D$31 -> 0 | E242: =D242*C242 -> 0
D243: ='Farm Info'!$D$31 -> 0 | E243: =D243*C243 -> 0
D244: ='Farm Info'!$D$31 -> 0 | E244: =D244*C244 -> 0

Sheet Nutrient Mgt.
A1: Changes in Nutrient Management (NM) Activities
A3: ABOUT THIS TAB:
A4: The Nutrient Management (NM) tab calculates economic effects following a change in NM activities for soil health including changes in: (1) machinery costs associated with fertilizer application; (2) yield; (3) fertilizer use; (4) pesticide use; and (5) other benefits or costs as identified by the farmer. All effects on this tab are calculated on an annual per acre basis and for the entire Study Area. If a particular effect cannot be attributed solely to a change in NM, the user can enter it on the Combined Practice Effects tab. Note: If growing hay in rotation, the tool assumes nutrient management activities occur annually. Otherwise, user must adjust the number of passes or acres accordingly.
B10: Changes in Machinery Costs for Nutrient Management Activities
B11: TIPS: (1) Only enter benchmark and current machinery operations if there was a change in nutrient management activities for soil health. Make sure you are not double counting if additional soil health practices are being analyzed. (2) Review the list of machinery and associated costs (included in the dropdown) on the "Machinery Costs" tab to determine the machinery that most closely matches your equipment. Follow instructions on "Machinery Costs" tab to add your own machinery description and cost. (3) Benchmark NM Description should describe the field operation(s) used to apply nutrients prior to change in NM activities for soil health. Select Benchmark NM Machinery from the dropdown list that best matches the machinery used to apply nutrients prior to change. Assess the cost/ac. (4) Current NM Description should include description of the field operation(s) used to apply nutrients currently. Select Current NM Machinery from the dropdown list that best matches the machinery used to apply nutrients currently. Assess the cost/ac. (5) User must enter Crop name (using dropdown options) to calculate changes in NM machinery/implement costs. (6) User must enter Passes, Gallons, Hours per Year. (7) User must adjust the number of passess accordingly if machinery costs do not apply to entire study area nor annually.
B24: Crop 1:
B25: Benchmark NM Description:
B26: Benchmark Acres: | C26: =IFERROR(VLOOKUP(C24,'Farm Info'!$B$20:$D$23,3,0),0) -> 0
B27: Benchmark Years in Rotation: | C27: =SUMIF('Farm Info'!$B$20:$B$23,$C$24,'Farm Info'!$C$20:$C$23) -> 0
B28: Crop 1 Benchmark NM Machinery | C28: Cost/Ac | D28: Passes, Gallons, Hours per Year | E28: Total Cost/Ac
C29: =IFERROR(VLOOKUP(B29,'Machinery Costs'!$B$121:$F$138,5,FALSE),0) -> 0 | E29: =IFERROR(D29*C29, "See 'Machinery Costs' tab") -> 0
C30: =IFERROR(VLOOKUP(B30,'Machinery Costs'!$B$121:$F$138,5,FALSE),0) -> 0 | E30: =IFERROR(D30*C30, "See 'Machinery Costs' tab") -> 0
C31: =IFERROR(VLOOKUP(B31,'Machinery Costs'!$B$121:$F$138,5,FALSE),0) -> 0 | E31: 0
B32: Total | E32: =SUM(E29:E31) -> 0
B33: Current NM Description:
B34: Current Acres: | C34: =IFERROR(VLOOKUP(C24,'Farm Info'!$B$27:$D$30,3,0),0) -> 0
B35: Current Years in Rotation: | C35: =SUMIF('Farm Info'!$B$27:$B$30,$C$24,'Farm Info'!$C$27:$C$30) -> 0
B36: Crop 1 Current NM Machinery | C36: Cost/Ac | D36: Passes, Gallons, Hours per Year | E36: Total Cost/Ac
C37: =IFERROR(VLOOKUP(B37,'Machinery Costs'!$B$121:$F$138,5,FALSE),0) -> 0 | E37: =IFERROR(D37*C37, "See 'Machinery Costs' tab") -> 0
C38: =IFERROR(VLOOKUP(B38,'Machinery Costs'!$B$121:$F$138,5,FALSE),0) -> 0 | E38: =IFERROR(D38*C38, "See 'Machinery Costs' tab") -> 0
C39: =IFERROR(VLOOKUP(B39,'Machinery Costs'!$B$121:$F$138,5,FALSE),0) -> 0 | E39: 0
B40: Total | E40: =SUM(E37:E39) -> 0
B43: Crop 2:
B44: Benchmark NM Description:
B45: Benchmark Acres: | C45: =IFERROR(VLOOKUP(C43,'Farm Info'!$B$20:$D$23,3,0),0) -> 0
B46: Benchmark Years in Rotation: | C46: =SUMIF('Farm Info'!$B$20:$B$23,$C43,'Farm Info'!$C$20:$C$23) -> 0
B47: Crop 2 Benchmark NM Machinery | C47: Cost/Ac | D47: Passes, Gallons, Hours per Year | E47: Total Cost/Ac
C48: =IFERROR(VLOOKUP(B48,'Machinery Costs'!$B$121:$F$138,5,FALSE),0) -> 0 | E48: =IFERROR(D48*C48, "See 'Machinery Costs' tab") -> 0
C49: =IFERROR(VLOOKUP(B49,'Machinery Costs'!$B$121:$F$138,5,FALSE),0) -> 0 | E49: =IFERROR(D49*C49, "See 'Machinery Costs' tab") -> 0
C50: =IFERROR(VLOOKUP(B50,'Machinery Costs'!$B$121:$F$138,5,FALSE),0) -> 0 | E50: 0
B51: Total | E51: =SUM(E48:E50) -> 0
B52: Current NM Description:
B53: Current Acres: | C53: =IFERROR(VLOOKUP(C43,'Farm Info'!$B$27:$D$30,3,0),0) -> 0
B54: Current Years in Rotation: | C54: =SUMIF('Farm Info'!$B$27:$B$30,$C43,'Farm Info'!$C$27:$C$30) -> 0
B55: Crop 2 Current NM Machinery | C55: Cost/Ac | D55: Passes, Gallons, Hours per Year | E55: Total Cost/Ac
C56: =IFERROR(VLOOKUP(B56,'Machinery Costs'!$B$121:$F$138,5,FALSE),0) -> 0 | E56: =IFERROR(D56*C56, "See 'Machinery Costs' tab") -> 0
C57: =IFERROR(VLOOKUP(B57,'Machinery Costs'!$B$121:$F$138,5,FALSE),0) -> 0 | E57: =IFERROR(D57*C57, "See 'Machinery Costs' tab") -> 0
C58: =IFERROR(VLOOKUP(B58,'Machinery Costs'!$B$121:$F$138,5,FALSE),0) -> 0 | E58: 0
B59: Total | E59: =SUM(E56:E58) -> 0
B62: Crop 3:
B63: Benchmark NM Description:
B64: Benchmark Acres: | C64: =IFERROR(VLOOKUP(C62,'Farm Info'!$B$20:$D$23,3,0),0) -> 0
B65: Benchmark Years in Rotation: | C65: =SUMIF('Farm Info'!$B$20:$B$23,$C62,'Farm Info'!$C$20:$C$23) -> 0
B66: Crop 3 Benchmark NM Machinery | C66: Cost/Ac | D66: Passes, Gallons, Hours per Year | E66: Total Cost/Ac
C67: =IFERROR(VLOOKUP(B67,'Machinery Costs'!$B$121:$F$138,5,FALSE),0) -> 0 | E67: =IFERROR(D67*C67, "See 'Machinery Costs' tab") -> 0
C68: =IFERROR(VLOOKUP(B68,'Machinery Costs'!$B$121:$F$138,5,FALSE),0) -> 0 | E68: =IFERROR(D68*C68, "See 'Machinery Costs' tab") -> 0
C69: =IFERROR(VLOOKUP(B69,'Machinery Costs'!$B$121:$F$138,5,FALSE),0) -> 0 | E69: 0
B70: Total | E70: =SUM(E67:E69) -> 0
B71: Current NM Description:
B72: Current Acres: | C72: =IFERROR(VLOOKUP(C62,'Farm Info'!$B$27:$D$30,3,0),0) -> 0
B73: Current Years in Rotation: | C73: =SUMIF('Farm Info'!$B$27:$B$30,$C62,'Farm Info'!$C$27:$C$30) -> 0
B74: Crop 3 Current NM Machinery | C74: Cost/Ac | D74: Passes, Gallons, Hours per Year | E74: Total Cost/Ac
C75: =IFERROR(VLOOKUP(B75,'Machinery Costs'!$B$121:$F$138,5,FALSE),0) -> 0 | E75: =IFERROR(D75*C75, "See 'Machinery Costs' tab") -> 0
C76: =IFERROR(VLOOKUP(B76,'Machinery Costs'!$B$121:$F$138,5,FALSE),0) -> 0 | E76: =IFERROR(D76*C76, "See 'Machinery Costs' tab") -> 0
C77: =IFERROR(VLOOKUP(B77,'Machinery Costs'!$B$121:$F$138,5,FALSE),0) -> 0 | E77: 0
B78: Total | E78: =SUM(E75:E77) -> 0
B81: Crop 4:
B82: Benchmark NM Description:
B83: Benchmark Acres: | C83: =IFERROR(VLOOKUP(C81,'Farm Info'!$B$20:$D$23,3,0),0) -> 0
B84: Benchmark Years in Rotation: | C84: =SUMIF('Farm Info'!$B$20:$B$23,$C81,'Farm Info'!$C$20:$C$23) -> 0
B85: Crop 4 Benchmark NM Machinery | C85: Cost/Ac | D85: Passes, Gallons, Hours per Year | E85: Total Cost/Ac
C86: =IFERROR(VLOOKUP(B86,'Machinery Costs'!$B$121:$F$138,5,FALSE),0) -> 0 | E86: =IFERROR(D86*C86, "See 'Machinery Costs' tab") -> 0
C87: =IFERROR(VLOOKUP(B87,'Machinery Costs'!$B$121:$F$138,5,FALSE),0) -> 0 | E87: =IFERROR(D87*C87, "See 'Machinery Costs' tab") -> 0
C88: =IFERROR(VLOOKUP(B88,'Machinery Costs'!$B$121:$F$138,5,FALSE),0) -> 0 | E88: 0
B89: Total | E89: =SUM(E86:E88) -> 0
B90: Current NM Description:
B91: Current Acres: | C91: =IFERROR(VLOOKUP(C81,'Farm Info'!$B$27:$D$30,3,0),0) -> 0
B92: Current Years in Rotation: | C92: =SUMIF('Farm Info'!$B$27:$B$30,$C81,'Farm Info'!$C$27:$C$30) -> 0
B93: Crop 4 Current NM Machinery | C93: Cost/Ac | D93: Passes, Gallons, Hours per Year | E93: Total Cost/Ac
C94: =IFERROR(VLOOKUP(B94,'Machinery Costs'!$B$121:$F$138,5,FALSE),0) -> 0 | E94: =IFERROR(D94*C94, "See 'Machinery Costs' tab") -> 0
C95: =IFERROR(VLOOKUP(B95,'Machinery Costs'!$B$121:$F$138,5,FALSE),0) -> 0 | E95: =IFERROR(D95*C95, "See 'Machinery Costs' tab") -> 0
C96: =IFERROR(VLOOKUP(B96,'Machinery Costs'!$B$121:$F$138,5,FALSE),0) -> 0 | E96: 0
B97: Total | E97: =SUM(E94:E96) -> 0
B100: Change in Machinery Costs due to Change in Nutrient Management Activities
C101: Benchmark NM | E101: Current NM
B102: Cash Crop | C102: Per Acre | D102: All Acres | E102: Per Acre | F102: All Acres
B103: =C24 -> 0 | C103: =E32 -> 0 | D103: =IFERROR(C103*C26,0) -> 0 | E103: =E40 -> 0 | F103: =IFERROR(E103*C34,0) -> 0
B104: =C43 -> 0 | C104: =E51 -> 0 | D104: =IFERROR(E51*C45,) -> 0 | E104: =E59 -> 0 | F104: =IFERROR(E104*C53,0) -> 0
B105: =C62 -> 0 | C105: =E70 -> 0 | D105: =IFERROR(C105*C64,0) -> 0 | E105: =E78 -> 0 | F105: =IFERROR(E105*C72,0) -> 0
B106: =C81 -> 0 | C106: =E89 -> 0 | D106: =IFERROR(C106*C83,0) -> 0 | E106: =E97 -> 0 | F106: =IFERROR(E106*C91,0) -> 0
B107: Average per Acre or Total All Acres | D107: =SUM(D103:D106) -> 0 | F107: =SUM(F103:F106) -> 0
C108: Per Acre Change in Cost ($/Ac) | E108: Total Change in Cost ($)
B109: Weighted Average Change in Cost (negative value means decrease in cost) | C109: =IFERROR(E109/(C34+C53+C72+C91),0) -> 0 | E109: =F107-D107 -> 0
B110: Click here for machinery cost data sources
B113: Yield Impacts due to Change in Nutrient Management Activities
B114: Is this an organic farm? (Y/N)
B115: TIPS: (1) We suggest only entering changes in yield below if NM is the only soil health practice analyzed, otherwise enter yield impacts in the Combined Practice Effects tab. (2) User must answer above question "Is this an organic farm?". The table will use the standard crop price as default otherwise. (3) User must enter their "Benchmark Average Yield" AND "% Yield Increase/Decrease" OR "Change in Ave. Yield". If user enters both of the latter, calculation will use % yield change value. (4) Benchmark average yield should reflect the average yield under benchmark practices before soil health practice adoption.
B124: Cash Crop | C124: =C24 -> 0 | D124: =C43 -> 0 | E124: =C62 -> 0 | F124: =C81 -> 0
B125: Unit | C125: =IFERROR(VLOOKUP(C124,Prices!$B$69:$F$76,2,FALSE),0) -> 0 | D125: =IFERROR(VLOOKUP(D124,Prices!$B$69:$F$76,2,FALSE),0) -> 0 | E125: =IFERROR(VLOOKUP(E124,Prices!$B$69:$F$76,2,FALSE),0) -> 0 | F125: =IFERROR(VLOOKUP(F124,Prices!$B$69:$F$76,2,FALSE),0) -> 0
B126: Benchmark Average Yield (Unit/Acre)
B127: AND
B128: % Yield Increase/Decrease Due To Changing NM (+/- %)
B129: Calculated Change in Ave. Yield Due to Changing NM (+/- Unit/Ac) | C129: =C126*C128 -> 0 | D129: =D126*D128 -> 0 | E129: 0 | F129: 0
B130: AND/OR
B131: Change in Ave. Yield Due to Changing NM (+/- Unit/Ac)
B132: HIDDEN: Calculated Current Ave. Yield Due to Changing NM (Unit/Ac) [used in "Current Crop Value Per Acre"] | C132: =IF(C129<>0,C126+C129,C126+C131) -> 0 | D132: =IF(D129<>0,D126+D129,D126+D131) -> 0 | E132: =IF(E129<>0,E126+E129,E126+E131) -> 0 | F132: =IF(F129<>0,F126+F129,F126+F131) -> 0
B134: Standard Crop Price per Unit1 | C134: =IFERROR(IF($C$114="Y",VLOOKUP(C124,Prices!$B$83:$G$90,6,FALSE),VLOOKUP(C124,Prices!$B$69:$F$76,5,FALSE)),0) -> 0 | D134: =IFERROR(IF($C$114="Y",VLOOKUP(D124,Prices!$B$83:$G$90,6,FALSE),VLOOKUP(D124,Prices!$B$69:$F$76,5,FALSE)),0) -> 0 | E134: =IFERROR(IF($C$114="Y",VLOOKUP(E124,Prices!$B$83:$G$90,6,FALSE),VLOOKUP(E124,Prices!$B$69:$F$76,5,FALSE)),0) -> 0 | F134: =IFERROR(IF($C$114="Y",VLOOKUP(F124,Prices!$B$83:$G$90,6,FALSE),VLOOKUP(F124,Prices!$B$69:$F$76,5,FALSE)),0) -> 0
B135: Farmer's Crop Price per Unit (Optional) | C135: =IFERROR(VLOOKUP(C124,'Farm Info'!$B$69:$D$75,3,FALSE),0) -> 0 | D135: =IFERROR(VLOOKUP(D124,'Farm Info'!$B$69:$D$75,3,FALSE),0) -> 0 | E135: =IFERROR(VLOOKUP(E124,'Farm Info'!$B$69:$D$75,3,FALSE),0) -> 0 | F135: =IFERROR(VLOOKUP(F124,'Farm Info'!$B$69:$D$75,3,FALSE),0) -> 0
B136: Benchmark Crop Acreage | C136: =IFERROR(IF(C124<>0,$C$26,0),0) -> 0 | D136: =IFERROR(IF(D124<>0,$C$45,0),0) -> 0 | E136: =IFERROR(IF(E124<>0,$C$64,0),0) -> 0 | F136: =IFERROR(IF(F124<>0,$C$83,0),0) -> 0
B137: Current Crop Acreage | C137: =IFERROR(IF(C124<>0,$C$34,0),0) -> 0 | D137: =IFERROR(IF(D124<>0,$C$53,0),0) -> 0 | E137: =IFERROR(IF(E124<>0,$C$72,0),0) -> 0 | F137: =IFERROR(IF(F124<>0,$C$91,0),0) -> 0
B138: Benchmark Crop Value Per Acre | C138: =IF(C126>0,(C126*IF(C135>0,C135,C134)),0) -> 0 | D138: =IF(D126>0,(D126*IF(D135>0,D135,D134)),0) -> 0 | E138: =IF(E126>0,(E126*IF(E135>0,E135,E134)),0) -> 0 | F138: =IF(F126>0,(F126*IF(F135>0,F135,F134)),0) -> 0
B139: Current Crop Value Per Acre | C139: =IF(C132>0,(C132*IF(C135>0,C135,C134)),0) -> 0 | D139: =IF(D132>0,(D132*IF(D135>0,D135,D134)),0) -> 0 | E139: =IF(E132>0,(E132*IF(E135>0,E135,E134)),0) -> 0 | F139: =IF(F132>0,(F132*IF(F135>0,F135,F134)),0) -> 0
B141: Total Change by Crop ($) | C141: =(C137*C139)-(C136*C138) -> 0 | D141: =(D137*D139)-(D136*D138) -> 0 | E141: 0 | F141: 0
B142: Per Acre Change by Crop ($/Ac) | C142: =IF(C141<>0,C141/C137,0) -> 0 | D142: =IF(D141<>0,D141/D137,0) -> 0 | E142: =IF(E141<>0,E141/E137,0) -> 0 | F142: 0
B143: Study Area Total Change ($) | F143: =SUM(C141:F141) -> 0
B144: Study Area Per Acre Change (Weighted Average, $/Ac) | F144: =IFERROR(F143/SUM(C137:F137),0) -> 0
B145: 1 National average non-organic or organic price.
B146: Click here for crop price data sources
B149: Impact of Change in Nutrient Management Activities on Primary Nutrients Used
B150: TIPS: (1) Enter negative values to indicate savings and positive values to indicate an increase in cost. (2) Change in Manure/Compost Cost/Ac should only be used when material is purchased off the farm. If so, user must enter their Price of Purchased Manure/Compost ($/Ton) below. (3) Only enter changes due to change in NM activities for soil health. Make sure you are not double counting if additional soil health practices are being analyzed. (4) In this table, the change in nutrients applied will be applied to the Current Acres that the crop is in rotation.
B152: Price of Purchased Manure/Compost ($/Ton)
B154: Cash Crop | C154: ='Farm Info'!$B$27 -> 0 | D154: ='Farm Info'!$B$28 -> 0 | E154: ='Farm Info'!$B$29 -> 0 | F154: ='Farm Info'!$B$30 -> 0
B155: Nitrogen (+/- Lbs/Ac)
B156: Change in Nitrogen Cost/Ac | C156: =IF('Farm Info'!$D64>0,'Farm Info'!$D64*C155,C155*Prices!$D$106) -> 0 | D156: =IF('Farm Info'!$D64>0,'Farm Info'!$D64*D155,D155*Prices!$D$106) -> 0 | E156: =IF('Farm Info'!$D64>0,'Farm Info'!$D64*E155,E155*Prices!$D$106) -> 0 | F156: =IF('Farm Info'!$D64>0,'Farm Info'!$D64*F155,F155*Prices!$D$106) -> 0
B157: Phosphorus (+/- Lbs/Ac)
B158: Change in Phosphorus Cost/Ac | C158: =IF('Farm Info'!$D65>0,'Farm Info'!$D65*C157,C157*Prices!$D$107) -> 0 | D158: =IF('Farm Info'!$D65>0,'Farm Info'!$D65*D157,D157*Prices!$D$107) -> 0 | E158: =IF('Farm Info'!$D65>0,'Farm Info'!$D65*E157,E157*Prices!$D$107) -> 0 | F158: =IF('Farm Info'!$D65>0,'Farm Info'!$D65*F157,F157*Prices!$D$107) -> 0
B159: Potassium (+/- Lbs/Ac)
B160: Change in Potassium Cost/Ac | C160: =IF('Farm Info'!$D66>0,'Farm Info'!$D66*C159,C159*Prices!$D$108) -> 0 | D160: =IF('Farm Info'!$D66>0,'Farm Info'!$D66*D159,D159*Prices!$D$108) -> 0 | E160: =IF('Farm Info'!$D66>0,'Farm Info'!$D66*E159,E159*Prices!$D$108) -> 0 | F160: =IF('Farm Info'!$D66>0,'Farm Info'!$D66*F159,F159*Prices!$D$108) -> 0
B161: Manure/Compost (+/- Tons/Ac)
B162: Change in Manure/Compost Cost/Ac | C162: =$C$152*C161 -> 0 | D162: =$C$152*D161 -> 0 | E162: 0 | F162: 0
B163: Per Acre Change by Crop ($/Ac) | C163: =C156+C158+C160+C162 -> 0 | D163: =D156+D158+D160+D162 -> 0 | E163: =E156+E158+E160+E162 -> 0 | F163: =F156+F158+F160+F162 -> 0
B164: Acres by Crop | C164: =IF(OR(C155<>0,C157<>0,C159<>0,C161<>0),C34,0) -> 0 | D164: =IF(OR(D155<>0,D157<>0,D159<>0,D161<>0),C53,0) -> 0 | E164: =IF(OR(E155<>0,E157<>0,E159<>0,E161<>0),C72,0) -> 0 | F164: =IF(OR(F155<>0,F157<>0,F159<>0,F161<>0),C91,0) -> 0
B165: Total Change by Crop ($) | C165: =C164*C163 -> 0 | D165: =D164*D163 -> 0 | E165: 0 | F165: 0
B167: Study Area Total Change ($) | F167: =SUM(C165:F165) -> 0
B168: Study Area Per Acre Change (Weighted Average, $/Ac) | F168: =IFERROR(F167/SUM(C164:F164),0) -> 0
B169: Click here for nutrient prices data sources
B172: Impact of Change in Nutrient Management Activities on Pesticide Use
B173: TIPS: (1) User must enter Cost/Ac and % Change for calculations to work. (2) Enter negative values for % change values to indicate savings and positive values to indicate an increase in cost. (3) Only enter changes due to change in NM activities for soil health. Make sure you are not double counting if additional soil health practices are being analyzed. (4) In this table, the change in pesticides applied will be applied to the Current Acres that the crop is in rotation.
B179: Cash Crop | C179: ='Farm Info'!$B$27 -> 0 | D179: ='Farm Info'!$B$28 -> 0 | E179: ='Farm Info'!$B$29 -> 0 | F179: ='Farm Info'!$B$30 -> 0
B180: Herbicide Cost/Ac
B181: Herbicide % Change (+/-)
B182: Herbicide Change in Cost/Ac | C182: =C181*C180 -> 0 | D182: =D181*D180 -> 0 | E182: =E181*E180 -> 0 | F182: =F181*F180 -> 0
B183: Insecticide Cost/Ac
B184: Insecticide % Change (+/-)
B185: Insecticide Change in Cost/Ac | C185: =C184*C183 -> 0 | D185: =D184*D183 -> 0 | E185: =E184*E183 -> 0 | F185: =F184*F183 -> 0
B186: Fungicide Cost/Ac
B187: Fungicide % Change (+/-)
B188: Fungicide Change in Cost/Ac | C188: =C187*C186 -> 0 | D188: =D187*D186 -> 0 | E188: =E187*E186 -> 0 | F188: =F187*F186 -> 0
B189: Per Acre Change by Crop ($/Ac) | C189: =C188+C185+C182 -> 0 | D189: =D188+D185+D182 -> 0 | E189: =E188+E185+E182 -> 0 | F189: =F188+F185+F182 -> 0
B190: Acres by Crop | C190: =IF(OR(C182<>0,C185<C163>0,C188<>0),C34,0) -> 0 | D190: =IF(OR(D182<>0,D185<>0,D188<>0),C53,0) -> 0 | E190: =IF(OR(E182<>0,E185<>0,E188<>0),C72,0) -> 0 | F190: =IF(OR(F182<>0,F185<>0,F188<>0),C91,0) -> 0
B191: Total Change by Crop ($) | C191: =C190*C189 -> 0 | D191: =D190*D189 -> 0 | E191: =E190*E189 -> 0 | F191: =F190*F189 -> 0
B193: Study Area Total Change ($) | F193: =SUM(C191:F191) -> 0
B194: Study Area Per Acre Change (Weighted Average, $/Ac) | F194: =IFERROR(F193/SUM(C190:F190),0) -> 0
B197: Annual Financial Assistance Payments
B198: Note: Any financial assistance payments listed are not included in the partial budget analysis because cost-share is temporary and not received by all, but can be noted in the footnote of PBA table.
B200: Source | C200: $/Ac/Yr | D200: Acres Funded | E200: Total ($) | F200: Weighted Average ($/Ac)
E201: =D201*C201 -> 0
E202: =D202*C202 -> 0
B203: Total Received | D203: =SUM(D201:D202) -> 0 | E203: =SUM(E201:E202) -> 0 | F203: =IFERROR(E203/D203,0) -> 0
B206: Other Benefits and Costs due to Change in Nutrient Management Activities
B207: TIPS: (1) Description should detail the benefits, costs, or changes in activities experienced and responsible for change in Per Acre Value. (2) Per Acre Value should be positive for BOTH Positive Effects/Decreased Costs and Negative Effects/Increased Costs. (3) Acres should not exceed study area acreage. The default value is Study Area acreage.
B211: Positive Effects/Decreased Costs (enter positive values)
B212: Description of Other Benefit(s) | C212: $/Ac | D212: Number of Acres Affected | E212: Total Benefit
D213: ='Farm Info'!$D$31 -> 0 | E213: =D213*C213 -> 0
D214: ='Farm Info'!$D$31 -> 0 | E214: 0
D215: ='Farm Info'!$D$31 -> 0 | E215: 0
B217: Negative Effects/Increased Costs (enter positive values)
B218: Description of Other Cost(s) | C218: $/Ac | D218: Number of Acres Affected | E218: Total Cost
D219: ='Farm Info'!$D$31 -> 0 | E219: =D219*C219 -> 0
D220: ='Farm Info'!$D$31 -> 0 | E220: =D220*C220 -> 0
D221: ='Farm Info'!$D$31 -> 0 | E221: 0

Sheet Cover Crops
A1: Changes due to Adopting Cover Crops
A3: ABOUT THIS TAB:
A4: The Cover Crop tab calculates the economic effects attributed to adopting cover crops. Economic effects on this tab include (1) cover crop costs and changes in (2) cash crop yield, (3) fertilizer applied, (4) pesticides used, (5) soil erosion, and (6) other benefits or costs as identified by the farmer. Also, at the end of this tab, user can calculate the effects of grazing and/or harvesting their cover crop as hay (7). All effects on this tab are calculated on an annual per acre basis for the Study Area. If a particular effect cannot be attributed solely to introducing cover crops, the user can enter it on the Combined Practice Effects tab. Note: This tab is setup to only analyze the switch from no cover crop to planting a cover crop. This tab does not analyze switching of cover crop species, changes in establishment methods, nor changes in termination methods, etc.
B13: Cover Crop Costs
B14: TIPS: (1)For data entry: Cover Species or Mix Description: Describe species planted. Acres Planted: Enter the average acreage planted to cover (e.g., if farmer only plants every other row in certain cover crop, enter half the crop acreage). Cover Crop Seed Cost: Enter per acre cost of cover crop seed. Establishment Cost: Include costs such as seedbed preparation (e.g., disking) and planting costs on average. Termination Cost: Enter average termination cost if the cover crop does not winter-kill. E.g., disking, spraying (equipment and herbicide), or tilling. Other Costs: Any other costs associated with growing cover crops. (2) Hay is a multi-year crop, therefore the cost of cover before hay will be divided by the number of years of hay in the rotation. We are assuming the farmer will not plant a cover every year during hay production. If they do, they can adjust the formulas in the hay column below appropriately. (E.g.: If farmer grows 300 acres of hay in a 3-year rotation and plants a cover crop before Year 1 of hay, Acres Planted would be 300 and the Tool will divide cover crop costs by 3 to determine the annual Total Cost/Ac).
B16: Cash Crop Following Cover
B17: Years in Rotation | C17: =IFERROR(VLOOKUP(C16,'Farm Info'!$B$27:$C$30,2,FALSE),0) -> 0 | D17: =IFERROR(VLOOKUP(D16,'Farm Info'!$B$27:$C$30,2,FALSE),0) -> 0 | E17: =IFERROR(VLOOKUP(E16,'Farm Info'!$B$27:$C$30,2,FALSE),0) -> 0 | F17: =IFERROR(VLOOKUP(F16,'Farm Info'!$B$27:$C$30,2,FALSE),0) -> 0
B18: Cover Species or Mix Description
B19: Acres Planted
B20: Cover Crop Seed ($/Ac)
B21: Establishment Cost ($/Ac)
B22: Termination Cost ($/Ac)
B23: Other Costs ($/Ac)
B24: Per Acre Cost by Crop ($/Ac) | C24: =IFERROR(IF(C16="Hay", (C20+C21+C22+C23)/C17,C20+C21+C22+C23),0) -> 0 | D24: =IFERROR(IF(D16="Hay", (D20+D21+D22+D23)/D17,D20+D21+D22+D23),0) -> 0 | E24: =IFERROR(IF(E16="Hay", (E20+E21+E22+E23)/E17,E20+E21+E22+E23),0) -> 0 | F24: =IFERROR(IF(F16="Hay", (F20+F21+F22+F23)/F17,F20+F21+F22+F23),0) -> 0
B25: Total Cost by Crop ($) | C25: =C19*C24 -> 0 | D25: =D19*D24 -> 0 | E25: =E19*E24 -> 0 | F25: =F19*F24 -> 0
B27: Study Area Total Cost ($) | F27: =IFERROR(SUM(C25:F25),0) -> 0
B28: Study Area Per Acre Cost (Weighted Average, $/Ac) | F28: =IFERROR(F27/SUM(C19:F19),0) -> 0
B30: Yield Impacts due to Cover Crops
B31: Is this an organic farm? (Y/N)
B32: TIPS: (1) We suggest only entering changes in yield below if Cover Cropping is the only soil health practice analyzed, otherwise enter yield impacts in the Combined Practice Effects tab. (2) User must answer above question "Is this an organic farm?" or the table will not calculate correctly. (3) User must enter their "Benchmark Average Yield" AND "% Yield Increase/Decrease" OR "Change in Ave. Yield". If user enters both of the latter, calculation will use % yield change value. (4) Benchmark average yield should reflect the average yield under benchmark practices before soil health practice adoption.
B33: Cash Crop Following Cover | C33: =C16 -> 0 | D33: =D16 -> 0 | E33: =E16 -> 0 | F33: =F16 -> 0
B34: Unit | C34: =IFERROR(VLOOKUP(C33,Prices!$B$69:$F$76,2,FALSE),0) -> 0 | D34: =IFERROR(VLOOKUP(D33,Prices!$B$69:$F$76,2,FALSE),0) -> 0 | E34: =IFERROR(VLOOKUP(E33,Prices!$B$69:$F$76,2,FALSE),0) -> 0 | F34: =IFERROR(VLOOKUP(F33,Prices!$B$69:$F$76,2,FALSE),0) -> 0
B35: Benchmark Average Yield (Unit/Acre)
B36: AND
B37: % Yield Increase/Decrease Due To Cover Crop (+/- %)
B38: Calculated Change in Ave. Yield Due to Cover Crop (+/- Unit/Ac) | C38: =C35*C37 -> 0 | D38: =D35*D37 -> 0 | E38: 0 | F38: 0
B39: AND/OR
B40: Change in Ave. Yield Due to Cover Crop (+/- Unit/Ac)
B41: HIDDEN: Calculated Current Ave. Yield Due to Cover Crops (Unit/Ac) [used in "Current Crop Value Per Acre"] | C41: =IF(C38<>0,C35+C38,C35+C40) -> 0 | D41: =IF(D38<>0,D35+D38,D35+D40) -> 0 | E41: =IF(E38<>0,E35+E38,E35+E40) -> 0 | F41: 0
B43: Standard Crop Price per Unit1 | C43: =IFERROR(IF($C$31="Y",VLOOKUP(C33,Prices!$B$83:$G$90,6,FALSE),VLOOKUP(C33,Prices!$B$69:$F$76,5,FALSE)),0) -> 0 | D43: =IFERROR(IF($C$31="Y",VLOOKUP(D33,Prices!$B$83:$G$90,6,FALSE),VLOOKUP(D33,Prices!$B$69:$F$76,5,FALSE)),0) -> 0 | E43: =IFERROR(IF($C$31="Y",VLOOKUP(E33,Prices!$B$83:$G$90,6,FALSE),VLOOKUP(E33,Prices!$B$69:$F$76,5,FALSE)),0) -> 0 | F43: =IFERROR(IF($C$31="Y",VLOOKUP(F33,Prices!$B$83:$G$90,6,FALSE),VLOOKUP(F33,Prices!$B$69:$F$76,5,FALSE)),0) -> 0
B44: Farmer's Crop Price per Unit (Optional) | C44: =IFERROR(VLOOKUP(C33,'Farm Info'!$B$69:$D$75,3,FALSE),0) -> 0 | D44: =IFERROR(VLOOKUP(D33,'Farm Info'!$B$69:$D$75,3,FALSE),0) -> 0 | E44: =IFERROR(VLOOKUP(E33,'Farm Info'!$B$69:$D$75,3,FALSE),0) -> 0 | F44: =IFERROR(VLOOKUP(F33,'Farm Info'!$B$69:$D$75,3,FALSE),0) -> 0
B45: Benchmark Crop Acreage | C45: =IFERROR(IF(C33<>0,VLOOKUP(C33,'Farm Info'!$B$20:$D$23, 3, FALSE), 0),0) -> 0 | D45: =IFERROR(IF(D33<>0,VLOOKUP(D33,'Farm Info'!$B$20:$D$23, 3, FALSE), 0),0) -> 0 | E45: =IFERROR(IF(E33<>0,VLOOKUP(E33,'Farm Info'!$B$20:$D$23, 3, FALSE), 0),0) -> 0 | F45: =IFERROR(IF(F33<>0,VLOOKUP(F33,'Farm Info'!$B$20:$D$23, 3, FALSE), 0),0) -> 0
B46: Current Crop Acreage | C46: =IFERROR(IF(C33<>0, VLOOKUP(C33,'Farm Info'!$B$27:$D$30, 3, FALSE), 0),0) -> 0 | D46: =IFERROR(IF(D33<>0, VLOOKUP(D33,'Farm Info'!$B$27:$D$30, 3, FALSE), 0),0) -> 0 | E46: =IFERROR(IF(E33<>0, VLOOKUP(E33,'Farm Info'!$B$27:$D$30, 3, FALSE), 0),0) -> 0 | F46: =IFERROR(IF(F33<>0, VLOOKUP(F33,'Farm Info'!$B$27:$D$30, 3, FALSE), 0),0) -> 0
B47: Benchmark Crop Value Per Acre | C47: =IF(C35>0,(C35*IF(C44>0,C44,C43)),0) -> 0 | D47: =IF(D35>0,(D35*IF(D44>0,D44,D43)),0) -> 0 | E47: =IF(E35>0,(E35*IF(E44>0,E44,E43)),0) -> 0 | F47: 0
B48: Current Crop Value Per Acre | C48: =IF(C41>0,(C41*IF(C44>0,C44,C43)),0) -> 0 | D48: =IF(D41>0,(D41*IF(D44>0,D44,D43)),0) -> 0 | E48: 0 | F48: 0
B50: Total Change by Crop ($) | C50: =(C46*C48)-(C45*C47) -> 0 | D50: =(D46*D48)-(D45*D47) -> 0 | E50: =(E46*E48)-(E45*E47) -> 0 | F50: =(F46*F48)-(F45*F47) -> 0
B51: Per Acre Change by Crop ($/Ac) | C51: =IF(C50<>0,C50/C46,0) -> 0 | D51: =IF(D50<>0,D50/D46,0) -> 0 | E51: =IF(E50<>0,E50/E46,0) -> 0 | F51: =IF(F50<>0,F50/F46,0) -> 0
B52: Study Area Total Change ($) | F52: =SUM(C50:F50) -> 0
B53: Study Area Per Acre Change (Weighted Average, $/Ac) | F53: =IFERROR(F52/SUM(C46:F46),0) -> 0
B54: 1 National average non-organic or organic price.
B55: Click here for crop price data sources
B58: Impact of Cover Crops on Primary Nutrients Used
B59: TIPS: (1) Enter negative values to indicate savings and positive values to indicate an increase in cost. (2) Only enter changes in primary nutrients due to adoption of cover crops. Make sure you are not double counting if additional soil health practices are being analyzed.
B60: Cash Crop Following Cover | C60: =C16 -> 0 | D60: =D16 -> 0 | E60: =E16 -> 0 | F60: =F16 -> 0
B61: Nitrogen (+/- Lbs/Ac)
B62: Change in Nitrogen Cost/Ac | C62: =IF('Farm Info'!$D64>0,'Farm Info'!$D64*C61,C61*Prices!$D$106) -> 0 | D62: =IF('Farm Info'!$D64>0,'Farm Info'!$D64*D61,D61*Prices!$D$106) -> 0 | E62: =IF('Farm Info'!$D64>0,'Farm Info'!$D64*E61,E61*Prices!$D$106) -> 0 | F62: =IF('Farm Info'!$D64>0,'Farm Info'!$D64*F61,F61*Prices!$D$106) -> 0
B63: Phosphorus (+/- Lbs/Ac)
B64: Change in Phosphorus Cost/Ac | C64: =IF('Farm Info'!$D65>0,'Farm Info'!$D65*C63,C63*Prices!$D$107) -> 0 | D64: =IF('Farm Info'!$D65>0,'Farm Info'!$D65*D63,D63*Prices!$D$107) -> 0 | E64: =IF('Farm Info'!$D65>0,'Farm Info'!$D65*E63,E63*Prices!$D$107) -> 0 | F64: =IF('Farm Info'!$D65>0,'Farm Info'!$D65*F63,F63*Prices!$D$107) -> 0
B65: Potassium (+/- Lbs/Ac)
B66: Change in Potassium Cost/Ac | C66: =IF('Farm Info'!$D66>0,'Farm Info'!$D66*C65,C65*Prices!$D$108) -> 0 | D66: =IF('Farm Info'!$D66>0,'Farm Info'!$D66*D65,D65*Prices!$D$108) -> 0 | E66: =IF('Farm Info'!$D66>0,'Farm Info'!$D66*E65,E65*Prices!$D$108) -> 0 | F66: =IF('Farm Info'!$D66>0,'Farm Info'!$D66*F65,F65*Prices!$D$108) -> 0
B67: Per Acre Change by Crop ($/Ac) | C67: =C62+C64+C66 -> 0 | D67: =D62+D64+D66 -> 0 | E67: =E62+E64+E66 -> 0 | F67: =F62+F64+F66 -> 0
B68: Acres | C68: =IF(OR(C61<>0,C63<>0,C65<>0),VLOOKUP(C60,'Farm Info'!$B$27:$D$30,3,FALSE),0) -> 0 | D68: =IF(OR(D61<>0,D63<>0,D65<>0),VLOOKUP(D60,'Farm Info'!$B$27:$D$30,3,FALSE),0) -> 0 | E68: =IF(OR(E61<>0,E63<>0,E65<>0),VLOOKUP(E60,'Farm Info'!$B$27:$D$30,3,FALSE),0) -> 0 | F68: =IF(OR(F61<>0,F63<>0,F65<>0),VLOOKUP(F60,'Farm Info'!$B$27:$D$30,3,FALSE),0) -> 0
B69: Total Change by Crop ($) | C69: =IFERROR(C67*C68,0) -> 0 | D69: =IFERROR(D67*D68,0) -> 0 | E69: =IFERROR(E67*E68,0) -> 0 | F69: =IFERROR(F67*F68,0) -> 0
B71: Study Area Total Change ($) | F71: =IFERROR(SUM(C69:F69),0) -> 0
B72: Study Area Per Acre Change (Weighted Average, $/Ac) | F72: =IFERROR(F71/SUM(C68:F68), 0) -> 0
B73: Click here for nutrient prices data sources
B76: Impact of Cover Crops on Pesticide Use
B77: TIPS: (1) Use must enter Cost/Ac and % Change for calculations to work. (2) Enter negative values to indicate savings and positive values to indicate an increase in cost. (3) If cover crop termination cost is included in the Cover Crop Costs table at the top of this sheet, do not enter increased herbicide cost in this table. (4) Only enter changes in pesticide costs due to adoption of cover crops. Make sure you are not double counting if additional soil health practices are being analyzed.
B84: Cash Crop following Cover | C84: =C16 -> 0 | D84: =D16 -> 0 | E84: =E16 -> 0 | F84: =F16 -> 0
B85: Herbicide Cost/Ac
B86: Herbicide % Change (+/-)
B87: Herbicide Change in Cost/Ac | C87: =C86*C85 -> 0 | D87: =D86*D85 -> 0 | E87: =E86*E85 -> 0 | F87: =F86*F85 -> 0
B88: Insecticide Cost/Ac
B89: Insecticide % Change (+/-)
B90: Insecticide Change in Cost/Ac | C90: =C89*C88 -> 0 | D90: =D89*D88 -> 0 | E90: =E89*E88 -> 0 | F90: =F89*F88 -> 0
B91: Fungicide Cost/Ac
B92: Fungicide % Change (+/-)
B93: Fungicide Change in Cost/Ac | C93: =C92*C91 -> 0 | D93: =D92*D91 -> 0 | E93: =E92*E91 -> 0 | F93: =F92*F91 -> 0
B94: Per Acre Change by Crop ($/Ac) | C94: =C$93+C$90+C$87 -> 0 | D94: =D$93+D$90+D$87 -> 0 | E94: 0 | F94: 0
B95: Acres | C95: =IF(OR(C87<>0,C90<>0,C93<>0),VLOOKUP(C84,'Farm Info'!$B$27:$D$30,3,FALSE),0) -> 0 | D95: =IF(OR(D87<>0,D90<>0,D93<>0),VLOOKUP(D84,'Farm Info'!$B$27:$D$30,3,FALSE),0) -> 0 | E95: =IF(OR(E87<>0,E90<>0,E93<>0),VLOOKUP(E84,'Farm Info'!$B$27:$D$30,3,FALSE),0) -> 0 | F95: =IF(OR(F87<>0,F90<>0,F93<>0),VLOOKUP(F84,'Farm Info'!$B$27:$D$30,3,FALSE),0) -> 0
B96: Total Change by Crop ($) | C96: =IFERROR(C94*C95,0) -> 0 | D96: =IFERROR(D94*D95,0) -> 0 | E96: =IFERROR(E94*E95,0) -> 0 | F96: =IFERROR(F94*F95,0) -> 0
B98: Study Area Total Change ($) | F98: =IFERROR(SUM(C96:F96),0) -> 0
B99: Study Area Per Acre Change (Weighted Average, $/Ac) | F99: =IFERROR(F98/SUM(C95:F95), 0) -> 0
B102: Value of Decreased Erosion due to Cover Crops
B103: TIPS: (1) We suggest only entering changes in erosion and repair costs here if Cover Cropping is the only soil health practice analyzed, otherwise enter erosion impacts in the Combined Practice Effects tab. (2) Number of Acres is the area where the reduction in erosion was observed. This could be the entire area where you're using a Cover Crop in cases where slopes are relatively uniform throughout or, if the area is comprised of a combination of relatively flat areas and steeper ground, the acreage could be the portion encompassed by the steeper ground. (3) Options for Tons Reduced Erosion: a. Enter tons of reduced erosion results (Tons/Acre/Year) modeled using any sediment reduction tool, such as the Nutrient Tracking Tool; b. Enter the erosion reduction value from RUSLE-2 analysis undertaken by your advisor; or c. Any value that seems reasonable based on soil including zero. (4) Total Annual Change in Repair Cost should only include changes in costs for repairs that occur within the Study Area. (5) Enter a negative value if cost of repairs has decreased and a positive value if cost of repairs increased.
B116: Retained Nutrients Benefits | C116: Amounts
B117: Value of N and P per Ton of Soil | C117: =Prices!F98 -> 2.2904
B118: Number of Acres1
B119: Tons Reduced Erosion (Tons/Acre/Year)
B120: Total Value ($/Year) | C120: =C117*C119*C118 -> 0
B121: AND/OR
B122: Reduced Mechanical Erosion Repair due to Cover Crops
B123: Total Annual Change in Repair Cost (+/- $/Year)
B125: Value of Decreased Erosion for Study Area ($/Ac) | C125: =IFERROR(((-1*C123+C120))/'Farm Info'!D31,0) -> 0
B126: 1 Do not exceed Study Area acreage: | C126: ='Farm Info'!D31 -> 0
B127: Click here for value of N and P per Ton of Soil data sources
B130: Annual Financial Assistance Payments
B131: Note: Any financial assistance payments listed are not included in the partial budget analysis because cost-share is temporary and not received by all, but can be noted in the footnote of PBA table.
B133: Source | C133: $/Ac/Yr | D133: Acres Funded | E133: Total ($) | F133: Weighted Average ($/Ac)
E134: =D134*C134 -> 0
E135: =D135*C135 -> 0
B136: Total Received | D136: =SUM(D134:D135) -> 0 | E136: =SUM(E134:E135) -> 0 | F136: =IFERROR(E136/D136,0) -> 0
B139: Other Cover Crop Benefits and Costs
B140: TIPS: (1) Description should detail the benefits, costs, or changes in activities experienced and responsible for change in Per Acre Value. (2) Per Acre Value should be positive for BOTH Positive Effects/Decreased Costs and Negative Effects/Increased Costs.
B141: Positive Effects/Decreased Costs (enter positive Per Acre Values)
B142: Description | C142: $/Ac | D142: Number of Acres Affected | E142: Total Benefit
E143: =D143*C143 -> 0
E144: 0
E145: 0
B147: Negative Effects/Increased Costs (enter positive Per Acre Values)
B148: Description | C148: $/Ac | D148: Number of Acres Affected | E148: Total Cost
E149: =D149*C149 -> 0
E150: =D150*C150 -> 0
E151: 0
B154: Grazing and Haying Cover Crops
B155: Hay Price ($/Ton) | C155: =Prices!F73 -> 186 | D155: =IFERROR(IF($C$31="Y",VLOOKUP("Hay",Prices!$B$83:$G$90,6,FALSE),VLOOKUP(C33,Prices!$B$69:$F$76,5,FALSE)),0) -> 0
B157: Grazing Cover Infrastructure and Annual Costs | E157: Grazing Cover, Dairy
B158: Planning Horizon (Years) | E158: Number of Acres Grazed
B159: Interest Rate | E159: Number of Days Grazed
B160: Fence ($/Ac) | E160: Stocking Rate (AU/Ac)
B161: Watering Facilities ($/Ac) | E161: Forage Demand (LB/AU/Day)
B162: Total Infrastructure Cost ($/Ac) | C162: =SUM(C160:C161) -> 0 | E162: Total Grazing Benefit ($/Ac) | H162: =((H159*H160*H161)/2000)*$C$155 -> 0
B163: Annualized Cost ($/Ac) | C163: =IFERROR(PMT(C159,C158,C162)*-1,0) -> 0 | E163: Net Grazing Benefit $/Ac) | H163: =H162-C166 -> 0
B164: Additional Labor and Management ($/Ac) | E164: Net Grazing Benefit all Acres Grazed ($/Yr) | H164: =H163*H158 -> 0
B165: Other Annual Grazing Cost ($/Ac)
B166: Total Annual Grazing Cost ($/Ac) | C166: =SUM(C163:C165) -> 0
E167: Grazing Cover, Stockers
E168: Number of Acres Grazed
B169: Grazing Cover, Cow/Calf Pair | E169: Number of Days Grazed
B170: Number of Acres Grazed | E170: Stocking Rate (AU/Ac)
B171: Number of Days Grazed | E171: Forage Demand (LB/AU/Day)
B172: Stocking Rate (AU/Ac) | E172: Total Grazing Benefit ($/Ac) | H172: =((H169*H170*H171)/2000)*$C$155 -> 0
B173: Forage Demand (Lb/AU/Day) | E173: Net Grazing Benefit ($/Ac) | H173: =H172-C166 -> 0
B174: Total Grazing Benefit ($/Ac) | C174: =((C171*C172*C173)/2000)*$C$155 -> 0 | E174: Net Grazing Benefit all Acres Grazed ($/Yr) | H174: =H173*H168 -> 0
B175: Net Grazing Benefit ($/Ac) | C175: =C174-C166 -> 0
B176: Net Grazing Benefit all Acres Grazed ($/Yr) | C176: =C175*C170 -> 0
B179: Haying Cover Crops
B180: Number of Acres Hayed
B181: Hay Yield (Tons/Ac)
B182: Income from Harvesting Cover as Hay or Silage ($/Ac) | C182: =C181*C155 -> 0
B183: Cost of Harvesting Cover as Hay or Silage ($/Ac)
B184: Net Haying Benefit ($/Ac) | C184: =(C181*C155)-C183 -> 0
B185: Net Haying Benefit all Acres Harvested ($/Yr) | C185: =C184*C180 -> 0
B186: Click here for crop price data sources

Sheet Combined Practice Effects
A1: Changes due to the Combination of Soil Health Practices
A2: Use this page to calculate effects that cannot be attributed to just one practice.
A4: ABOUT THIS TAB:
A5: The Combined Practice Effects tab calculates economic effects that are attributed to a combination of soil health practices. Economic effects on this tab include changes in: (1) yield; (2) fertilizer use; (3) pesticide use; (4) soil erosion rate; and (5) other benefits or costs as identified by the farmer. To avoid double counting, DO NOT enter any effect information that is already covered on the individual practice tabs. All effects are calculated on an annual basis per acre and for the entire Study Area.
B9: Yield Impacts Due to Soil Health Practices
B10: Is this an organic farm? (Y/N)
B11: TIPS: (1) User must answer above question "Is this an organic farm?" or the table will not calculate correctly. (2) User must enter their "Benchmark Average Yield" AND "% Yield Increase/Decrease" OR "Change in Ave. Yield". If user enters both of the latter, calculation will use % yield change value. (3) Benchmark average yield should reflect the average yield under benchmark practices before soil health practice adoption.
B12: Cash Crop
B13: Unit | C13: =IFERROR(VLOOKUP(C12,Prices!$B$69:$F$76,2,FALSE),0) -> 0 | D13: =IFERROR(VLOOKUP(D12,Prices!$B$69:$F$76,2,FALSE),0) -> 0 | E13: =IFERROR(VLOOKUP(E12,Prices!$B$69:$F$76,2,FALSE),0) -> 0 | F13: =IFERROR(VLOOKUP(F12,Prices!$B$69:$F$76,2,FALSE),0) -> 0
B14: Benchmark Average Yield (Unit/Acre)
B15: AND
B16: % Yield Increase/Decrease due to Combined Practices (+/- %)
B17: Calculated Change in Ave. Yield due to Combined Practices (+/- Unit/Ac) | C17: =C14*C16 -> 0 | D17: =D14*D16 -> 0 | E17: 0 | F17: 0
B18: AND/OR
B19: Change in Ave. Yield due to Combined Practices (+/- Unit/Ac)
B20: HIDDEN: Calculated Current Ave. Yield Due to Combined Practices (Unit/Ac) [used in "Current Crop Value Per Acre"] | C20: =IF(C17<>0,C14+C17,C14+C19) -> 0 | D20: =IF(D17<>0,D14+D17,D14+D19) -> 0 | E20: 0 | F20: 0
B22: Standard Crop Price per Unit1 | C22: =IFERROR(IF($C$10="Y",VLOOKUP(C12,Prices!$B$83:$G$90,6,FALSE),VLOOKUP(C12,Prices!$B$69:$F$76,5,FALSE)),0) -> 0 | D22: =IFERROR(IF($C$10="Y",VLOOKUP(D12,Prices!$B$83:$G$90,6,FALSE),VLOOKUP(D12,Prices!$B$69:$F$76,5,FALSE)),0) -> 0 | E22: =IFERROR(IF($C$10="Y",VLOOKUP(E12,Prices!$B$83:$G$90,6,FALSE),VLOOKUP(E12,Prices!$B$69:$F$76,5,FALSE)),0) -> 0 | F22: =IFERROR(IF($C$10="Y",VLOOKUP(F12,Prices!$B$83:$G$90,6,FALSE),VLOOKUP(F12,Prices!$B$69:$F$76,5,FALSE)),0) -> 0
B23: Farmer's Crop Price per Unit (Optional) | C23: =IFERROR(VLOOKUP(C12,'Farm Info'!B69:D75,3,FALSE),0) -> 0 | D23: =IFERROR(VLOOKUP(D12,'Farm Info'!C69:E75,3,FALSE),0) -> 0 | E23: =IFERROR(VLOOKUP(E12,'Farm Info'!D69:F75,3,FALSE),0) -> 0 | F23: =IFERROR(VLOOKUP(F12,'Farm Info'!E69:G75,3,FALSE),0) -> 0
B24: Benchmark Crop Acreage | C24: =IFERROR(IF(C12<>0,VLOOKUP(C12,'Farm Info'!$B$20:$D$23, 3, FALSE), 0),0) -> 0 | D24: =IFERROR(IF(D12<>0,VLOOKUP(D12,'Farm Info'!$B$20:$D$23, 3, FALSE), 0),0) -> 0 | E24: =IFERROR(IF(E12<>0,VLOOKUP(E12,'Farm Info'!$B$20:$D$23, 3, FALSE), 0),0) -> 0 | F24: =IFERROR(IF(F12<>0,VLOOKUP(F12,'Farm Info'!$B$20:$D$23, 3, FALSE), 0),0) -> 0
B25: Current Crop Acreage | C25: =IFERROR(IF(C12<>0,VLOOKUP(C12,'Farm Info'!$B$27:$D$30, 3, FALSE), 0),0) -> 0 | D25: =IFERROR(IF(D12<>0,VLOOKUP(D12,'Farm Info'!$B$27:$D$30, 3, FALSE), 0),0) -> 0 | E25: =IFERROR(IF(E12<>0,VLOOKUP(E12,'Farm Info'!$B$27:$D$30, 3, FALSE), 0),0) -> 0 | F25: =IFERROR(IF(F12<>0,VLOOKUP(F12,'Farm Info'!$B$27:$D$30, 3, FALSE), 0),0) -> 0
B26: Benchmark Crop Value Per Acre | C26: =IF(C14>0,(C14*IF(C23>0,C23,C22)),0) -> 0 | D26: =IF(D14>0,(D14*IF(D23>0,D23,D22)),0) -> 0 | E26: =IF(E14>0,(E14*IF(E23>0,E23,E22)),0) -> 0 | F26: =IF(F14>0,(F14*IF(F23>0,F23,F22)),0) -> 0
B27: Current Crop Value Per Acre | C27: =IF(C20>0,(C20*IF(C23>0,C23,C22)),0) -> 0 | D27: =IF(D20>0,(D20*IF(D23>0,D23,D22)),0) -> 0 | E27: 0 | F27: 0
B29: Total Change by Crop ($) | C29: =(C25*C27)-(C24*C26) -> 0 | D29: =(D25*D27)-(D24*D26) -> 0 | E29: =(E25*E27)-(E24*E26) -> 0 | F29: =(F25*F27)-(F24*F26) -> 0
B30: Per Acre Change by Crop ($/Ac) | C30: =IF(C29<>0,C29/C25,0) -> 0 | D30: =IF(D29<>0,D29/D25,0) -> 0 | E30: =IF(E29<>0,E29/E25,0) -> 0 | F30: =IF(F29<>0,F29/F25,0) -> 0
B31: Study Area Total Change ($) | F31: =SUM(C29:F29) -> 0
B32: Study Area Per Acre Change (Weighted Average, $/Ac) | F32: =IFERROR(F31/SUM(C25:F25),0) -> 0
B33: 1 National average non-organic or organic price.
B34: Click here for crop price data sources
B37: Impact of Soil Health Practices on Primary Nutrients Used
B38: TIP: Enter negative values to indicate savings and positive values to indicate an increase in cost.
B39: Cash Crop
B40: Nitrogen (+/- Lbs/Ac)
B41: Change in Nitrogen Cost/Ac | C41: =IF('Farm Info'!$D64>0,'Farm Info'!$D64*C40,C40*Prices!$D$106) -> 0 | D41: =IF('Farm Info'!$D64>0,'Farm Info'!$D64*D40,D40*Prices!$D$106) -> 0 | E41: =IF('Farm Info'!$D64>0,'Farm Info'!$D64*E40,E40*Prices!$D$106) -> 0 | F41: =IF('Farm Info'!$D64>0,'Farm Info'!$D64*F40,F40*Prices!$D$106) -> 0
B42: Phosphorus (+/- Lbs/Ac)
B43: Change in Phosphorus Cost/Ac | C43: =IF('Farm Info'!$D65>0,'Farm Info'!$D65*C42,C42*Prices!$D$107) -> 0 | D43: =IF('Farm Info'!$D65>0,'Farm Info'!$D65*D42,D42*Prices!$D$107) -> 0 | E43: =IF('Farm Info'!$D65>0,'Farm Info'!$D65*E42,E42*Prices!$D$107) -> 0 | F43: =IF('Farm Info'!$D65>0,'Farm Info'!$D65*F42,F42*Prices!$D$107) -> 0
B44: Potassium (+/- Lbs/Ac)
B45: Change in Potassium Cost/Ac | C45: =IF('Farm Info'!$D66>0,'Farm Info'!$D66*C44,C44*Prices!$D$108) -> 0 | D45: =IF('Farm Info'!$D66>0,'Farm Info'!$D66*D44,D44*Prices!$D$108) -> 0 | E45: =IF('Farm Info'!$D66>0,'Farm Info'!$D66*E44,E44*Prices!$D$108) -> 0 | F45: =IF('Farm Info'!$D66>0,'Farm Info'!$D66*F44,F44*Prices!$D$108) -> 0
B46: Per Acre Change by Crop ($/Ac) | C46: =C41+C43+C45 -> 0 | D46: =D41+D43+D45 -> 0 | E46: =E41+E43+E45 -> 0 | F46: =F41+F43+F45 -> 0
B47: Acres | C47: =IF(OR(C40<>0,C42<>0,C44<>0),VLOOKUP(C39,'Farm Info'!$B$27:$D$30,3,FALSE),0) -> 0 | D47: =IF(OR(D40<>0,D42<>0,D44<>0),VLOOKUP(D39,'Farm Info'!$B$27:$D$30,3,FALSE),0) -> 0 | E47: =IF(OR(E40<>0,E42<>0,E44<>0),VLOOKUP(E39,'Farm Info'!$B$27:$D$30,3,FALSE),0) -> 0 | F47: =IF(OR(F40<>0,F42<>0,F44<>0),VLOOKUP(F39,'Farm Info'!$B$27:$D$30,3,FALSE),0) -> 0
B48: Total Change by Crop ($) | C48: =C46*C47 -> 0 | D48: =D46*D47 -> 0 | E48: 0 | F48: 0
B50: Study Area Total Change ($) | F50: =IFERROR(SUM(C48:F48),0) -> 0
B51: Study Area Per Acre Change (Weighted Average, $/Ac) | F51: =IFERROR(F50/SUM(C47:F47), 0) -> 0
B52: Click here for nutrient prices data sources
B55: Change in Usage of Pesticides due to Soil Health Practices
B56: TIPS: (1) Enter negative values to indicate savings and positive values to indicate an increase in cost. (2) Make sure you are not double counting if additional soil health practices are being analyzed.
B57: Cash Crop
B58: Herbicide Cost/Ac
B59: Herbicide % Change (+/-)
B60: Herbicide Change in Cost/Ac | C60: =C59*C58 -> 0 | D60: =D59*D58 -> 0 | E60: =E59*E58 -> 0 | F60: =F59*F58 -> 0
B61: Insecticide Cost/Ac
B62: Insecticide % Change (+/-)
B63: Insecticide Change in Cost/Ac | C63: =C62*C61 -> 0 | D63: =D62*D61 -> 0 | E63: =E62*E61 -> 0 | F63: =F62*F61 -> 0
B64: Fungicide Cost/Ac
B65: Fungicide % Change (+/-)
B66: Fungicide Change in Cost/Ac | C66: =C65*C64 -> 0 | D66: =D65*D64 -> 0 | E66: =E65*E64 -> 0 | F66: =F65*F64 -> 0
B67: Per Acre Change by Crop ($/Ac) | C67: =C66+C63+C60 -> 0 | D67: =D66+D63+D60 -> 0 | E67: =E66+E63+E60 -> 0 | F67: =F66+F63+F60 -> 0
B68: Acres | C68: =IF(OR(C59<>0,C62<>0,C65<>0),VLOOKUP(C57,'Farm Info'!$B$27:$D$30,3,FALSE),0) -> 0 | D68: =IF(OR(D59<>0,D62<>0,D65<>0),VLOOKUP(D57,'Farm Info'!$B$27:$D$30,3,FALSE),0) -> 0 | E68: =IF(OR(E59<>0,E62<>0,E65<>0),VLOOKUP(E57,'Farm Info'!$B$27:$D$30,3,FALSE),0) -> 0 | F68: =IF(OR(F59<>0,F62<>0,F65<>0),VLOOKUP(F57,'Farm Info'!$B$27:$D$30,3,FALSE),0) -> 0
B69: Total Change by Crop ($) | C69: =C67*C68 -> 0 | D69: =D67*D68 -> 0 | E69: 0 | F69: 0
B71: Study Area Total Change ($) | F71: =IFERROR(SUM(C69:F69),0) -> 0
B72: Study Area Per Acre Change (Weighted Average, $/Ac) | F72: =IFERROR(F71/SUM(C68:F68), 0) -> 0
B75: Value of Decreased Erosion due to Soil Health Practices
B76: TIPS: (1) Number of Acres is the area where the reduction in erosion was observed. This could be the entire Study Area in cases where slopes are relatively uniform throughout2 or, if the area is comprised of a combination of relatively flat areas and steeper ground, the acreage could be the portion encompassed by the steeper ground. (2) Options for Reduced Erosion: a. Enter tons of reduced erosion results (Tons/Acre/Year) modeled using any sediment reduction tool, such as the Nutrient Tracking Tool; b. Enter the erosion reduction value from RUSLE-2 analysis undertaken by your advisor; or c. Any value that seems reasonable based on soil including zero. (3) Total Annual Change in Repair Cost should only include changes in costs for repairs that occur within the Study Area. (4) Enter a negative value if cost of repairs has decreased and a positive value if cost of repairs increased.
B77: Retained Nutrients Benefits | C77: Amounts
B78: Value of N and P per Ton of Soil | C78: =Prices!F98 -> 2.2904
B79: Number of Acres1
B80: Tons Reduced Erosion (Tons/Acre/Year)
B81: Total Value ($/Year) | C81: =C78*C79*C80 -> 0
B82: AND/OR
B83: Reduced Mechanical Erosion Repair due to SH practices
B84: Total Annual Change in Repair Cost ($/Year)
B86: Total per Acre Value of Decreased Erosion | C86: =IFERROR(((-1*C84)+C81)/'Farm Info'!D31,0) -> 0
B87: 1 Do not exceed total acres in the Study Area: | C87: ='Farm Info'!D31 -> 0
B88: Click here for value of N and P per Ton of Soil data sources
B91: Other Benefits and Costs
B92: TIPS: (1) Description should detail the benefits, costs, or changes in activities experienced and responsible for change in Per Acre Value. (2) Per Acre Value should be positive for BOTH Positive Effects/Decreased Costs and Negative Effects/Increased Costs.
B93: Positive Effects/Decreased Costs (enter positive Per Acre Values)
B94: Description of Other Benefit(s) | C94: $/Ac | D94: Number of Acres Affected | E94: Total Benefit
E95: =D95*C95 -> 0
E96: =D96*C96 -> 0
E97: =D97*C97 -> 0
B98: Negative Effects/Increased Costs (enter positive Per Acre Values)
B99: Description of Other Cost(s) | C99: $/Ac | D99: Number of Acres Affected | E99: Total Cost
E100: =D100*C100 -> 0
E101: =D101*C101 -> 0
E102: =D102*C102 -> 0

Sheet ONLY CCR
A1: Changes due to Adopting Conservation Crop Rotation
A3: ABOUT THIS TAB:
A4: The Conservation Crop Rotation (CCR) tab estimates economic effects following a change in rotation for improvement in soil health. The change in net income is estimated using USDA Agricultural Resource Management Survey (ARMS) data on commodity costs and returns. These survey data represent average costs of production across the country and are not linked to specific management systems, such as conventional tillage or no-till. Since these estimated economic effects of a change in crop rotation do not correspond to specific management systems, it is not appropriate to combine analysis of CCR with changes in tillage, nutrient managment, or cover crops practices. WARNING: Adoption of a Conservation Crop Rotation cannot be analyzed with other soil health practices due to data discrepancies. Users can only analyze a Conservation Crop Rotation as a sole soil health practice. Also, corn silage cannot be analyzed on this tab because there is no net income data for corn silage. Economic effects on this tab include changes in: (1) net income; (2) yield; (3) fertilizer use; (4) pesticide use; (5) soil erosion rate; and (6) other benefits or costs as identified by the farmer. See the "Net Income Values by Crop" tab to learn more about how changes in net income is calculated. All effects are calculated on an annual per acre basis for the entire Study Area. Changes inherent in switching between two crops, like the difference in volume of fertilizer applied to corn versus soybeans, are captured in the Net Income calculations. Only quantify change(s) in (2)-(6) listed above if not captured in the change in Net Income calculations (see "Net Income Values by Crop" tab) and if change(s) applies to both a crop in the benchmark AND current rotation in order to capture a 'change'. For example, if there was a yield bump or reduction in fertilizer use after changing the crop rotation due to improvements in soil health, capture that change in additional tables.
B24: Change in Net Income due to Change in Crop Rotation
B25: TIPS: (1) No data entry is required in the following table as the values populate automatically using rotation information entered on the "Farm Info" tab then subsequently populate Net Income Per Acre from "Net Income Values by Crop" tab.
B26: BENCHMARK ROTATION
B27: Acreage in Rotation: | C27: ='Farm Info'!D24 -> 0
B28: Crops Grown | C28: # Years in Rotation | D28: Acres | E28: Net Income Per Acre | F28: Net Income All Acres
B29: =IF('Farm Info'!B20 = "Corn Silage", "*ERROR* Corn Silage Cannot Be Analyzed in CCR*",'Farm Info'!B20) -> 0 | C29: ='Farm Info'!C20 -> 0 | D29: ='Farm Info'!$D20 -> 0 | E29: =IFERROR(VLOOKUP(B29,Prices!$B$116:$E$121,4,FALSE),0) -> 0 | F29: =E29*D29 -> 0
B30: =IF('Farm Info'!B21 = "Corn Silage", "*ERROR* Corn Silage Cannot Be Analyzed in CCR*",'Farm Info'!B21) -> 0 | C30: ='Farm Info'!C21 -> 0 | D30: ='Farm Info'!$D21 -> 0 | E30: =IFERROR(VLOOKUP(B30,Prices!$B$116:$E$121,4,FALSE),0) -> 0 | F30: =E30*D30 -> 0
B31: =IF('Farm Info'!B22 = "Corn Silage", "*ERROR* Corn Silage Cannot Be Analyzed in CCR*",'Farm Info'!B22) -> 0 | C31: ='Farm Info'!C22 -> 0 | D31: ='Farm Info'!$D22 -> 0 | E31: =IFERROR(VLOOKUP(B31,Prices!$B$116:$E$121,4,FALSE),0) -> 0 | F31: =E31*D31 -> 0
B32: =IF('Farm Info'!B23 = "Corn Silage", "*ERROR* Corn Silage Cannot Be Analyzed in CCR*",'Farm Info'!B23) -> 0 | C32: ='Farm Info'!C23 -> 0 | D32: ='Farm Info'!$D23 -> 0 | E32: =IFERROR(VLOOKUP(B32,Prices!$B$116:$E$121,4,FALSE),0) -> 0 | F32: 0
B33: Weighted Average Annual | E33: =IFERROR(F33/SUM(D29:D32),0) -> 0 | F33: =SUM(F29:F32) -> 0
B36: CURRENT ROTATION
B37: Acreage in Rotation: | C37: ='Farm Info'!D31 -> 0
B38: Cash Crop | C38: # Years in Rotation | D38: Acres | E38: Net Income Per Acre | F38: Net Income All Acres
B39: =IF('Farm Info'!B27 = "Corn Silage", "*ERROR* Corn Silage Cannot Be Analyzed in CCR*",'Farm Info'!B27) -> 0 | C39: ='Farm Info'!C27 -> 0 | D39: ='Farm Info'!$D27 -> 0 | E39: =IFERROR(VLOOKUP(B39,Prices!$B$116:$E$121,4,FALSE),0) -> 0 | F39: =E39*D39 -> 0
B40: =IF('Farm Info'!B28 = "Corn Silage", "*ERROR* Corn Silage Cannot Be Analyzed in CCR*",'Farm Info'!B28) -> 0 | C40: ='Farm Info'!C28 -> 0 | D40: ='Farm Info'!$D28 -> 0 | E40: =IFERROR(VLOOKUP(B40,Prices!$B$116:$E$121,4,FALSE),0) -> 0 | F40: =E40*D40 -> 0
B41: =IF('Farm Info'!B29 = "Corn Silage", "*ERROR* Corn Silage Cannot Be Analyzed in CCR*",'Farm Info'!B29) -> 0 | C41: ='Farm Info'!C29 -> 0 | D41: ='Farm Info'!$D29 -> 0 | E41: =IFERROR(VLOOKUP(B41,Prices!$B$116:$E$121,4,FALSE),0) -> 0 | F41: =E41*D41 -> 0
B42: =IF('Farm Info'!B30 = "Corn Silage", "*ERROR* Corn Silage Cannot Be Analyzed in CCR*",'Farm Info'!B30) -> 0 | C42: ='Farm Info'!C30 -> 0 | D42: ='Farm Info'!$D30 -> 0 | E42: =IFERROR(VLOOKUP(B42,Prices!$B$116:$E$121,4,FALSE),0) -> 0 | F42: 0
B43: Weighted Average Annual | E43: =IFERROR(F43/SUM(D39:D42),0) -> 0 | F43: =SUM(F39:F42) -> 0
E45: Per Acre | F45: All Acres
B46: Change in Net Income | E46: =IF(E33>0,E43-E33,0) -> 0 | F46: =IF(F33>0,F43-F33,0) -> 0
B47: Click here for Net Income data source
B50: Yield Impacts due to Change in Crop Rotation
B51: Is this an organic farm? (Y/N)
B52: TIPS: (1) User must answer above question "Is this an organic farm?" or the table will not calculate correctly. (2) User must enter their benchmark average yield (unit/acre) AND % Yield Increase/Decrease Due to CCR OR Change in Ave. Yield Due to CCR (+/- Unit/Ac). If user enters both of the latter, calculation will use % yield change value. (3) Benchmark average yield should reflect the average yield under benchmark practices before CCR adoption.
B53: Cash Crop | C53: =B39 -> 0 | D53: =B40 -> 0 | E53: =B41 -> 0 | F53: =B42 -> 0
B54: Unit | C54: =IFERROR(VLOOKUP(C53,Prices!$B$70:$C$76,2,FALSE),0) -> 0 | D54: =IFERROR(VLOOKUP(D53,Prices!$B$70:$C$76,2,FALSE),0) -> 0 | E54: =IFERROR(VLOOKUP(E53,Prices!$B$70:$C$76,2,FALSE),0) -> 0 | F54: =IFERROR(VLOOKUP(F53,Prices!$B$70:$C$76,2,FALSE),0) -> 0
B55: Benchmark Average Yield (Unit/Acre)
B56: AND
B57: % Yield Increase/Decrease Due To CCR(+/- %)
B58: Calculated Change in Ave. Yield Due to CCR (+/- Unit/Ac) | C58: =C55*C57 -> 0 | D58: =D55*D57 -> 0 | E58: 0 | F58: 0
B59: AND/OR
B60: Change in Ave. Yield Due to CCR (+/- Unit/Ac)
B61: HIDDEN: Calculated Current Ave. Yield Due to Changing NM (Unit/Ac) [used in "Current Crop Value Per Acre"] | C61: =IF(C58<>0,C55+C58,C55+C60) -> 0 | D61: =IF(D58<>0,D55+D58,D55+D60) -> 0 | E61: 0 | F61: 0
B63: Standard Crop Price per Unit1 | C63: =IFERROR(IF($C$51="Y",VLOOKUP(C53,Prices!$B$83:$G$90,5,FALSE),VLOOKUP(C53,Prices!$B$70:$F$76,5,FALSE)),0) -> 0 | D63: =IFERROR(IF($C$51="Y",VLOOKUP(D53,Prices!$B$83:$G$90,5,FALSE),VLOOKUP(D53,Prices!$B$70:$F$76,5,FALSE)),0) -> 0 | E63: =IFERROR(IF($C$51="Y",VLOOKUP(E53,Prices!$B$83:$G$90,5,FALSE),VLOOKUP(E53,Prices!$B$70:$F$76,5,FALSE)),0) -> 0 | F63: =IFERROR(IF($C$51="Y",VLOOKUP(F53,Prices!$B$83:$G$90,5,FALSE),VLOOKUP(F53,Prices!$B$70:$F$76,5,FALSE)),0) -> 0
B64: Farmer's Crop Price per Unit (Optional) | C64: =IFERROR(VLOOKUP(C53,'Farm Info'!$B$69:$D$75,3,FALSE),0) -> 0 | D64: =IFERROR(VLOOKUP(D53,'Farm Info'!$B$69:$D$75,3,FALSE),0) -> 0 | E64: =IFERROR(VLOOKUP(E53,'Farm Info'!$B$69:$D$75,3,FALSE),0) -> 0 | F64: =IFERROR(VLOOKUP(F53,'Farm Info'!$B$69:$D$75,3,FALSE),0) -> 0
B65: Benchmark Crop Acreage | C65: =IFERROR(IF(C53<>0, VLOOKUP(C53,'Farm Info'!$B$20:$D$23, 3, FALSE), 0),0) -> 0 | D65: =IFERROR(IF(D53<>0, VLOOKUP(D53,'Farm Info'!$B$20:$D$23, 3, FALSE), 0),0) -> 0 | E65: =IFERROR(IF(E53<>0, VLOOKUP(E53,'Farm Info'!$B$20:$D$23, 3, FALSE), 0),0) -> 0 | F65: =IFERROR(IF(F53<>0, VLOOKUP(F53,'Farm Info'!$B$20:$D$23, 3, FALSE), 0),0) -> 0
B66: Current Crop Acreage | C66: =IFERROR(IF(C53<>0,VLOOKUP(C53,'Farm Info'!$B$27:$D$30, 3, FALSE), 0),0) -> 0 | D66: =IFERROR(IF(D53<>0,VLOOKUP(D53,'Farm Info'!$B$27:$D$30, 3, FALSE), 0),0) -> 0 | E66: =IFERROR(IF(E53<>0,VLOOKUP(E53,'Farm Info'!$B$27:$D$30, 3, FALSE), 0),0) -> 0 | F66: =IFERROR(IF(F53<>0,VLOOKUP(F53,'Farm Info'!$B$27:$D$30, 3, FALSE), 0),0) -> 0
B67: Benchmark Crop Value Per Acre | C67: =IF(C55>0,(C55*IF(C64>0,C64,C63)),0) -> 0 | D67: =IF(D55>0,(D55*IF(D64>0,D64,D63)),0) -> 0 | E67: =IF(E55>0,(E55*IF(E64>0,E64,E63)),0) -> 0 | F67: =IF(F55>0,(F55*IF(F64>0,F64,F63)),0) -> 0
B68: Current Crop Value Per Acre | C68: =IF(C61>0,(C61*IF(C64>0,C64,C63)),0) -> 0 | D68: =IF(D61>0,(D61*IF(D64>0,D64,D63)),0) -> 0 | E68: 0 | F68: 0
B70: Total Change by Crop ($) | C70: =(C66*C68)-(C65*C67) -> 0 | D70: =(D66*D68)-(D65*D67) -> 0 | E70: =(E66*E68)-(E65*E67) -> 0 | F70: =(F66*F68)-(F65*F67) -> 0
B71: Per Acre Change by Crop ($/Ac) | C71: =IF(C70<>0,C70/C66,0) -> 0 | D71: =IF(D70<>0,D70/D66,0) -> 0 | E71: =IF(E70<>0,E70/E66,0) -> 0 | F71: =IF(F70<>0,F70/F66,0) -> 0
B72: Study Area Total Change ($) | F72: =SUM(C70:F70) -> 0
B73: Study Area Per Acre Change (Weighted Average, $/Ac) | F73: =IFERROR(F72/SUM(C66:F66),0) -> 0
B74: 1 National average non-organic or organic price.
B75: Click here for crop price data sources
B78: Impact of Change in Crop Rotation on Primary Nutrients Used
B79: TIPS: (1) Enter negative values to indicate savings and positive values to indicate an increase in cost. (2) Only enter changes in primary nutrients due to adoption of conservation crop rotation. (3) In this table, the change in nutrients applied will be applied to the Current Acres that the crop is in rotation.
B80: Cash Crop | C80: =IFERROR($B$39,0) -> 0 | D80: =IFERROR($B$40,0) -> 0 | E80: =IFERROR($B$41,0) -> 0 | F80: =IFERROR($B$42,0) -> 0
B81: Nitrogen (+/- Lbs/Ac)
B82: Change in Nitrogen Cost/Ac | C82: =IF('Farm Info'!$D64>0,'Farm Info'!$D64*C81,C81*Prices!$D$106) -> 0 | D82: =IF('Farm Info'!$D64>0,'Farm Info'!$D64*D81,D81*Prices!$D$106) -> 0 | E82: =IF('Farm Info'!$D64>0,'Farm Info'!$D64*E81,E81*Prices!$D$106) -> 0 | F82: =IF('Farm Info'!$D64>0,'Farm Info'!$D64*F81,F81*Prices!$D$106) -> 0
B83: Phosphorus (+/- Lbs/Ac)
B84: Change in Phosphorus Cost/Ac | C84: =IF('Farm Info'!$D65>0,'Farm Info'!$D65*C83,C83*Prices!$D$107) -> 0 | D84: =IF('Farm Info'!$D65>0,'Farm Info'!$D65*D83,D83*Prices!$D$107) -> 0 | E84: =IF('Farm Info'!$D65>0,'Farm Info'!$D65*E83,E83*Prices!$D$107) -> 0 | F84: =IF('Farm Info'!$D65>0,'Farm Info'!$D65*F83,F83*Prices!$D$107) -> 0
B85: Potassium (+/- Lbs/Ac)
B86: Change in Potassium Cost/Ac | C86: =IF('Farm Info'!$D66>0,'Farm Info'!$D66*C85, C85*Prices!$D$108) -> 0 | D86: =IF('Farm Info'!$D66>0,'Farm Info'!$D66*D85, D85*Prices!$D$108) -> 0 | E86: =IF('Farm Info'!$D66>0,'Farm Info'!$D66*E85, E85*Prices!$D$108) -> 0 | F86: =IF('Farm Info'!$D66>0,'Farm Info'!$D66*F85, F85*Prices!$D$108) -> 0
B87: Per Acre Change by Crop ($/Ac) | C87: =C82+C84+C86 -> 0 | D87: =D82+D84+D86 -> 0 | E87: =E82+E84+E86 -> 0 | F87: =F82+F84+F86 -> 0
B88: Acres | C88: =IF(C87<>0,D$39,0) -> 0 | D88: =IF(D87<>0,D$40,0) -> 0 | E88: =IF(E87<>0,D$41,0) -> 0 | F88: =IF(F87<>0,D$42,0) -> 0
B89: Total Change by Crop ($) | C89: =C88*C87 -> 0 | D89: =D88*D87 -> 0 | E89: =E88*E87 -> 0 | F89: =F88*F87 -> 0
B91: Study Area Total Change ($) | F91: =IFERROR(SUM(C89:F89),0) -> 0
B92: Study Area Per Acre Change (Weighted Average, $/Ac) | F92: =IFERROR(F91/SUM(C88:F88), 0) -> 0
B93: Click here for nutrient prices data sources
B96: Impact of Change in Crop Rotation on Pesticides Used
B97: TIPS: (1) Enter negative values to indicate savings and positive values to indicate an increase in cost. (2) Only enter changes in primary nutrients due to adoption of conservation crop rotation. (3) In this table, the change in nutrients applied will be applied to the Current Acres that the crop is in rotation.
B98: Cash Crop | C98: =IFERROR($B$39,0) -> 0 | D98: =IFERROR($B$40,0) -> 0 | E98: =IFERROR($B$41,0) -> 0 | F98: =IFERROR($B$42,0) -> 0
B99: Herbicide Cost/Ac
B100: Herbicide % Change (+/-)
B101: Herbicide Change in Cost/Ac | C101: =C100*C99 -> 0 | D101: =D100*D99 -> 0 | E101: =E100*E99 -> 0 | F101: =F100*F99 -> 0
B102: Insecticide Cost/Ac
B103: Insecticide % Change (+/-)
B104: Insecticide Change in Cost/Ac | C104: =C103*C102 -> 0 | D104: =D103*D102 -> 0 | E104: =E103*E102 -> 0 | F104: =F103*F102 -> 0
B105: Fungicide Cost/Ac
B106: Fungicide % Change (+/-)
B107: Fungicide Change in Cost/Ac | C107: =C106*C105 -> 0 | D107: =D106*D105 -> 0 | E107: =E106*E105 -> 0 | F107: =F106*F105 -> 0
B108: Per Acre Change by Crop ($/Ac) | C108: =C107+C104+C101 -> 0 | D108: =D107+D104+D101 -> 0 | E108: =E107+E104+E101 -> 0 | F108: =F107+F104+F101 -> 0
B109: Acres | C109: =IF(C108<>0,D$39,0) -> 0 | D109: =IF(D108<>0,D$40,0) -> 0 | E109: =IF(E108<>0,D$41,0) -> 0 | F109: =IF(F108<>0,D$42,0) -> 0
B110: Total Change by Crop ($) | C110: =C109*C108 -> 0 | D110: =D109*D108 -> 0 | E110: =E109*E108 -> 0 | F110: =F109*F108 -> 0
B112: Study Area Total Change ($) | F112: =IFERROR(SUM(C110:F110),0) -> 0
B113: Study Area Per Acre Change (Weighted Average, $/Ac) | F113: =IFERROR(F112/SUM(C109:F109), 0) -> 0
B116: Value of Decreased Erosion due to Change in Crop Rotation
B117: TIPS: (1) Only changes in benchmark versus current erosion and repair costs here if a change in crop rotation is the only soil health practice analyzed. (2) Number of Acres is the area where the reduction in erosion was observed. This could be the entire area where you've changed your Crop Rotation in cases where slopes are relatively uniform throughout or, if the area is comprised of a combination of relatively flat areas and steeper ground, the acreage could be the portion encompassed by the steeper ground. (3) Options for Reduced Erosion: a. Enter tons of reduced erosion results (Tons/Acre/Year) modeled using any sediment reduction tool, such as the Nutrient Tracking Tool; b. Enter the erosion reduction value from RUSLE-2 analysis undertaken by your advisor; or c. Any value that seems reasonable based on soil including zero. (4) Total Annual Change in Repair Cost should only include changes in costs for repairs that occur within the Study Area. (5) Enter a negative value if cost of repairs has decreased and a positive value if cost of repairs increased.
B118: Retained Nutrients Benefits | C118: Amounts
B119: Value of N and P per Ton of Soil | C119: =Prices!F98 -> 2.2904
B120: Number of Acres1
B121: Tons Reduced Erosion (Tons/Acre/Year)
B122: Total Value ($/Year) | C122: =C119*C120*C121 -> 0
B123: AND/OR
B124: Reduced Mechanical Erosion Repair due to CCR
B125: Total Annual Change in Repair Cost ($/Year)
B127: Total Value/Acre of Decreased Erosion | C127: =IFERROR((C122+(-1*C125))/'Farm Info'!D31,0) -> 0
B128: 1 Do not exceed Study Area acreage: | C128: ='Farm Info'!D31 -> 0
B129: Click here for value of N and P per Ton of Soil data sources
B132: Annual Financial Assistance Payments
B133: Note: Any financial assistance payments listed are not included in the partial budget analysis because cost-share is temporary and not received by all, but can be noted in the footnote of PBA table.
B135: Source | C135: $/Ac/Yr | D135: Acres Funded | E135: Total ($) | F135: Weighted Average ($/Ac)
E136: =D136*C136 -> 0
E137: =D137*C137 -> 0
B138: Total Received | D138: =SUM(D136:D137) -> 0 | E138: =SUM(E136:E137) -> 0 | F138: =IFERROR(E138/D138,0) -> 0
B141: Other Benefits and Costs due to a Change in Crop Rotation
B142: TIPS: (1) Description should detail the benefits, costs, or changes in activities experienced and responsible for change in Per Acre Value. (2) Per Acre Value should be positive for BOTH Positive Effects/Decreased Costs and Negative Effects/Increased Costs.
B143: Positive Effects/Decreased Costs (enter positive Per Acre Values)
B144: Description of Other Benefit(s) | C144: $/Ac | D144: Number of Acres Affected | E144: Total Benefit
E145: =D145*C145 -> 0
E146: 0
E147: 0
B149: Negative Effects/Increased Costs (enter positive Per Acre Values)
B150: Description of Other Cost(s) | C150: $/Ac | D150: Number of Acres Affected | E150: Total Cost
E151: =D151*C151 -> 0
E152: =D152*C152 -> 0
E153: 0

Sheet Partial Budget Analysis
B1: PARTIAL BUDGET ANALYSIS
B3: ABOUT THIS TAB:
B4: DO NOT EDIT THIS TAB: This tab and the table within should not be edited. Create your final PBA table in the subsequent tab called "Editable PBA" so if any mistakes are made you have this tab to reference and save results. The Partial Budget Analysis tab autopopulates and organizes the effects calculated on the preceeding tabs into four quadrants: (1) Increase in Income; (2) Decrease in Cost; (3) Decrease in Income; and (4) Increase in Cost Positive effects are displayed on the left and negative effects on the right. Effects are sorted automatically into the four quadrants based on their value. Columns A and K display the effect category from previous tabs assigned to the adjacent cell. NRCS practice codes are used instead of practice names as follows: 329 represents tillage changes, 340 is Cover Crops, 590 is Nutrient Management, and 328 is Conservation Crop Rotation. The table can house every possible effect from the preceeding tabs. This means that most of the rows will not be populated. Totals are summarized at the bottom of the table for the entire Study Area. These totals are used to calculate the net change in income on a per acre basis and for the Study Area. The table also calculates the return on investment. All values are on an annual basis. Suggested footnotes appear at the bottom of the table followed by a summary of financial assistance payments received, if any. This table should not be edited here, but on the subsequent tab called "Editable PBA".
B21: NOTE: Farmer Name and Watershed Name are populated using information entered on the Farm Info tab.
B22: Farmer Name
B23: ='Farm Info'!B9 -> 0
B24: Watershed Name
B25: ='Farm Info'!B13 -> 0
B26: WARNING: DO NOT attempt to edit the table as it contains complex formulas. The user risks losing the calculated effect information if the formulas are broken. The "Editable PBA" tab is identical to the Partial Budget Analysis tab and can be used for producing a version for publication.
B28: ="Economic Effects of Soil Health Practices on "& 'Farm Info'!B11& " (2021)" -> Economic Effects of Soil Health Practices on (2021)
B29: Increases in Net Income | G29: Decreases in Net Income
B30: Increase in Income | G30: Decrease in Income
B31: Item | C31: Per Acre | D31: Acres | E31: Total | G31: Item | H31: Per Acre | I31: Acres | J31: Total
A32: 329 Yield | B32: =IF(Tillage!F141>0,Tillage!B109,"NA") -> NA | C32: =IFERROR(IF(Tillage!F141>0,Tillage!F141,0),0) -> 0 | D32: =IF(Tillage!F141>0,SUM(Tillage!C134:F134),0) -> 0 | E32: =D32*C32 -> 0 | G32: =IF(Tillage!F141<0,Tillage!B109,"NA") -> NA | H32: =IF(Tillage!F141<0,Tillage!F141*-1,0) -> 0 | I32: =IF(Tillage!F141<0,SUM(Tillage!C134:F134),0) -> 0 | J32: =I32*H32 -> 0 | K32: 329 Yield
A33: 340 Yield | B33: =IF('Cover Crops'!F53>0,'Cover Crops'!B30,"NA") -> NA | C33: =IF('Cover Crops'!F53>0,'Cover Crops'!F53,0) -> 0 | D33: =IF('Cover Crops'!F53>0,SUM('Cover Crops'!C46:F46),0) -> 0 | E33: =D33*C33 -> 0 | G33: =IF('Cover Crops'!F53<0,'Cover Crops'!B30,"NA") -> NA | H33: =IF('Cover Crops'!F53<0,'Cover Crops'!F53*-1,0) -> 0 | I33: =IF('Cover Crops'!F53<0,SUM('Cover Crops'!C46:F46),0) -> 0 | J33: =I33*H33 -> 0 | K33: 340 Yield
A34: 340 Graz Y | B34: =IF('Cover Crops'!C174>0,'Cover Crops'!B169,"NA") -> NA | C34: =IF('Cover Crops'!C174>0,'Cover Crops'!C174,0) -> 0 | D34: =IF('Cover Crops'!C174>0,'Cover Crops'!C170,0) -> 0 | E34: =D34*C34 -> 0 | G34: =IF('Nutrient Mgt.'!F144<0,'Nutrient Mgt.'!B113,"NA") -> NA | H34: =IFERROR(IF('Nutrient Mgt.'!F144<0,'Nutrient Mgt.'!F144*-1,0),0) -> 0 | I34: =IF('Nutrient Mgt.'!F144<0,SUM('Nutrient Mgt.'!C137:F137),0) -> 0 | J34: =I34*H34 -> 0 | K34: 590 Yield
A35: 340 Graz Y | B35: =IF('Cover Crops'!H172>0,'Cover Crops'!E167,"NA") -> NA | C35: =IF('Cover Crops'!H172>0,'Cover Crops'!H172,0) -> 0 | D35: =IF('Cover Crops'!H172>0,'Cover Crops'!H168,0) -> 0 | E35: 0 | G35: =IF('ONLY CCR'!E46<0,'ONLY CCR'!B24,"NA") -> NA | H35: =IF('ONLY CCR'!E46<0,'ONLY CCR'!E46*-1,0) -> 0 | I35: =IF('ONLY CCR'!E46<0,SUM('ONLY CCR'!D39:D42),0) -> 0 | J35: =I35*H35 -> 0 | K35: 328 Net Income
A36: 340 Graz Y | B36: =IF('Cover Crops'!H162>0,'Cover Crops'!E157,"NA") -> NA | C36: =IF('Cover Crops'!H162>0,'Cover Crops'!H162,0) -> 0 | D36: =IF('Cover Crops'!H163>0,'Cover Crops'!H158,0) -> 0 | E36: 0 | G36: =IF('ONLY CCR'!F73<0,'ONLY CCR'!B50,"NA") -> NA | H36: =IF('ONLY CCR'!F73<0,'ONLY CCR'!F73*-1,0) -> 0 | I36: =IFERROR(IF('ONLY CCR'!F73<0,SUM('ONLY CCR'!C66:F66),0),0) -> 0 | J36: =I36*H36 -> 0 | K36: 328 Yield
A37: 340 Hay Y | B37: =IF('Cover Crops'!C182>0,'Cover Crops'!B182,"NA") -> NA | C37: =IF('Cover Crops'!C182>0,'Cover Crops'!C182,0) -> 0 | D37: =IF('Cover Crops'!C180>0,'Cover Crops'!C180,0) -> 0 | E37: 0 | G37: =IF('Combined Practice Effects'!F32<0,'Combined Practice Effects'!B9,"NA") -> NA | H37: =IF('Combined Practice Effects'!F32<0,'Combined Practice Effects'!F32*-1,0) -> 0 | I37: =IF('Combined Practice Effects'!F32<0,SUM('Combined Practice Effects'!C25:F25),0) -> 0 | J37: =I37*H37 -> 0 | K37: All Practices
A38: 590 Yield | B38: =IF('Nutrient Mgt.'!F144>0,'Nutrient Mgt.'!B113,"NA") -> NA | C38: =IF('Nutrient Mgt.'!F144>0,'Nutrient Mgt.'!F144,0) -> 0 | D38: =IF('Nutrient Mgt.'!F144>0,SUM('Nutrient Mgt.'!C137:F137),0) -> 0 | E38: 0
A39: 328 Net Income | B39: =IF('ONLY CCR'!E46>0,'ONLY CCR'!B24,"NA") -> NA | C39: =IF('ONLY CCR'!E46>0,'ONLY CCR'!E46,0) -> 0 | D39: =IF('ONLY CCR'!E46>0,SUM('ONLY CCR'!D39:D42),0) -> 0 | E39: =D39*C39 -> 0
A40: 328 Yield | B40: =IFERROR(IF('ONLY CCR'!F46>0,'ONLY CCR'!B50,"NA"),0) -> NA | C40: =IFERROR(IF('ONLY CCR'!F73>0,'ONLY CCR'!F73,0),0) -> 0 | D40: =IFERROR(IF('ONLY CCR'!F73>0,SUM('ONLY CCR'!C66:F66),0),0) -> 0 | E40: 0
A41: All Practices | B41: =IF('Combined Practice Effects'!F32>0,'Combined Practice Effects'!B9,"NA") -> NA | C41: =IF('Combined Practice Effects'!F32>0,'Combined Practice Effects'!F32,0) -> 0 | D41: =IF('Combined Practice Effects'!F32>0,SUM('Combined Practice Effects'!C25:F25),0) -> 0 | E41: =D41*C41 -> 0
B42: Total Increased Income | E42: =SUM(E32:E41) -> 0 | G42: Total Decreased Income | J42: =SUM(J32:J41) -> 0
B43: Decrease in Cost | G43: Increase in Cost
B44: Item | C44: Per Acre | D44: Acres | E44: Total | G44: Item | H44: Per Acre | I44: Acres | J44: Total
A45: 329 Machinery | B45: =IF(Tillage!C105<0,Tillage!B96,"NA") -> NA | C45: =IF(Tillage!C105<0,Tillage!C105*-1,0) -> 0 | D45: =IF(Tillage!C105<0,Tillage!C23+Tillage!C44+Tillage!C65+Tillage!C86,0) -> 0 | E45: =D45*C45 -> 0 | G45: =IF(Tillage!C105>0,Tillage!B96,"NA") -> NA | H45: =IF(Tillage!C105>0,Tillage!C105,0) -> 0 | I45: =IF(Tillage!C105>0,Tillage!C14+Tillage!C35+Tillage!C56+Tillage!C77,0) -> 0 | J45: =I45*H45 -> 0 | K45: 329 Machinery
A46: 329 Nutrients | B46: =IF(Tillage!F164<0,Tillage!B146,"NA") -> NA | C46: =IF(Tillage!F164<0,Tillage!F164*-1,0) -> 0 | D46: =IF(Tillage!F164<0,SUM(Tillage!C160:F160),0) -> 0 | E46: =D46*C46 -> 0 | G46: =IF(Tillage!F164>0,Tillage!B146,"NA") -> NA | H46: =IF(Tillage!F164>0,Tillage!F164,0) -> 0 | I46: =IF(Tillage!F164>0,SUM(Tillage!C160:F160),0) -> 0 | J46: 0 | K46: 329 Nutrients
A47: 329 Pesticides | B47: =IF(Tillage!F190<0,Tillage!B168,"NA") -> NA | C47: =IF(Tillage!F190<0,Tillage!F190*-1,0) -> 0 | D47: =IF(Tillage!F190<0,SUM(Tillage!C186:F186),0) -> 0 | E47: 0 | G47: =IF(Tillage!F190>0,Tillage!B168,"NA") -> NA | H47: =IF(Tillage!F190>0,Tillage!F190,0) -> 0 | I47: =IF(Tillage!F190>0,SUM(Tillage!C186:F186),0) -> 0 | J47: 0 | K47: 329 Pesticides
A48: 329 Erosion | B48: =IF(Tillage!C215>0,Tillage!B193,"NA") -> NA | C48: =IF(Tillage!C215>0,Tillage!C215,0) -> 0 | D48: =IF(Tillage!C215>0,'Farm Info'!D31,0) -> 0 | E48: =D48*C48 -> 0 | G48: =IF('Farm Info'!C49>0,'Farm Info'!B49,"NA") -> NA | J48: =IF('Farm Info'!C49>0,'Farm Info'!D49,0) -> 0 | K48: 329 Education
A49: 340 Nutrients | B49: =IF('Cover Crops'!F72<0,'Cover Crops'!$B$58,"NA") -> NA | C49: =IF('Cover Crops'!F72<0,'Cover Crops'!F72*-1,0) -> 0 | D49: =IF('Cover Crops'!F72<0,SUM('Cover Crops'!C68:F68),0) -> 0 | E49: 0 | G49: =IF('Cover Crops'!F28>0,'Cover Crops'!B13,"NA") -> NA | H49: =IF('Cover Crops'!F28>0,'Cover Crops'!F28,0) -> 0 | I49: =IF('Cover Crops'!F28>0,SUM('Cover Crops'!C19:F19),0) -> 0 | J49: 0 | K49: 340 Costs
A50: 340 Pesticides | B50: =IF('Cover Crops'!F99<0,'Cover Crops'!$B76,"NA") -> NA | C50: =IF('Cover Crops'!F99<0,'Cover Crops'!F99*-1,0) -> 0 | D50: =IF('Cover Crops'!F99<0,SUM('Cover Crops'!C95:F95),0) -> 0 | E50: 0 | G50: =IF('Cover Crops'!F72>0,'Cover Crops'!$B$58,"NA") -> NA | H50: =IF('Cover Crops'!F72>0,'Cover Crops'!F72,0) -> 0 | I50: =IF('Cover Crops'!F72>0,SUM('Cover Crops'!C68:F68),0) -> 0 | J50: 0 | K50: 340 Nutrients
A51: 340 Erosion | B51: =IF('Cover Crops'!C125>0,'Cover Crops'!B102,"NA") -> NA | C51: =IF('Cover Crops'!C125>0,'Cover Crops'!C125,0) -> 0 | D51: =IF('Cover Crops'!C125>0,'Farm Info'!D31,0) -> 0 | E51: 0 | G51: =IF('Cover Crops'!F99>0,'Cover Crops'!$B76,"NA") -> NA | H51: =IF('Cover Crops'!F99>0,'Cover Crops'!F99,0) -> 0 | I51: =IF('Cover Crops'!F99>0,SUM('Cover Crops'!C95:F95),0) -> 0 | J51: 0 | K51: 340 Pesticides
A52: 590 Machinery | B52: =IF('Nutrient Mgt.'!C109<0,'Nutrient Mgt.'!B100,"NA") -> NA | C52: =IF('Nutrient Mgt.'!C109<0,'Nutrient Mgt.'!C109*-1,0) -> 0 | D52: =IF('Nutrient Mgt.'!C109<0,('Nutrient Mgt.'!C26+'Nutrient Mgt.'!C45+'Nutrient Mgt.'!C64+'Nutrient Mgt.'!C83),0) -> 0 | E52: 0 | G52: =IF('Cover Crops'!C163>0,'Cover Crops'!B166,"NA") -> NA | H52: =IF('Cover Crops'!C166>0,'Cover Crops'!C166,0) -> 0 | I52: =IF('Cover Crops'!C166>0,('Cover Crops'!C170+'Cover Crops'!H158+'Cover Crops'!H168),0) -> 0 | J52: 0 | K52: 340 Grazing Infrastructure
A53: 590 Nutrients | B53: =IF('Nutrient Mgt.'!F168<0,'Nutrient Mgt.'!B149,"NA") -> NA | C53: =IF('Nutrient Mgt.'!F168<0,'Nutrient Mgt.'!F168*-1,0) -> 0 | D53: =IF('Nutrient Mgt.'!F168<0,SUM('Nutrient Mgt.'!C164:F164),0) -> 0 | E53: 0 | G53: =IF('Cover Crops'!C183>0,'Cover Crops'!B183,"NA") -> NA | H53: =IF('Cover Crops'!C183>0,'Cover Crops'!C183,0) -> 0 | I53: =IF('Cover Crops'!C183>0,'Cover Crops'!C180,0) -> 0 | J53: 0 | K53: 340 Haying Harvest
A54: 590 Pesticides | B54: =IF('Nutrient Mgt.'!F194<0,'Nutrient Mgt.'!B172,"NA") -> NA | C54: =IF('Nutrient Mgt.'!F194<0,'Nutrient Mgt.'!F194*-1,0) -> 0 | D54: =IF('Nutrient Mgt.'!F194<0,SUM('Nutrient Mgt.'!C190:F190),0) -> 0 | E54: 0 | G54: =IF('Farm Info'!C50>0,'Farm Info'!B50,"NA") -> NA | J54: =IF('Farm Info'!C50>0,'Farm Info'!D50,0) -> 0 | K54: 340 Education
A55: 328 Nutrients | B55: =IF('ONLY CCR'!F92<0,'ONLY CCR'!B78,"NA") -> NA | C55: =IF('ONLY CCR'!F92<0,'ONLY CCR'!F92*-1,0) -> 0 | D55: =IF('ONLY CCR'!F92<0,SUM('ONLY CCR'!C88:F88),0) -> 0 | E55: 0 | G55: =IF('Nutrient Mgt.'!C109>0,'Nutrient Mgt.'!B100,"NA") -> NA | H55: =IF('Nutrient Mgt.'!C109>0,'Nutrient Mgt.'!C109,0) -> 0 | I55: =IF('Nutrient Mgt.'!C109>0,('Nutrient Mgt.'!C26+'Nutrient Mgt.'!C45+'Nutrient Mgt.'!C64+'Nutrient Mgt.'!C83),0) -> 0 | J55: 0 | K55: 590 Machinery
A56: 328 Pesticides | B56: =IF('ONLY CCR'!F113<0,'ONLY CCR'!B96,"NA") -> NA | C56: =IF('ONLY CCR'!F113<0,'ONLY CCR'!F113*-1,0) -> 0 | D56: =IF('ONLY CCR'!F113<0,SUM('ONLY CCR'!C109:F109),0) -> 0 | E56: 0 | G56: =IF('Nutrient Mgt.'!F168>0,'Nutrient Mgt.'!B149,"NA") -> NA | H56: =IF('Nutrient Mgt.'!F168>0,'Nutrient Mgt.'!F168,0) -> 0 | I56: =IF('Nutrient Mgt.'!F168>0,SUM('Nutrient Mgt.'!C164:F164),0) -> 0 | J56: =I56*H56 -> 0 | K56: 590 Nutrients
A57: 328 Erosion | B57: =IF('ONLY CCR'!C127>0,'ONLY CCR'!B116,"NA") -> NA | C57: =IF('ONLY CCR'!C127>0,'ONLY CCR'!C127,0) -> 0 | D57: =IF('ONLY CCR'!C127>0,'ONLY CCR'!C37,0) -> 0 | E57: 0 | G57: =IF('Nutrient Mgt.'!F194>0,'Nutrient Mgt.'!B172,"NA") -> NA | H57: =IF('Nutrient Mgt.'!F194>0,'Nutrient Mgt.'!F194,0) -> 0 | I57: =IF('Nutrient Mgt.'!F194>0,SUM('Nutrient Mgt.'!C190:F190),0) -> 0 | J57: =I57*H57 -> 0 | K57: 590 Pesticides
A58: 329 PosEff 1 | B58: =IF(Tillage!C236>0,Tillage!B236,"NA") -> NA | C58: =IF(Tillage!C236>0,Tillage!C236,0) -> 0 | D58: =IF(Tillage!C236>0,Tillage!D236,0) -> 0 | E58: =D58*C58 -> 0 | G58: =IF('Farm Info'!C51>0,'Farm Info'!B51,"NA") -> NA | J58: =IF('Farm Info'!C51>0,'Farm Info'!D51, 0) -> 0 | K58: 590 Education
A59: 329 PosEff2 | B59: =IF(Tillage!C237>0,Tillage!B237,"NA") -> NA | C59: =IF(Tillage!C237>0,Tillage!C237,0) -> 0 | D59: =IF(Tillage!C237>0,Tillage!D237,0) -> 0 | E59: 0 | G59: =IF('ONLY CCR'!F92>0,'ONLY CCR'!B78,"NA") -> NA | H59: =IF('ONLY CCR'!F92>0,'ONLY CCR'!F92,0) -> 0 | I59: =IF('ONLY CCR'!F92>0,SUM('ONLY CCR'!C88:F88),0) -> 0 | J59: =I59*H59 -> 0 | K59: 328 Nutrients
A60: 329 PosEff3 | B60: =IF(Tillage!C238>0,Tillage!B238,"NA") -> NA | C60: =IF(Tillage!C238>0,Tillage!C238,0) -> 0 | D60: =IF(Tillage!C238>0,Tillage!D238,0) -> 0 | E60: 0 | G60: =IF('ONLY CCR'!F113>0,'ONLY CCR'!B96,"NA") -> NA | H60: =IF('ONLY CCR'!F113>0,'ONLY CCR'!F113,0) -> 0 | I60: =IF('ONLY CCR'!F113>0,SUM('ONLY CCR'!C109:F109),0) -> 0 | J60: 0 | K60: 328 Pesticides
A61: 340PosEff1 | B61: =IF('Cover Crops'!C143>0,'Cover Crops'!B143,"NA") -> NA | C61: =IF('Cover Crops'!C143>0,'Cover Crops'!C143,0) -> 0 | D61: =IF('Cover Crops'!C143>0,'Cover Crops'!D143,0) -> 0 | E61: 0 | G61: =IF('Farm Info'!C52>0,'Farm Info'!B52,"NA") -> NA | J61: =IF('Farm Info'!C52>0,'Farm Info'!D52,0) -> 0 | K61: 328 Education
A62: 340PosEff2 | B62: =IF('Cover Crops'!C144>0,'Cover Crops'!B144,"NA") -> NA | C62: =IF('Cover Crops'!C144>0,'Cover Crops'!C144,0) -> 0 | D62: =IF('Cover Crops'!C144>0,'Cover Crops'!D144,0) -> 0 | E62: =D62*C62 -> 0 | G62: =IF(Tillage!C242>0,Tillage!B242,"NA") -> NA | H62: =IF(Tillage!C242>0,Tillage!C242,0) -> 0 | I62: =IF(Tillage!C242>0,Tillage!D242,0) -> 0 | J62: =I62*H62 -> 0 | K62: 329 NegEff1
A63: 340PosEff3 | B63: =IF('Cover Crops'!C145>0,'Cover Crops'!B145,"NA") -> NA | C63: =IF('Cover Crops'!C145>0,'Cover Crops'!C145,0) -> 0 | D63: =IF('Cover Crops'!C145>0,'Cover Crops'!D145,0) -> 0 | E63: 0 | G63: =IF(Tillage!C243>0,Tillage!B243,"NA") -> NA | H63: =IF(Tillage!C243>0,Tillage!C243,0) -> 0 | I63: =IF(Tillage!C243>0,Tillage!D243,0) -> 0 | J63: =I63*H63 -> 0 | K63: 329 NegEff2
A64: 590PosEff1 | B64: =IF('Nutrient Mgt.'!C213>0,'Nutrient Mgt.'!B213,"NA") -> NA | C64: =IF('Nutrient Mgt.'!C213>0,'Nutrient Mgt.'!C213,0) -> 0 | D64: =IF('Nutrient Mgt.'!C213>0,'Nutrient Mgt.'!D213,0) -> 0 | E64: 0 | G64: =IF(Tillage!C244>0,Tillage!B244,"NA") -> NA | H64: =IF(Tillage!C244>0,Tillage!C244,0) -> 0 | I64: =IF(Tillage!C244>0,Tillage!D244,0) -> 0 | J64: 0 | K64: 329 NegEff3
A65: 590PosEff2 | B65: =IF('Nutrient Mgt.'!C214>0,'Nutrient Mgt.'!B214,"NA") -> NA | C65: =IF('Nutrient Mgt.'!C214>0,'Nutrient Mgt.'!C214,0) -> 0 | D65: =IF('Nutrient Mgt.'!C214>0,'Nutrient Mgt.'!D214,0) -> 0 | E65: 0 | G65: =IF('Cover Crops'!C149>0,'Cover Crops'!B149,"NA") -> NA | H65: =IF('Cover Crops'!C149>0,'Cover Crops'!C149,0) -> 0 | I65: =IF('Cover Crops'!C149>0,'Cover Crops'!D149,0) -> 0 | J65: 0 | K65: 340NegEff1
A66: 590PosEff3 | B66: =IF('Nutrient Mgt.'!C215>0,'Nutrient Mgt.'!B215,"NA") -> NA | C66: =IF('Nutrient Mgt.'!C215>0,'Nutrient Mgt.'!C215,0) -> 0 | D66: =IF('Nutrient Mgt.'!C215>0,'Nutrient Mgt.'!D215,0) -> 0 | E66: 0 | G66: =IF('Cover Crops'!C150>0,'Cover Crops'!B150,"NA") -> NA | H66: =IF('Cover Crops'!C150>0,'Cover Crops'!C150,0) -> 0 | I66: =IF('Cover Crops'!C150>0,'Cover Crops'!D150,0) -> 0 | J66: =I66*H66 -> 0 | K66: 340NegEff2
A67: 328PosEff1 | B67: =IF('ONLY CCR'!C145>0,'ONLY CCR'!B145,"NA") -> NA | C67: =IF('ONLY CCR'!C145>0,'ONLY CCR'!C145,0) -> 0 | D67: =IF('ONLY CCR'!C145>0,'ONLY CCR'!D145,0) -> 0 | E67: 0 | G67: =IF('Cover Crops'!C151>0,'Cover Crops'!B151,"NA") -> NA | H67: =IF('Cover Crops'!C151>0,'Cover Crops'!C151,0) -> 0 | I67: =IF('Cover Crops'!C151>0,'Cover Crops'!D151,0) -> 0 | J67: 0 | K67: 340NegEff3
A68: 328PosEff2 | B68: =IF('ONLY CCR'!C146>0,'ONLY CCR'!B146,"NA") -> NA | C68: =IF('ONLY CCR'!C146>0,'ONLY CCR'!C146,0) -> 0 | D68: =IF('ONLY CCR'!C146>0,'ONLY CCR'!D146,0) -> 0 | E68: 0 | G68: =IF('Nutrient Mgt.'!C219>0,'Nutrient Mgt.'!B219,"NA") -> NA | H68: =IF('Nutrient Mgt.'!C219>0,'Nutrient Mgt.'!C219,0) -> 0 | I68: =IF('Nutrient Mgt.'!C219>0,'Nutrient Mgt.'!D219,0) -> 0 | J68: 0 | K68: 590NegEff1
A69: 328PosEff3 | B69: =IF('ONLY CCR'!C147>0,'ONLY CCR'!B147,"NA") -> NA | C69: =IF('ONLY CCR'!C147>0,'ONLY CCR'!C147,0) -> 0 | D69: =IF('ONLY CCR'!C147>0,'ONLY CCR'!D147,0) -> 0 | E69: 0 | G69: =IF('Nutrient Mgt.'!C220>0,'Nutrient Mgt.'!B220,"NA") -> NA | H69: =IF('Nutrient Mgt.'!C220>0,'Nutrient Mgt.'!C220,0) -> 0 | I69: =IF('Nutrient Mgt.'!C220>0,'Nutrient Mgt.'!D220,0) -> 0 | J69: 0 | K69: 590NegEff2
A70: All Practices NPK | B70: =IF('Combined Practice Effects'!F51<0,'Combined Practice Effects'!B37,"NA") -> NA | C70: =IF('Combined Practice Effects'!F51<0,'Combined Practice Effects'!F51*-1,0) -> 0 | D70: =IF('Combined Practice Effects'!F51<0,SUM('Combined Practice Effects'!C47:F47),0) -> 0 | E70: 0 | G70: =IF('Nutrient Mgt.'!C221>0,'Nutrient Mgt.'!B221,"NA") -> NA | H70: =IF('Nutrient Mgt.'!C221>0,'Nutrient Mgt.'!C221,0) -> 0 | I70: =IF('Nutrient Mgt.'!C221>0,'Nutrient Mgt.'!D221,0) -> 0 | J70: 0 | K70: 590NegEff3
A71: All Practices Pesticides | B71: =IF('Combined Practice Effects'!F72<0,'Combined Practice Effects'!B55,"NA") -> NA | C71: =IF('Combined Practice Effects'!F72<0,'Combined Practice Effects'!F72*-1,0) -> 0 | D71: =IF('Combined Practice Effects'!F72<0,SUM('Combined Practice Effects'!C68:F68),0) -> 0 | E71: 0 | G71: =IF('ONLY CCR'!C151>0,'ONLY CCR'!B151,"NA") -> NA | H71: =IF('ONLY CCR'!C151>0,'ONLY CCR'!C151,0) -> 0 | I71: =IF('ONLY CCR'!C151>0,'ONLY CCR'!D151,0) -> 0 | J71: 0 | K71: 328NegEff1
A72: All Practices Erosion | B72: =IF('Combined Practice Effects'!C86>0,'Combined Practice Effects'!B75,"NA") -> NA | C72: =IF('Combined Practice Effects'!C86>0,'Combined Practice Effects'!C86,0) -> 0 | D72: =IF('Combined Practice Effects'!C86>0,'Farm Info'!D31,0) -> 0 | E72: 0 | G72: =IF('ONLY CCR'!C152>0,'ONLY CCR'!B152,"NA") -> NA | H72: =IF('ONLY CCR'!C152>0,'ONLY CCR'!C152,0) -> 0 | I72: =IF('ONLY CCR'!C152>0,'ONLY CCR'!D152,0) -> 0 | J72: 0 | K72: 328NegEff2
A73: All PracticesPosEff1 | B73: =IF('Combined Practice Effects'!E95>0,'Combined Practice Effects'!B95,"NA") -> NA | C73: =IF('Combined Practice Effects'!C95>0,'Combined Practice Effects'!C95,0) -> 0 | D73: =IF('Combined Practice Effects'!C95>0,'Combined Practice Effects'!D95,0) -> 0 | E73: 0 | G73: =IF('ONLY CCR'!C153>0,'ONLY CCR'!B153,"NA") -> NA | H73: =IF('ONLY CCR'!C153>0,'ONLY CCR'!C153,0) -> 0 | I73: =IF('ONLY CCR'!C153>0,'ONLY CCR'!D153,0) -> 0 | J73: 0 | K73: 328NegEff3
A74: All PracticesPosEff2 | B74: =IF('Combined Practice Effects'!E96>0,'Combined Practice Effects'!B96,"NA") -> NA | C74: =IF('Combined Practice Effects'!C96>0,'Combined Practice Effects'!C96,0) -> 0 | D74: =IF('Combined Practice Effects'!C96>0,'Combined Practice Effects'!D96,0) -> 0 | E74: =D74*C74 -> 0 | G74: =IF('Combined Practice Effects'!F51>0,'Combined Practice Effects'!B37,"NA") -> NA | H74: =IF('Combined Practice Effects'!F51>0,'Combined Practice Effects'!F51,0) -> 0 | I74: =IF('Combined Practice Effects'!F51>0,SUM('Combined Practice Effects'!C47:F47),0) -> 0 | J74: 0 | K74: All Practices NPK
A75: All PracticesPosEff3 | B75: =IF('Combined Practice Effects'!E97>0,'Combined Practice Effects'!B97,"NA") -> NA | C75: =IF('Combined Practice Effects'!C97>0,'Combined Practice Effects'!C97,0) -> 0 | D75: =IF('Combined Practice Effects'!C97>0,'Combined Practice Effects'!D97,0) -> 0 | E75: 0 | G75: =IF('Combined Practice Effects'!F72>0,'Combined Practice Effects'!B55,"NA") -> NA | H75: =IF('Combined Practice Effects'!F72>0,'Combined Practice Effects'!F72,0) -> 0 | I75: =IF('Combined Practice Effects'!F72>0,SUM('Combined Practice Effects'!C68:F68),0) -> 0 | J75: 0 | K75: All Practices Pesticides
G76: =IF('Farm Info'!C54>0,'Farm Info'!B54,"NA") -> NA | J76: =IF('Farm Info'!C54>0,'Farm Info'!D54, 0) -> 0 | K76: All Practices Learning Activities
G77: =IF('Combined Practice Effects'!C100>0,'Combined Practice Effects'!B100,"NA") -> NA | H77: =IF('Combined Practice Effects'!C100>0,'Combined Practice Effects'!C100,0) -> 0 | I77: =IF('Combined Practice Effects'!C100>0,'Combined Practice Effects'!D100,0) -> 0 | J77: =I77*H77 -> 0 | K77: All PracticesNegEff1
G78: =IF('Combined Practice Effects'!C101>0,'Combined Practice Effects'!B101,"NA") -> NA | H78: =IF('Combined Practice Effects'!C101>0,'Combined Practice Effects'!C101,0) -> 0 | I78: =IF('Combined Practice Effects'!C101>0,'Combined Practice Effects'!D101,0) -> 0 | J78: =I78*H78 -> 0 | K78: All PracticesNegEff2
G79: =IF('Combined Practice Effects'!C102>0,'Combined Practice Effects'!B102,"NA") -> NA | H79: =IF('Combined Practice Effects'!C102>0,'Combined Practice Effects'!C102,0) -> 0 | I79: =IF('Combined Practice Effects'!C102>0,'Combined Practice Effects'!D102,0) -> 0 | J79: 0 | K79: All PracticesNegEff3
B80: Total Decreased Cost | E80: =SUM(E45:E78) -> 0 | G80: Total Increased Cost | J80: =SUM(J45:J79) -> 0
B82: Annual Total Increased Net Income | E82: =IFERROR(E80+E42,0) -> 0 | G82: Annual Total Decreased Net Income | J82: =IFERROR(J80+J42,0) -> 0
B83: Total Acres in this Study Area | E83: ='Farm Info'!D31 -> 0 | G83: Total Acres in this Study Area | J83: ='Farm Info'!D31 -> 0
B84: Annual Per Acre Increased Net Income | E84: =IFERROR(ROUND(E82/E83,0),0) -> 0 | G84: Annual Per Acre Decreased Net Income | J84: =IFERROR(ROUND(J82/J83,0),0) -> 0
B86: Annual Change in Total Net Income | F86: = | G86: =IFERROR(E82-J82,0) -> 0
B87: Annual Change in Per Acre Net Income | F87: = | G87: =IFERROR(G86/E83,0) -> 0
B88: Return on Investment | F88: = | G88: =IFERROR(G86/J82,0) -> 0
B89: Footnotes:
B90: This table represents estimated average costs and benefits attributed to adopting [list SH practices] over the entire study area (### acres) ,where [list crops] are grown, as reported by the farmer.
B92: All values are in 2021 dollars, unless provided by the farmer.
B93: Prices are stated as per acre values for items that vary by area. Prices such as learning costs, which don't vary by area, are only given as total costs.
B94: 2021 standard prices (if used) in the analysis: Barley: $5.15/bu, Corn Grain: $5.45/bu, Corn Silage: $49.05/ton, Grain Sorghum: $9.75/cwt, Hay: $186/ton, Oats: $4/bu, Soybeans: $13/bu, Wheat: $7.30/bu (Source: USDA NASS, Crop Values: 2021 Summary). Nitrogen: $.72/Lb, Phosphate: $.62/Lb, Potash: $.56/Lb (Source: Iowa State University Extension and Outreach, Ag Decision Maker: Estimated Costs of Crop Production in Iowa, 2022). Net Income (value of production minus operating costs) values for Barley: -$11/ac, Corn Grain: $429/ac, Grain Sorghum: $136/ac, Oats: $11/ac, Soybeans: $325/ac, Wheat: $36/ac (USDA ERS, May 2022, Commodity Costs and Returns); Net income for Hay: $152/ac (calculated from various sources).
B99: Value of decreased erosion ($1.18/ton) is based on estimated N & P content of the soil (2.32 lbs N/ton, 1 lb P/ton) and fertilizer prices (USDA NRCS, May 2010, Final Benefit-Cost Analysis for the EQIP) and [insert farmer name, e.g. Scotty's] estimate of reduced mechanical erosion repair costs.
B101: Return on Investment is the ratio of Annual Total Change in Net Income to Annual Total Decreased Net Income, as a percent.
B102: For information about: (1) study methodology, see farmland.org/soilhealthcasestudies; (2) USDA's Nutrient Tracking Tool, see ntt.tiaer.tarleton.edu/welcomes/; (3) USDA's COMET-Farm Tool, see comet-farm.com.
B104: This material is based on work supported by USDA NRCS CIG grant NR183A750008G008.
B105: [insert grower's first name] received [insert amount, e.g., $/ac/yr or $/yr] through the [insert name of program (years active)]. This is not included in the analysis because cost-share is temporary and not received by all.
B108: Impact of Financial Assistance Payments
B109: Increase in Income
B110: Soil Health Practice | C110: Per Acre | D110: Acres | E110: Total
B111: Tillage (Residue Management) | C111: =IFERROR(Tillage!#REF!,0) -> 0 | D111: =Tillage!D226 -> 0 | E111: =IFERROR(D111*C111,0) -> 0
B112: Cover Crop | C112: =IFERROR('Cover Crops'!F136,0) -> 0 | D112: ='Cover Crops'!D136 -> 0 | E112: =IFERROR(D112*C112,0) -> 0
B113: Nutrient Management | C113: =IFERROR('Nutrient Mgt.'!F203,0) -> 0 | D113: ='Nutrient Mgt.'!D203 -> 0 | E113: =IFERROR(D113*C113,0) -> 0
B114: Conservation Crop Rotation | C114: =IFERROR('ONLY CCR'!F138,0) -> 0 | D114: ='ONLY CCR'!D138 -> 0 | E114: =IFERROR(D114*C114,0) -> 0
B115: Total Increase due to Financial Assistance | E115: =SUM(E111:E114) -> 0
B116: Annual Change in Total Net Income = | E116: =IFERROR(G86+E115,0) -> 0
B117: Annual Change in Per Acre Net Income = | E117: =IFERROR(E116/'Farm Info'!D31,0) -> 0

Sheet Editable PBA
B1: EDITABLE PARTIAL BUDGET ANALYSIS TABLE
B3: ABOUT THIS TAB:
B4: The Partial Budget Analysis tab autopopulates and organizes the effects calculated on the preceeding tabs into four quadrants: (1) Increase in Income; (2) Decrease in Cost; (3) Decrease in Income; and (4) Increase in Cost Positive effects are displayed on the left and negative effects on the right. Effects are sorted automatically into the four quadrants based on their value. Columns A and K display the effect category from previous tabs assigned to the adjacent cell. NRCS practice codes are used instead of practice names as follows: 329 represents tillage changes, 340 is Cover Crops, 590 is Nutrient Management, and 328 is Conservation Crop Rotation. The table can house every possible effect from the preceeding tabs. This means that most of the rows will not be populated. Totals are summarized at the bottom of the table for the entire Study Area. These totals are used to calculate the net change in income on a per acre basis and for the Study Area. The table also calculates the return on investment. All values are on an annual basis. Suggested footnotes appear at the bottom of the table followed by a summary of financial assistance payments received, if any.
B17: NOTE: Farmer Name and Watershed Name are populated using information entered on the Farm Info tab.
B18: Farmer Name
B19: ='Farm Info'!B9 -> 0
B20: Watershed Name
B21: ='Farm Info'!B13 -> 0
B22: ="Economic Effects of Soil Health Practices on "& 'Farm Info'!B11& " (2021)" -> Economic Effects of Soil Health Practices on (2021)
B23: Increases in Net Income | G23: Decreases in Net Income
B24: Increase in Income | G24: Decrease in Income
B25: Item | C25: Per Acre | D25: Acres | E25: Total | G25: Item | H25: Per Acre | I25: Acres | J25: Total
A26: 329 Yield | B26: =IF(Tillage!F141>0,Tillage!B109,"NA") -> NA | C26: =IFERROR(IF(Tillage!F141>0,Tillage!F141,0),0) -> 0 | D26: =IF(Tillage!F141>0,SUM(Tillage!C134:F134),0) -> 0 | E26: =D26*C26 -> 0 | G26: =IF(Tillage!F141<0,Tillage!B109,"NA") -> NA | H26: =IF(Tillage!F141<0,Tillage!F141*-1,0) -> 0 | I26: =IF(Tillage!F141<0,SUM(Tillage!C134:F134),0) -> 0 | J26: =I26*H26 -> 0 | K26: 329 Yield
A27: 340 Yield | B27: =IF('Cover Crops'!F53>0,'Cover Crops'!B30,"NA") -> NA | C27: =IF('Cover Crops'!F53>0,'Cover Crops'!F53,0) -> 0 | D27: =IF('Cover Crops'!F53>0,SUM('Cover Crops'!C46:F46),0) -> 0 | E27: =D27*C27 -> 0 | G27: =IF('Cover Crops'!F53<0,'Cover Crops'!B30,"NA") -> NA | H27: =IF('Cover Crops'!F53<0,'Cover Crops'!F53*-1,0) -> 0 | I27: =IF('Cover Crops'!F53<0,SUM('Cover Crops'!C46:F46),0) -> 0 | J27: =I27*H27 -> 0 | K27: 340 Yield
A28: 340 Graz Y | B28: =IF('Cover Crops'!C174>0,'Cover Crops'!B169,"NA") -> NA | C28: =IF('Cover Crops'!C174>0,'Cover Crops'!C174,0) -> 0 | D28: =IF('Cover Crops'!C174>0,'Cover Crops'!C170,0) -> 0 | E28: =D28*C28 -> 0 | G28: =IF('Nutrient Mgt.'!F144<0,'Nutrient Mgt.'!B113,"NA") -> NA | H28: =IFERROR(IF('Nutrient Mgt.'!F144<0,'Nutrient Mgt.'!F144*-1,0),0) -> 0 | I28: =IF('Nutrient Mgt.'!F144<0,SUM('Nutrient Mgt.'!C137:F137),0) -> 0 | J28: =I28*H28 -> 0 | K28: 590 Yield
A29: 340 Graz Y | B29: =IF('Cover Crops'!H172>0,'Cover Crops'!E167,"NA") -> NA | C29: =IF('Cover Crops'!H172>0,'Cover Crops'!H172,0) -> 0 | D29: =IF('Cover Crops'!H172>0,'Cover Crops'!H168,0) -> 0 | E29: 0 | G29: =IF('ONLY CCR'!E46<0,'ONLY CCR'!B24,"NA") -> NA | H29: =IF('ONLY CCR'!E46<0,'ONLY CCR'!E46*-1,0) -> 0 | I29: =IF('ONLY CCR'!E46<0,SUM('ONLY CCR'!D39:D42),0) -> 0 | J29: =I29*H29 -> 0 | K29: 328 Net Income
A30: 340 Graz Y | B30: =IF('Cover Crops'!H162>0,'Cover Crops'!E157,"NA") -> NA | C30: =IF('Cover Crops'!H162>0,'Cover Crops'!H162,0) -> 0 | D30: =IF('Cover Crops'!H163>0,'Cover Crops'!H158,0) -> 0 | E30: 0 | G30: =IF('ONLY CCR'!F73<0,'ONLY CCR'!B50,"NA") -> NA | H30: =IF('ONLY CCR'!F73<0,'ONLY CCR'!F73*-1,0) -> 0 | I30: =IFERROR(IF('ONLY CCR'!F73<0,SUM('ONLY CCR'!C66:F66),0),0) -> 0 | J30: =I30*H30 -> 0 | K30: 328 Yield
A31: 340 Hay Y | B31: =IF('Cover Crops'!C182>0,'Cover Crops'!B182,"NA") -> NA | C31: =IF('Cover Crops'!C182>0,'Cover Crops'!C182,0) -> 0 | D31: =IF('Cover Crops'!C180>0,'Cover Crops'!C180,0) -> 0 | E31: 0 | G31: =IF('Combined Practice Effects'!F32<0,'Combined Practice Effects'!B9,"NA") -> NA | H31: =IF('Combined Practice Effects'!F32<0,'Combined Practice Effects'!F32*-1,0) -> 0 | I31: =IF('Combined Practice Effects'!F32<0,SUM('Combined Practice Effects'!C25:F25),0) -> 0 | J31: =I31*H31 -> 0 | K31: All Practices
A32: 590 Yield | B32: =IF('Nutrient Mgt.'!F144>0,'Nutrient Mgt.'!B113,"NA") -> NA | C32: =IF('Nutrient Mgt.'!F144>0,'Nutrient Mgt.'!F144,0) -> 0 | D32: =IF('Nutrient Mgt.'!F144>0,SUM('Nutrient Mgt.'!C137:F137),0) -> 0 | E32: 0
A33: 328 Net Income | B33: =IF('ONLY CCR'!E46>0,'ONLY CCR'!B24,"NA") -> NA | C33: =IF('ONLY CCR'!E46>0,'ONLY CCR'!E46,0) -> 0 | D33: =IF('ONLY CCR'!E46>0,SUM('ONLY CCR'!D39:D42),0) -> 0 | E33: =D33*C33 -> 0
A34: 328 Yield | B34: =IFERROR(IF('ONLY CCR'!F46>0,'ONLY CCR'!B50,"NA"),0) -> NA | C34: =IFERROR(IF('ONLY CCR'!F73>0,'ONLY CCR'!F73,0),0) -> 0 | D34: =IFERROR(IF('ONLY CCR'!F73>0,SUM('ONLY CCR'!C66:F66),0),0) -> 0 | E34: 0
A35: All Practices | B35: =IF('Combined Practice Effects'!F32>0,'Combined Practice Effects'!B9,"NA") -> NA | C35: =IF('Combined Practice Effects'!F32>0,'Combined Practice Effects'!F32,0) -> 0 | D35: =IF('Combined Practice Effects'!F32>0,SUM('Combined Practice Effects'!C25:F25),0) -> 0 | E35: =D35*C35 -> 0
B36: Total Increased Income | E36: =SUM(E26:E35) -> 0 | G36: Total Decreased Income | J36: =SUM(J26:J35) -> 0
B37: Decrease in Cost | G37: Increase in Cost
B38: Item | C38: Per Acre | D38: Acres | E38: Total | G38: Item | H38: Per Acre | I38: Acres | J38: Total
A39: 329 Machinery | B39: =IF(Tillage!C105<0,Tillage!B96,"NA") -> NA | C39: =IF(Tillage!C105<0,Tillage!C105*-1,0) -> 0 | D39: =IF(Tillage!C105<0,Tillage!C23+Tillage!C44+Tillage!C65+Tillage!C86,0) -> 0 | E39: =D39*C39 -> 0 | G39: =IF(Tillage!C105>0,Tillage!B96,"NA") -> NA | H39: =IF(Tillage!C105>0,Tillage!C105,0) -> 0 | I39: =IF(Tillage!C105>0,Tillage!C14+Tillage!C35+Tillage!C56+Tillage!C77,0) -> 0 | J39: =I39*H39 -> 0 | K39: 329 Machinery
A40: 329 Nutrients | B40: =IF(Tillage!F164<0,Tillage!B146,"NA") -> NA | C40: =IF(Tillage!F164<0,Tillage!F164*-1,0) -> 0 | D40: =IF(Tillage!F164<0,SUM(Tillage!C160:F160),0) -> 0 | E40: =D40*C40 -> 0 | G40: =IF(Tillage!F164>0,Tillage!B146,"NA") -> NA | H40: =IF(Tillage!F164>0,Tillage!F164,0) -> 0 | I40: =IF(Tillage!F164>0,SUM(Tillage!C160:F160),0) -> 0 | J40: 0 | K40: 329 Nutrients
A41: 329 Pesticides | B41: =IF(Tillage!F190<0,Tillage!B168,"NA") -> NA | C41: =IF(Tillage!F190<0,Tillage!F190*-1,0) -> 0 | D41: =IF(Tillage!F190<0,SUM(Tillage!C186:F186),0) -> 0 | E41: 0 | G41: =IF(Tillage!F190>0,Tillage!B168,"NA") -> NA | H41: =IF(Tillage!F190>0,Tillage!F190,0) -> 0 | I41: =IF(Tillage!F190>0,SUM(Tillage!C186:F186),0) -> 0 | J41: 0 | K41: 329 Pesticides
A42: 329 Erosion | B42: =IF(Tillage!C215>0,Tillage!B193,"NA") -> NA | C42: =IF(Tillage!C215>0,Tillage!C215,0) -> 0 | D42: =IF(Tillage!C215>0,'Farm Info'!D31,0) -> 0 | E42: 0 | G42: =IF('Farm Info'!C49>0,'Farm Info'!B49,"NA") -> NA | J42: =IF('Farm Info'!C49>0,'Farm Info'!D49,0) -> 0 | K42: 329 Education
A43: 340 Nutrients | B43: =IF('Cover Crops'!F72<0,'Cover Crops'!$B$58,"NA") -> NA | C43: =IF('Cover Crops'!F72<0,'Cover Crops'!F72*-1,0) -> 0 | D43: =IF('Cover Crops'!F72<0,SUM('Cover Crops'!C68:F68),0) -> 0 | E43: 0 | G43: =IF('Cover Crops'!F28>0,'Cover Crops'!B13,"NA") -> NA | H43: =IF('Cover Crops'!F28>0,'Cover Crops'!F28,0) -> 0 | I43: =IF('Cover Crops'!F28>0,SUM('Cover Crops'!C19:F19),0) -> 0 | J43: 0 | K43: 340 Costs
A44: 340 Pesticides | B44: =IF('Cover Crops'!F99<0,'Cover Crops'!$B76,"NA") -> NA | C44: =IF('Cover Crops'!F99<0,'Cover Crops'!F99*-1,0) -> 0 | D44: =IF('Cover Crops'!F99<0,SUM('Cover Crops'!C95:F95),0) -> 0 | E44: 0 | G44: =IF('Cover Crops'!F72>0,'Cover Crops'!$B$58,"NA") -> NA | H44: =IF('Cover Crops'!F72>0,'Cover Crops'!F72,0) -> 0 | I44: =IF('Cover Crops'!F72>0,SUM('Cover Crops'!C68:F68),0) -> 0 | J44: 0 | K44: 340 Nutrients
A45: 340 Erosion | B45: =IF('Cover Crops'!C125>0,'Cover Crops'!B102,"NA") -> NA | C45: =IF('Cover Crops'!C125>0,'Cover Crops'!C125,0) -> 0 | D45: =IF('Cover Crops'!C125>0,'Farm Info'!D31,0) -> 0 | E45: 0 | G45: =IF('Cover Crops'!F99>0,'Cover Crops'!$B76,"NA") -> NA | H45: =IF('Cover Crops'!F99>0,'Cover Crops'!F99,0) -> 0 | I45: =IF('Cover Crops'!F99>0,SUM('Cover Crops'!C95:F95),0) -> 0 | J45: 0 | K45: 340 Pesticides
A46: 590 Machinery | B46: =IF('Nutrient Mgt.'!C109<0,'Nutrient Mgt.'!B100,"NA") -> NA | C46: =IF('Nutrient Mgt.'!C109<0,'Nutrient Mgt.'!C109*-1,0) -> 0 | D46: =IF('Nutrient Mgt.'!C109<0,('Nutrient Mgt.'!C26+'Nutrient Mgt.'!C45+'Nutrient Mgt.'!C64+'Nutrient Mgt.'!C83),0) -> 0 | E46: 0 | G46: =IF('Cover Crops'!C163>0,'Cover Crops'!B166,"NA") -> NA | H46: =IF('Cover Crops'!C166>0,'Cover Crops'!C166,0) -> 0 | I46: =IF('Cover Crops'!C166>0,('Cover Crops'!C170+'Cover Crops'!H158+'Cover Crops'!H168),0) -> 0 | J46: 0 | K46: 340 Grazing Infrastructure
A47: 590 Nutrients | B47: =IF('Nutrient Mgt.'!F168<0,'Nutrient Mgt.'!B149,"NA") -> NA | C47: =IF('Nutrient Mgt.'!F168<0,'Nutrient Mgt.'!F168*-1,0) -> 0 | D47: =IF('Nutrient Mgt.'!F168<0,SUM('Nutrient Mgt.'!C164:F164),0) -> 0 | E47: 0 | G47: =IF('Cover Crops'!C183>0,'Cover Crops'!B183,"NA") -> NA | H47: =IF('Cover Crops'!C183>0,'Cover Crops'!C183,0) -> 0 | I47: =IF('Cover Crops'!C183>0,'Cover Crops'!C180,0) -> 0 | J47: 0 | K47: 340 Haying Harvest
A48: 590 Pesticides | B48: =IF('Nutrient Mgt.'!F194<0,'Nutrient Mgt.'!B172,"NA") -> NA | C48: =IF('Nutrient Mgt.'!F194<0,'Nutrient Mgt.'!F194*-1,0) -> 0 | D48: =IF('Nutrient Mgt.'!F194<0,SUM('Nutrient Mgt.'!C190:F190),0) -> 0 | E48: 0 | G48: =IF('Farm Info'!C50>0,'Farm Info'!B50,"NA") -> NA | J48: =IF('Farm Info'!C50>0,'Farm Info'!D50,0) -> 0 | K48: 340 Education
A49: 328 Nutrients | B49: =IF('ONLY CCR'!F92<0,'ONLY CCR'!B78,"NA") -> NA | C49: =IF('ONLY CCR'!F92<0,'ONLY CCR'!F92*-1,0) -> 0 | D49: =IF('ONLY CCR'!F92<0,SUM('ONLY CCR'!C88:F88),0) -> 0 | E49: 0 | G49: =IF('Nutrient Mgt.'!C109>0,'Nutrient Mgt.'!B100,"NA") -> NA | H49: =IF('Nutrient Mgt.'!C109>0,'Nutrient Mgt.'!C109,0) -> 0 | I49: =IF('Nutrient Mgt.'!C109>0,('Nutrient Mgt.'!C26+'Nutrient Mgt.'!C45+'Nutrient Mgt.'!C64+'Nutrient Mgt.'!C83),0) -> 0 | J49: 0 | K49: 590 Machinery
A50: 328 Pesticides | B50: =IF('ONLY CCR'!F113<0,'ONLY CCR'!B96,"NA") -> NA | C50: =IF('ONLY CCR'!F113<0,'ONLY CCR'!F113*-1,0) -> 0 | D50: =IF('ONLY CCR'!F113<0,SUM('ONLY CCR'!C109:F109),0) -> 0 | E50: 0 | G50: =IF('Nutrient Mgt.'!F168>0,'Nutrient Mgt.'!B149,"NA") -> NA | H50: =IF('Nutrient Mgt.'!F168>0,'Nutrient Mgt.'!F168,0) -> 0 | I50: =IF('Nutrient Mgt.'!F168>0,SUM('Nutrient Mgt.'!C164:F164),0) -> 0 | J50: =I50*H50 -> 0 | K50: 590 Nutrients
A51: 328 Erosion | B51: =IF('ONLY CCR'!C127>0,'ONLY CCR'!B116,"NA") -> NA | C51: =IF('ONLY CCR'!C127>0,'ONLY CCR'!C127,0) -> 0 | D51: =IF('ONLY CCR'!C127>0,'ONLY CCR'!C37,0) -> 0 | E51: 0 | G51: =IF('Nutrient Mgt.'!F194>0,'Nutrient Mgt.'!B172,"NA") -> NA | H51: =IF('Nutrient Mgt.'!F194>0,'Nutrient Mgt.'!F194,0) -> 0 | I51: =IF('Nutrient Mgt.'!F194>0,SUM('Nutrient Mgt.'!C190:F190),0) -> 0 | J51: =I51*H51 -> 0 | K51: 590 Pesticides
A52: 329 PosEff 1 | B52: =IF(Tillage!C236>0,Tillage!B236,"NA") -> NA | C52: =IF(Tillage!C236>0,Tillage!C236,0) -> 0 | D52: =IF(Tillage!C236>0,Tillage!D236,0) -> 0 | E52: 0 | G52: =IF('Farm Info'!C51>0,'Farm Info'!B51,"NA") -> NA | J52: =IF('Farm Info'!C51>0,'Farm Info'!D51, 0) -> 0 | K52: 590 Education
A53: 329 PosEff2 | B53: =IF(Tillage!C237>0,Tillage!B237,"NA") -> NA | C53: =IF(Tillage!C237>0,Tillage!C237,0) -> 0 | D53: =IF(Tillage!C237>0,Tillage!D237,0) -> 0 | E53: 0 | G53: =IF('ONLY CCR'!F92>0,'ONLY CCR'!B78,"NA") -> NA | H53: =IF('ONLY CCR'!F92>0,'ONLY CCR'!F92,0) -> 0 | I53: =IF('ONLY CCR'!F92>0,SUM('ONLY CCR'!C88:F88),0) -> 0 | J53: =I53*H53 -> 0 | K53: 328 Nutrients
A54: 329 PosEff3 | B54: =IF(Tillage!C238>0,Tillage!B238,"NA") -> NA | C54: =IF(Tillage!C238>0,Tillage!C238,0) -> 0 | D54: =IF(Tillage!C238>0,Tillage!D238,0) -> 0 | E54: 0 | G54: =IF('ONLY CCR'!F113>0,'ONLY CCR'!B96,"NA") -> NA | H54: =IF('ONLY CCR'!F113>0,'ONLY CCR'!F113,0) -> 0 | I54: =IF('ONLY CCR'!F113>0,SUM('ONLY CCR'!C109:F109),0) -> 0 | J54: 0 | K54: 328 Pesticides
A55: 340PosEff1 | B55: =IF('Cover Crops'!C143>0,'Cover Crops'!B143,"NA") -> NA | C55: =IF('Cover Crops'!C143>0,'Cover Crops'!C143,0) -> 0 | D55: =IF('Cover Crops'!C143>0,'Cover Crops'!D143,0) -> 0 | E55: 0 | G55: =IF('Farm Info'!C52>0,'Farm Info'!B52,"NA") -> NA | J55: =IF('Farm Info'!C52>0,'Farm Info'!D52,0) -> 0 | K55: 328 Education
A56: 340PosEff2 | B56: =IF('Cover Crops'!C144>0,'Cover Crops'!B144,"NA") -> NA | C56: =IF('Cover Crops'!C144>0,'Cover Crops'!C144,0) -> 0 | D56: =IF('Cover Crops'!C144>0,'Cover Crops'!D144,0) -> 0 | E56: 0 | G56: =IF(Tillage!C242>0,Tillage!B242,"NA") -> NA | H56: =IF(Tillage!C242>0,Tillage!C242,0) -> 0 | I56: =IF(Tillage!C242>0,Tillage!D242,0) -> 0 | J56: =I56*H56 -> 0 | K56: 329 NegEff1
A57: 340PosEff3 | B57: =IF('Cover Crops'!C145>0,'Cover Crops'!B145,"NA") -> NA | C57: =IF('Cover Crops'!C145>0,'Cover Crops'!C145,0) -> 0 | D57: =IF('Cover Crops'!C145>0,'Cover Crops'!D145,0) -> 0 | E57: 0 | G57: =IF(Tillage!C243>0,Tillage!B243,"NA") -> NA | H57: =IF(Tillage!C243>0,Tillage!C243,0) -> 0 | I57: =IF(Tillage!C243>0,Tillage!D243,0) -> 0 | J57: =I57*H57 -> 0 | K57: 329 NegEff2
A58: 590PosEff1 | B58: =IF('Nutrient Mgt.'!C213>0,'Nutrient Mgt.'!B213,"NA") -> NA | C58: =IF('Nutrient Mgt.'!C213>0,'Nutrient Mgt.'!C213,0) -> 0 | D58: =IF('Nutrient Mgt.'!C213>0,'Nutrient Mgt.'!D213,0) -> 0 | E58: 0 | G58: =IF(Tillage!C244>0,Tillage!B244,"NA") -> NA | H58: =IF(Tillage!C244>0,Tillage!C244,0) -> 0 | I58: =IF(Tillage!C244>0,Tillage!D244,0) -> 0 | J58: 0 | K58: 329 NegEff3
A59: 590PosEff2 | B59: =IF('Nutrient Mgt.'!C214>0,'Nutrient Mgt.'!B214,"NA") -> NA | C59: =IF('Nutrient Mgt.'!C214>0,'Nutrient Mgt.'!C214,0) -> 0 | D59: =IF('Nutrient Mgt.'!C214>0,'Nutrient Mgt.'!D214,0) -> 0 | E59: 0 | G59: =IF('Cover Crops'!C149>0,'Cover Crops'!B149,"NA") -> NA | H59: =IF('Cover Crops'!C149>0,'Cover Crops'!C149,0) -> 0 | I59: =IF('Cover Crops'!C149>0,'Cover Crops'!D149,0) -> 0 | J59: 0 | K59: 340NegEff1
A60: 590PosEff3 | B60: =IF('Nutrient Mgt.'!C215>0,'Nutrient Mgt.'!B215,"NA") -> NA | C60: =IF('Nutrient Mgt.'!C215>0,'Nutrient Mgt.'!C215,0) -> 0 | D60: =IF('Nutrient Mgt.'!C215>0,'Nutrient Mgt.'!D215,0) -> 0 | E60: 0 | G60: =IF('Cover Crops'!C150>0,'Cover Crops'!B150,"NA") -> NA | H60: =IF('Cover Crops'!C150>0,'Cover Crops'!C150,0) -> 0 | I60: =IF('Cover Crops'!C150>0,'Cover Crops'!D150,0) -> 0 | J60: 0 | K60: 340NegEff2
A61: 328PosEff1 | B61: =IF('ONLY CCR'!C145>0,'ONLY CCR'!B145,"NA") -> NA | C61: =IF('ONLY CCR'!C145>0,'ONLY CCR'!C145,0) -> 0 | D61: =IF('ONLY CCR'!C145>0,'ONLY CCR'!D145,0) -> 0 | E61: 0 | G61: =IF('Cover Crops'!C151>0,'Cover Crops'!B151,"NA") -> NA | H61: =IF('Cover Crops'!C151>0,'Cover Crops'!C151,0) -> 0 | I61: =IF('Cover Crops'!C151>0,'Cover Crops'!D151,0) -> 0 | J61: 0 | K61: 340NegEff3
A62: 328PosEff2 | B62: =IF('ONLY CCR'!C146>0,'ONLY CCR'!B146,"NA") -> NA | C62: =IF('ONLY CCR'!C146>0,'ONLY CCR'!C146,0) -> 0 | D62: =IF('ONLY CCR'!C146>0,'ONLY CCR'!D146,0) -> 0 | E62: 0 | G62: =IF('Nutrient Mgt.'!C219>0,'Nutrient Mgt.'!B219,"NA") -> NA | H62: =IF('Nutrient Mgt.'!C219>0,'Nutrient Mgt.'!C219,0) -> 0 | I62: =IF('Nutrient Mgt.'!C219>0,'Nutrient Mgt.'!D219,0) -> 0 | J62: 0 | K62: 590NegEff1
A63: 328PosEff3 | B63: =IF('ONLY CCR'!C147>0,'ONLY CCR'!B147,"NA") -> NA | C63: =IF('ONLY CCR'!C147>0,'ONLY CCR'!C147,0) -> 0 | D63: =IF('ONLY CCR'!C147>0,'ONLY CCR'!D147,0) -> 0 | E63: 0 | G63: =IF('Nutrient Mgt.'!C220>0,'Nutrient Mgt.'!B220,"NA") -> NA | H63: =IF('Nutrient Mgt.'!C220>0,'Nutrient Mgt.'!C220,0) -> 0 | I63: =IF('Nutrient Mgt.'!C220>0,'Nutrient Mgt.'!D220,0) -> 0 | J63: 0 | K63: 590NegEff2
A64: All Practices NPK | B64: =IF('Combined Practice Effects'!F51<0,'Combined Practice Effects'!B37,"NA") -> NA | C64: =IF('Combined Practice Effects'!F51<0,'Combined Practice Effects'!F51*-1,0) -> 0 | D64: =IF('Combined Practice Effects'!F51<0,SUM('Combined Practice Effects'!C47:F47),0) -> 0 | E64: 0 | G64: =IF('Nutrient Mgt.'!C221>0,'Nutrient Mgt.'!B221,"NA") -> NA | H64: =IF('Nutrient Mgt.'!C221>0,'Nutrient Mgt.'!C221,0) -> 0 | I64: =IF('Nutrient Mgt.'!C221>0,'Nutrient Mgt.'!D221,0) -> 0 | J64: 0 | K64: 590NegEff3
A65: All Practices Pesticides | B65: =IF('Combined Practice Effects'!F72<0,'Combined Practice Effects'!B55,"NA") -> NA | C65: =IF('Combined Practice Effects'!F72<0,'Combined Practice Effects'!F72*-1,0) -> 0 | D65: =IF('Combined Practice Effects'!F72<0,SUM('Combined Practice Effects'!C68:F68),0) -> 0 | E65: 0 | G65: =IF('ONLY CCR'!C151>0,'ONLY CCR'!B151,"NA") -> NA | H65: =IF('ONLY CCR'!C151>0,'ONLY CCR'!C151,0) -> 0 | I65: =IF('ONLY CCR'!C151>0,'ONLY CCR'!D151,0) -> 0 | J65: 0 | K65: 328NegEff1
A66: All Practices Erosion | B66: =IF('Combined Practice Effects'!C86>0,'Combined Practice Effects'!B75,"NA") -> NA | C66: =IF('Combined Practice Effects'!C86>0,'Combined Practice Effects'!C86,0) -> 0 | D66: =IF('Combined Practice Effects'!C86>0,'Farm Info'!D31,0) -> 0 | E66: 0 | G66: =IF('ONLY CCR'!C152>0,'ONLY CCR'!B152,"NA") -> NA | H66: =IF('ONLY CCR'!C152>0,'ONLY CCR'!C152,0) -> 0 | I66: =IF('ONLY CCR'!C152>0,'ONLY CCR'!D152,0) -> 0 | J66: 0 | K66: 328NegEff2
A67: All PracticesPosEff1 | B67: =IF('Combined Practice Effects'!E95>0,'Combined Practice Effects'!B95,"NA") -> NA | C67: =IF('Combined Practice Effects'!C95>0,'Combined Practice Effects'!C95,0) -> 0 | D67: =IF('Combined Practice Effects'!C95>0,'Combined Practice Effects'!D95,0) -> 0 | E67: 0 | G67: =IF('ONLY CCR'!C153>0,'ONLY CCR'!B153,"NA") -> NA | H67: =IF('ONLY CCR'!C153>0,'ONLY CCR'!C153,0) -> 0 | I67: =IF('ONLY CCR'!C153>0,'ONLY CCR'!D153,0) -> 0 | J67: 0 | K67: 328NegEff3
A68: All PracticesPosEff2 | B68: =IF('Combined Practice Effects'!E96>0,'Combined Practice Effects'!B96,"NA") -> NA | C68: =IF('Combined Practice Effects'!C96>0,'Combined Practice Effects'!C96,0) -> 0 | D68: =IF('Combined Practice Effects'!C96>0,'Combined Practice Effects'!D96,0) -> 0 | E68: 0 | G68: =IF('Combined Practice Effects'!F51>0,'Combined Practice Effects'!B37,"NA") -> NA | H68: =IF('Combined Practice Effects'!F51>0,'Combined Practice Effects'!F51,0) -> 0 | I68: =IF('Combined Practice Effects'!F51>0,SUM('Combined Practice Effects'!C47:F47),0) -> 0 | J68: 0 | K68: All Practices NPK
A69: All PracticesPosEff3 | B69: =IF('Combined Practice Effects'!E97>0,'Combined Practice Effects'!B97,"NA") -> NA | C69: =IF('Combined Practice Effects'!C97>0,'Combined Practice Effects'!C97,0) -> 0 | D69: =IF('Combined Practice Effects'!C97>0,'Combined Practice Effects'!D97,0) -> 0 | E69: 0 | G69: =IF('Combined Practice Effects'!F72>0,'Combined Practice Effects'!B55,"NA") -> NA | H69: =IF('Combined Practice Effects'!F72>0,'Combined Practice Effects'!F72,0) -> 0 | I69: =IF('Combined Practice Effects'!F72>0,SUM('Combined Practice Effects'!C68:F68),0) -> 0 | J69: 0 | K69: All Practices Pesticides
G70: =IF('Farm Info'!C54>0,'Farm Info'!B54,"NA") -> NA | J70: =IF('Farm Info'!C54>0,'Farm Info'!D54, 0) -> 0 | K70: All Practices Learning Activities
G71: =IF('Combined Practice Effects'!C100>0,'Combined Practice Effects'!B100,"NA") -> NA | H71: =IF('Combined Practice Effects'!C100>0,'Combined Practice Effects'!C100,0) -> 0 | I71: =IF('Combined Practice Effects'!C100>0,'Combined Practice Effects'!D100,0) -> 0 | J71: =I71*H71 -> 0 | K71: All PracticesNegEff1
G72: =IF('Combined Practice Effects'!C101>0,'Combined Practice Effects'!B101,"NA") -> NA | H72: =IF('Combined Practice Effects'!C101>0,'Combined Practice Effects'!C101,0) -> 0 | I72: =IF('Combined Practice Effects'!C101>0,'Combined Practice Effects'!D101,0) -> 0 | J72: =I72*H72 -> 0 | K72: All PracticesNegEff2
G73: =IF('Combined Practice Effects'!C102>0,'Combined Practice Effects'!B102,"NA") -> NA | H73: =IF('Combined Practice Effects'!C102>0,'Combined Practice Effects'!C102,0) -> 0 | I73: =IF('Combined Practice Effects'!C102>0,'Combined Practice Effects'!D102,0) -> 0 | J73: 0 | K73: All PracticesNegEff3
B74: Total Decreased Cost | E74: =SUM(E39:E72) -> 0 | G74: Total Increased Cost | J74: =SUM(J39:J73) -> 0
B76: Annual Total Increased Net Income | E76: =IFERROR(E74+E36,0) -> 0 | G76: Annual Total Decreased Net Income | J76: =IFERROR(J74+J36,0) -> 0
B77: Total Acres in this Study Area | E77: ='Farm Info'!D31 -> 0 | G77: Total Acres in this Study Area | J77: ='Farm Info'!D31 -> 0
B78: Annual Per Acre Increased Net Income | E78: =IFERROR(ROUND(E76/E77,0),0) -> 0 | G78: Annual Per Acre Decreased Net Income | J78: =IFERROR(ROUND(J76/J77,0),0) -> 0
B80: Annual Change in Total Net Income | F80: = | G80: =IFERROR(E76-J76,0) -> 0
B81: Annual Change in Per Acre Net Income | F81: = | G81: =IFERROR(G80/E77,0) -> 0
B82: Return on Investment | F82: = | G82: =IFERROR(G80/J76,0) -> 0
B83: Footnotes: | L83: Notes to authors about editing footnotes:
B84: This table represents estimated average costs and benefits attributed to adopting [list SH practices] over the entire study area (### acres) ,where [list crops] are grown, as reported by the farmer. | L84: Update with featured farmer's information.
B86: All values are in 2021 dollars, unless provided by the farmer.
B87: Prices are stated as per acre values for items that vary by area. Prices such as learning costs, which don't vary by area, are only given as total costs. | L87: Optional footnote (if applicable).
B88: 2021 standard prices (if used) in the analysis: Barley: $5.15/bu, Corn Grain: $5.45/bu, Corn Silage: $49.05/ton, Grain Sorghum: $9.75/cwt, Hay: $186/ton, Oats: $4/bu, Soybeans: $13/bu, Wheat: $7.30/bu (Source: USDA NASS, Crop Values: 2021 Summary). Nitrogen: $.72/Lb, Phosphate: $.62/Lb, Potash: $.56/Lb (Source: Iowa State University Extension and Outreach, Ag Decision Maker: Estimated Costs of Crop Production in Iowa, 2022). Net Income (value of production minus operating costs) values for Barley: -$11/ac, Corn Grain: $429/ac, Grain Sorghum: $136/ac, Oats: $11/ac, Soybeans: $325/ac, Wheat: $36/ac (USDA ERS, May 2022, Commodity Costs and Returns); Net income for Hay: $152/ac (calculated from various sources). | L88: Only include crop price if there was a change in yield. Only include fertilizer prices if there was a change in fertilizer use and delete types of fertilizer that did not change.
B93: Value of decreased erosion ($1.18/ton) is based on estimated N & P content of the soil (2.32 lbs N/ton, 1 lb P/ton) and fertilizer prices (USDA NRCS, May 2010, Final Benefit-Cost Analysis for the EQIP) and [insert farmer name, e.g. Scotty's] estimate of reduced mechanical erosion repair costs. | L93: Only include if there was a change in erosion rate, then edit appropriately depending on if farmer provided an annual savings in mechanical erosion repair cost.
B95: Return on Investment is the ratio of Annual Total Change in Net Income to Annual Total Decreased Net Income, as a percent.
B96: For information about: (1) study methodology, see farmland.org/soilhealthcasestudies; (2) USDA's Nutrient Tracking Tool, see ntt.tiaer.tarleton.edu/welcomes/; (3) USDA's COMET-Farm Tool, see comet-farm.com. | L96: If NTT or COMET results are not featured in the text, remember to remove the NTT or COMET footnote.
B98: This material is based on work supported by USDA NRCS CIG grant NR183A750008G008.
B99: [insert grower's first name] received [insert amount, e.g., $/ac/yr or $/yr] through the [insert name of program (years active)]. This is not included in the analysis because cost-share is temporary and not received by all. | L99: Only include if farmer received financial assistance. Complete missing information based on farmer's unique circumstances.
B102: Impact of Financial Assistance Payments
B103: Increase in Income
B104: Soil Health Practice | C104: Per Acre | D104: Acres | E104: Total
B105: Tillage (Residue Management) | C105: =IFERROR(Tillage!#REF!,0) -> 0 | D105: =Tillage!D226 -> 0 | E105: =IFERROR(D105*C105,0) -> 0
B106: Cover Crop | C106: =IFERROR('Cover Crops'!F136,0) -> 0 | D106: ='Cover Crops'!D136 -> 0 | E106: =IFERROR(D106*C106,0) -> 0
B107: Nutrient Management | C107: =IFERROR('Nutrient Mgt.'!F203,0) -> 0 | D107: ='Nutrient Mgt.'!D203 -> 0 | E107: =IFERROR(D107*C107,0) -> 0
B108: Conservation Crop Rotation | C108: =IFERROR('ONLY CCR'!F138,0) -> 0 | D108: ='ONLY CCR'!D138 -> 0 | E108: =IFERROR(D108*C108,0) -> 0
B109: Total Increase due to Financial Assistance | E109: =SUM(E105:E108) -> 0
B110: Annual Change in Total Net Income = | E110: =IFERROR(G80+E109,0) -> 0
B111: Annual Change in Per Acre Net Income = | E111: =IFERROR(E110/'Farm Info'!D31,0) -> 0

Sheet Prices
B1: PRICES
A3: ABOUT THIS TAB:
A4: This tab is the source for price information used throughout the workbook. The prices and costs appearing below are linked to the preceeding tabs to calculate costs and savings as data is entered. Consequently, changes to values on this tab will automatically update the costs or savings on the Farm Info, Soil Health Practice, and Partial Budget Analysis tabs of the workbook.
B9: Prices Paid Index (PPI): All Items
B10: United States: 2011=100
B11: Month | C11: 2018 | D11: 2019 | E11: 2020 | F11: 2021
B12: January | C12: 108.6 | D12: 110.8 | E12: 111 | F12: 113.4
B13: February | C13: 109.5 | D13: 110.7 | E13: 110.6 | F13: 114.8
B14: March | C14: 109.7 | D14: 110.9 | E14: 109.7 | F14: 116
B15: April | C15: 109.3 | D15: 111.4 | E15: 108.5 | F15: 117
B16: May | C16: 109.7 | D16: 110.8 | E16: 108.6 | F16: 117.9
B17: June | C17: 109.4 | D17: 110.3 | E17: 108.8 | F17: 119.2
B18: July | C18: 109.5 | D18: 110.4 | E18: 109.5 | F18: 120.4
B19: August | C19: 109.6 | D19: 109.6 | E19: 109.8 | F19: 121
B20: September | C20: 109.5 | D20: 109.2 | E20: 110.3 | F20: 121.3
B21: October | C21: 110 | D21: 109.9 | E21: 111.2 | F21: 122.7
B22: November | C22: 110.1 | D22: 110 | E22: 112 | F22: 123.7
B23: December | C23: 110.3 | D23: 110 | E23: 112.8 | F23: 125.2
B24: USDA NASS. (Ongoing). Prices Paid: Indexes for All Items and Production Items by Month - United States. Retrieved September 22, 2022, from https://www.nass.usda.gov/Charts_and_Maps/Agricultural_Prices/index.php
B26: Average Prices Paid Index (PPI): All Items
B27: Year | C27: Average PPI (calculated) | D27: % Change in PPI from previous year (calculated)
B28: 2018 | C28: =AVERAGE(C13:C24) -> 109.6909091
B29: 2019 | C29: =AVERAGE(D13:D24) -> 110.2909091 | D29: =C29/C28 -> 1.005469915
B30: 2020 | C30: =AVERAGE(E13:E24) -> 110.1636364 | D30: =C30/C29 -> 0.998846027
B31: 2021 | C31: =AVERAGE(F13:F24) -> 119.9272727 | D31: =C31/C30 -> 1.088628487
B33: Prices Received Index (PRI): Crop Production
B34: United States: 2011=100
B35: Month | C35: 2018 | D35: 2019 | E35: 2020 | F35: 2021
B36: January | C36: 78.4 | D36: 78.5 | E36: 82.5 | F36: 88.4
B37: February | C37: 86.3 | D37: 84.8 | E37: 86.4 | F37: 97.2
B38: March | C38: 87.7 | D38: 87.5 | E38: 87.2 | F38: 98.4
B39: April | C39: 88.4 | D39: 85.5 | E39: 86.1 | F39: 105.2
B40: May | C40: 88.7 | D40: 84.7 | E40: 86.5 | F40: 106.1
B41: June | C41: 89.8 | D41: 89.7 | E41: 89.2 | F41: 107.5
B42: July | C42: 86.5 | D42: 89 | E42: 88.3 | F42: 106.8
B43: August | C43: 89.3 | D43: 88.9 | E43: 90 | F43: 110
B44: September | C44: 87.8 | D44: 88.3 | E44: 93.2 | F44: 108.5
B45: October | C45: 80 | D45: 83 | E45: 87.8 | F45: 106.1
B46: November | C46: 83.9 | D46: 84.9 | E46: 91.7 | F46: 107.4
B47: December | C47: 87.4 | D47: 85.9 | E47: 91.3 | F47: 106
B48: USDA NASS. (Ongoing). Prices Received: Indexes for Ag, Crop, and Livestock Production by Month - United States. Retrieved September 22, 2022, from https://www.nass.usda.gov/Charts_and_Maps/Agricultural_Prices/index.php
B50: Average Prices Received Index (PRI): Crop Production
B51: Year | C51: Average PRI (calculated) | D51: % Change in PRI from previous year (calculated)
B52: 2018 | C52: =AVERAGE(C36:C47) -> 86.18333333
B53: 2019 | C53: =AVERAGE(D36:D47) -> 85.89166667 | D53: =C53/C52 -> 0.9966157416
B54: 2020 | C54: =AVERAGE(E36:E47) -> 88.35 | D54: =C54/C53 -> 1.028621325
B55: 2021 | C55: =AVERAGE(F36:F47) -> 103.9666667 | D55: =C55/C54 -> 1.176759102
B57: Labor Rate - Farm Manager1,2,3
B58: Year | C58: $/hr
B59: 2019 | C59: 25.25
B60: 2020 | C60: 26.16
B61: 2021 | C61: 26.18
B62: 1 U.S. Bureau of Labor Statistics. (2020, March 31). 45-1011 First-Line Supervisors of Farming, Fishing, and Forestry Workers. Occupational Employment and Wage Statistics, May 2019. Retrieved February 17, 2022, from https://www.bls.gov/oes/2019/may/oes451011.htm
B63: 2 U.S. Bureau of Labor Statistics. (2021, March 31). 45-1011 First-Line Supervisors of Farming, Fishing, and Forestry Workers. Occupational Employment and Wage Statistics, May 2020. Retrieved February 17, 2022, from https://www.bls.gov/oes/current/oes451011.htm
B64: 3 U.S. Bureau of Labor Statistics. (2022, March 31). 45-1011 First-Line Supervisors of Farming, Fishing, and Forestry Workers. Occupational Employment and Wage Statistics, May 2021. Retrieved April 6, 2022, from https://www.bls.gov/oes/current/oes451011.htm
B65: Note: BLS Occupational Employment and Wages Statistic updates will be announced on their homepage: https://www.bls.gov/oes/home.htm (Annual update on March 31)
B67: National Average Row Crop Prices
B68: Crop | C68: Unit | D68: 2019 Prices1 ($/unit) | E68: 2020 Prices1 ($/unit) | F68: 2021 Prices1 ($/unit)*
B69: Barley | C69: Bushel | D69: 4.69 | E69: 4.75 | F69: 5.15
B70: Corn Grain | C70: Bushel | D70: 3.56 | E70: 4.53 | F70: 5.45
B71: Corn Silage | C71: Ton | D71: =D70*9 -> 32.04 | E71: =E70*9 -> 40.77 | F71: =F70*9 -> 49.05
B72: Grain Sorghum (milo) | C72: cwt | D72: 5.96 | E72: 9 | F72: 9.75
B73: Hay | C73: Ton | D73: 163 | E73: 156 | F73: 186
B74: Oats | C74: Bushel | D74: 2.82 | E74: 2.77 | F74: 4
B75: Soybeans | C75: Bushel | D75: 8.57 | E75: 10.8 | F75: 13
B76: Wheat | C76: Bushel | D76: 4.58 | E76: 5.05 | F76: 7.3
B77: 1 USDA NASS. (February 2022). Crop Values: 2021 Summary. Retrieved on February 28, 2022 from https://usda.library.cornell.edu/concern/publications/k35694332
B78: *Corn Silage price is nine times Corn Grain price based on guidance from Michigan State University Extension. Retrieved on May 9, 2022 from https://www.canr.msu.edu/news/pricing-standing-corn-silage
B79: Note: Used "Corn for grain", "Hay all", "Soybean for beans", "Wheat all", "Barley", "Oats", "Sorghum for grain" from Crop Values report.
B81: Organic National Average Row Crop Prices
B82: Crop | C82: Unit | D82: Quantity | E82: Dollars | F82: 2019 Prices1 | G82: 2021 Prices*
B83: Barley | C83: Bushels | D83: 3405339 | E83: 27794499 | F83: =E83/D83 -> 8.16203585 | G83: =F83*($C$55/$C$53) -> 9.879650652
B84: Corn Grain | C84: Bushels | D84: 32269911 | E84: 278156872 | F84: =E84/D84 -> 8.619697526 | G84: =F84*($C$55/$C$53) -> 10.43362242
B85: Corn Silage | C85: Tons | D85: 284421 | E85: 18531684 | F85: =E85/D85 -> 65.15582183 | G85: =F85*($C$55/$C$53) -> 78.86718086
B86: Grain Sorghum (milo) | C86: Bushels | D86: 322225 | E86: 2332306 | F86: =E86/D86 -> 7.238128637 | G86: =F86*($C$55/$C$53) -> 8.76131686
B87: Hay | C87: Tons | D87: 1210531 | E87: 191993604 | F87: =E87/D87 -> 158.6027983 | G87: =F87*($C$55/$C$53) -> 191.979093
B88: Oats | C88: Bushels | D88: 2555539 | E88: 13522613 | F88: =E88/D88 -> 5.291491541 | G88: =F88*($C$55/$C$53) -> 6.405030412
B89: Soybeans | C89: Bushels | D89: 5404343 | E89: 108998945 | F89: 20.1687689 | G89: 24.41307468
B90: Wheat | C90: Bushels | D90: 16969610 | E90: 149113177 | F90: =E90/D90 -> 8.787071536 | G90: 10.63621854
B91: 1 USDA NASS. (2020, October 22). Table 13. Certified Organic Field Crops and Hay Harvested and Value of Sales: 2019 Organic Survey. Retrieved February 28, 2022, from https://www.nass.usda.gov/Surveys/Guide_to_NASS_Surveys/Organic_Production/index.php
B92: 2 The 2021 price was calculated using the Prices Received Index; USDA NASS will release their next national organic prices report in 2023.
B94: Calculated Value ($/ton) of Reduced Nutrient Loss with Soil Erosion Reduction
B95: Fertilizer | C95: lbs/ton of soil1 | D95: 2020 Price ($/lb)2 | E95: 2021 Price ($/lb)3 | F95: $/ton
B96: Nitrogen | C96: 2.32 | D96: 0.34 | E96: 0.72 | F96: =E96*C96 -> 1.6704
B97: Phosphorus | C97: 1 | D97: 0.39 | E97: 0.62 | F97: =E97*C97 -> 0.62
B98: Total Combined Benefit | F98: =SUM(F96:F97) -> 2.2904
B99: 1 USDA NRCS. (May 24, 2010). Final Benefit-Cost Analysis for the Environmental Quality Incentives Program (EQIP). Retrieved on February 22, 2022, from https://www.blogs.nrcs.usda.gov/Internet/FSE_DOCUMENTS/16/nrcs143_007976.pdf
B100: Note: Following page 23 instructions in the above referece, we estimate the amount of Nitrogen and Phosphorous per ton eroded soil. They assume topsoil contains 40 lbs of organic matter of which 23.2 lbs is carbon. With an average carbon-nitrogren ratio of 10 to 1, each ton of soil eroded contains 2.32 lbs of nitrogen. The soil also contains 0.05% phosphorus, or one pound per ton of soil.
B101: 2 Iowa State University Extension and outreach. (January 2021). Ag Decision Maker: Estimated Costs of Crop Production in Iowa (File A1-20). Retrieved on February 22, 2021 from https://www.extension.iastate.edu/agdm/crops/html/a1-20.html
B102: 3 Iowa State University Extension and Outreach. (January 2022). Ag Decision Maker: Estimated Costs of Crop Production in Iowa (File A1-20). Retrieved on February 22, 2022 from https://www.extension.iastate.edu/agdm/crops/html/a1-20.html
B104: Fertilizer Prices by Element
B105: Fertilizer Element | C105: 2020 Price ($/lb)1 | D105: 2021 Price ($/lb)2
B106: Nitrogen | C106: 0.34 | D106: 0.72
B107: Phosphate | C107: 0.39 | D107: 0.62
B108: Potash | C108: 0.3 | D108: 0.56
B109: 1 Iowa State University Extension and Outreach. (January 2021). Ag Decision Maker: Estimated Costs of Crop Production in Iowa (File A1-20). Retrieved on February 22, 2021 from https://www.extension.iastate.edu/agdm/crops/html/a1-20.html
B110: 2 Iowa State University Extension and Outreach. (January 2022). Ag Decision Maker: Estimated Costs of Crop Production in Iowa (File A1-20). Retrieved on February 22, 2022 from https://www.extension.iastate.edu/agdm/crops/html/a1-20.html
B111: Note: Nitrogen price is the average of anhydrous ammonia, Urea, and UAN prices. Phosphorus price is for phosphate. Potassium price for potash.
B113: Net Income for Conservation Crop Rotation*
B114: Crop | C114: Unit | D114: 2020 Net Income1 | E114: 2021 Net Income2
B115: Barley | C115: $/Ac | D115: 62.44 | E115: -11.23
B116: Corn Grain | C116: $/Ac | D116: 154.25 | E116: 428.82
B117: Grain Sorghum (Milo) | C117: $/Ac | D117: 71.63 | E117: 136.47
B118: Hay | C118: $/Ac | D118: -- | E118: =IFERROR((((D124/D123)+$D125)*-1+D126),0) -> 0
B119: Oats | C119: $/Ac | D119: -23.65 | E119: 11.01
B120: Soybeans | C120: $/Ac | D120: 208.97 | E120: 324.92
B121: Wheat | C121: $/Ac | D121: -1.06 | E121: 35.63
B123: Years of Hay | C123: Years | D123: =IFERROR(VLOOKUP(B118,'Farm Info'!B20:C23,2,TRUE),0) -> 0
B124: Hay Establishment Variable Costs2 | C124: $/Ac | D124: 168.6
B125: Hay Maintenance & Harvest Variable Costs2 | C125: $/Ac | D125: 123.57
B126: Hay Revenue (calculated) | C126: $/Ac | D126: =D127*D128 -> 444.54
B127: National Average Hay Yield3 | C127: Tons | D127: 2.39
B128: National Average Hay Price4 | C128: $/Ac | D128: 186
B129: *Net Income values are the value of production minus operating costs, hired labor, opportunity cost of unpaid labor, and capital recovery of machinery and equipment. See "Net Income Values by Crop" tab for further explanation.
B130: 1 USDA Economic Research Service. (May 2, 2022). Commodity Costs and Returns: Recent Costs and Returns. Retrieved on June 17, 2022 from https://www.ers.usda.gov/data-products/commodity-costs-and-returns/
B131: 2 Iowa State University Extension and Outreach. (January 2022). Ag Decision Maker: Estimated Costs of Crop Production in Iowa (File A1-20). Retrieved on February 22, 2022 from https://www.extension.iastate.edu/agdm/crops/html/a1-20.html
B132: 3 USDA NASS. QuickStats: Statistics by Subject: Hay - Yield, Measured in Tons/Acre, National Average 2010-2021. Retrieved on March 2, 2022 from https://quickstats.nass.usda.gov/
B133: 4 USDA NASS. (February 2022). Crop Values: 2021 Summary. Retrieved on February 28, 2022 from https://usda.library.cornell.edu/concern/publications/k35694332
B134: Note: Hay establishment, maintenance, and harvest variable costs are from the "Oats and Hay Production - Seeding Year Costs" budget in reference 2. Specifically, Hay Establishment Variable Costs is Alfalfa Seeded with Herbicide: Establishment Costs: Total Establishment Costs, Variable in the budget; and Hay Maintenance & Harvest Variable Costs is Alfalfa Seeded with Herbicide: Annual Costs: Total Fertilizer and Total Harvest Cost, Variable in the budget.

Sheet Machinery Costs
A1: MACHINERY COSTS
A3: ABOUT THIS TAB:
A4: This tab is the source for machinery costs used on the "Tillage" and "Nutrient Mgt." tabs. This tab contains machinery costs expressed on a per acre basis (with the exception of manure application costs which are either in $/gal or $/hr). Machinery costs include overhead (depreciation, interest, insurance, housing, and repair charges), fuel and lubrication charges, and labor costs for both the tractor and the implement it is pulling. These costs are used to calculate changes in either establishment costs due to a change in tillage (on the "Tillage" tab) or changes in fertilizer application costs (on the "Nutrient Mgt." tab). Nearly all costs shown below are from the University of Illinois Farmdoc website. The fertilizer application costs are from the Iowa State Custom Rate Survey as they were not available from the University of Illinois. We chose the University of Illinois as a source for machinery costs because their dataset appeared to be the most comprehensive. Because these costs are from the Midwest, they are most appropriate for use in that region. AFT has used these machinery costs for farms outside the Midwest -- using national prices or costs to avoid biasing the results in cases where the farmer's prices may not be representative of typical prices. Users should evaluate the costs shown for relevancy in their area and make adjustments as needed, being careful to document all changes. Note: If a user needs to add their own equipment and per acre cost, you can add to this list as needed in the clearly identified cells with instructions (rows 115-119 & 136-140), but we encourage using published prices as those include depreciation, labor, fuel, interest, storage, insurance, etc. Most farmers will undervalue their per acre machinery costs.
B18: Tillage, Fitting and Planting Machinery Costs1
E19: 2019 | F19: 2021
B20: Item | C20: Source | D20: Tractor HP | E20: ($/Acre) | F20: ($/Acre)
B21: Air seeder, 28 ft. | C21: Univ. Illinois | D21: 285 | E21: 20.3 | F21: 21.5
B22: Air seeder, 36 ft. | C22: Univ. Illinois | D22: 285 | E22: 18 | F22: 19.3
B23: Air seeder, 44 ft. | C23: Univ. Illinois | D23: 310 | E23: 16.8 | F23: 18.1
B24: Broadcast seeding, 20 ft. | C24: Univ. Illinois | D24: 85 | E24: 8.9 | F24: 9.1
A25: * | B25: Chisel Plow, 12 ft | C25: Univ. Illinois | D25: 140 | E25: 17.1 | F25: =E25*(Prices!C$31/Prices!C$29) -> 18.59406528
A26: * | B26: Chisel Plow, 15 ft | C26: Univ. Illinois | D26: 155 | E26: 14.5 | F26: =E26*(Prices!C$31/Prices!C$29) -> 15.76689746
B27: Chisel Plow, 21 ft | C27: Univ. Illinois | D27: 205 | E27: 16 | F27: 15.7
B28: Chisel Plow, 23 ft | C28: Univ. Illinois | D28: 225 | E28: 17.4 | F28: 15.7
B29: Chisel Plow, 27 ft. | C29: Univ. Illinois | D29: 260 | E29: 15.9 | F29: 15.8
B30: Chisel Plow, 30 ft. | C30: Univ. Illinois | D30: 285 | E30: 15.1 | F30: 14.9
B31: Chisel Plow, 35 ft. | C31: Univ. Illinois | D31: 310 | E31: 12.7 | F31: 13.6
B32: Chisel Plow, 40 ft. | C32: Univ. Illinois | D32: 390 | E32: 11.9 | F32: 12.2
B33: Chisel Plow, 44 ft. | C33: Univ. Illinois | D33: 440 | E33: 12.2 | F33: 13
B34: Chisel Plow, 47 ft. | C34: Univ. Illinois | D34: 440 | E34: 12.1 | F34: 12.5
B35: Chisel Plow, 55 ft. | C35: Univ. Illinois | D35: 490 | E35: 10.7 | F35: 11.6
B36: Chisel Plow, 61 ft. | C36: Univ. Illinois | D36: 570 | E36: 11 | F36: 11.5
B37: Conventional planter, 12-row | C37: Univ. Illinois | D37: 175 | E37: 16.2 | F37: 18.1
B38: Conventional planter, 16-row | C38: Univ. Illinois | D38: 205 | E38: 14.4 | F38: 17.2
B39: Conventional planter, 24-row | C39: Univ. Illinois | D39: 240 | E39: 13.7 | F39: 15.7
B40: Conventional planter, 32-row | C40: Univ. Illinois | D40: 260 | E40: 16.4 | F40: 18.9
B41: Conventional planter, 36-row | C41: Univ. Illinois | D41: 310 | E41: 16.3 | F41: 18.4
B42: Conventional planter, 6-row | C42: Univ. Illinois | D42: 120 | E42: 16.5 | F42: 19.7
B43: Conventional planter, 8-row | C43: Univ. Illinois | D43: 140 | E43: 15.8 | F43: 17.6
B44: Field cultivator, 29 ft. 6 in. | C44: Univ. Illinois | D44: 240 | E44: 9.5 | F44: 12.5
B45: Field cultivator, 31 ft. 6 in, | C45: Univ. Illinois | D45: 240 | E45: 10.6 | F45: 11.9
B46: Field cultivator, 35 ft. 6 in. | C46: Univ. Illinois | D46: 285 | E46: 9.8 | F46: 12.2
B47: Field cultivator, 40 ft. 6 in. | C47: Univ. Illinois | D47: 310 | E47: 10.9 | F47: 12.8
B48: Field cultivator, 44 ft. 6 in. | C48: Univ. Illinois | D48: 310 | E48: 10.2 | F48: 11.8
B49: Field cultivator, 48 ft. 6 in. | C49: Univ. Illinois | D49: 390 | E49: 9.9 | F49: 11.1
B50: Field cultivator, 52 ft. 6 in. | C50: Univ. Illinois | D50: 390 | E50: 9.4 | F50: 10.4
B51: Field cultivator, 56 ft. 6 in. | C51: Univ. Illinois | D51: 440 | E51: 9 | F51: 10.3
B52: Field cultivator, 60 ft. 6 in. | C52: Univ. Illinois | D52: 490 | E52: 8.2 | F52: 9.6
B53: Field cultivator, 64 ft. 6 in. | C53: Univ. Illinois | D53: 590 | E53: 7.9 | F53: 10
B54: Field Sprayer, 90 ft. | C54: Univ. Illinois | D54: 95 | E54: 3.9 | F54: 4.6
B55: Grain drill, 13 ft. | C55: Univ. Illinois | D55: 110 | E55: 16.6 | F55: 19.3
B56: Grain drill, 25 ft. | C56: Univ. Illinois | D56: 140 | E56: 14.5 | F56: 15.4
B57: Grain drill, 30 ft. | C57: Univ. Illinois | D57: 175 | E57: 14.4 | F57: 15.4
B58: Grain drill, 35 ft. | C58: Univ. Illinois | D58: 225 | E58: 15.5 | F58: 16.2
B59: Moldboard plow, 10 bottom | C59: Univ. Illinois | D59: 285 | E59: 39.2 | F59: 40
B60: Moldboard plow, 6 bottom | C60: Univ. Illinois | D60: 175 | E60: 35 | F60: 38.5
B61: Moldboard plow, 7 bottom | C61: Univ. Illinois | D61: 205 | E61: 39.8 | F61: 40.3
B62: Moldboard plow, 9 bottom | C62: Univ. Illinois | D62: 260 | E62: 40.3 | F62: 41.8
B63: Mulch finisher (disk, chisel, and drag), 21 ft 9" | C63: Univ. Illinois | D63: 225 | E63: 17.6 | F63: 18.9
B64: Mulch finisher (disk, chisel, and drag), 24 ft 9" | C64: Univ. Illinois | D64: 240 | E64: 16.6 | F64: 17.9
B65: Mulch finisher (disk, chisel, and drag), 27 ft 9" | C65: Univ. Illinois | D65: 260 | E65: 15.8 | F65: 18.7
B66: Mulch finisher (disk, chisel, and drag), 30 ft 9" | C66: Univ. Illinois | D66: 285 | E66: 16.5 | F66: 18.2
B67: Mulch finisher (disk, chisel, and drag), 33 ft 9" | C67: Univ. Illinois | D67: 285 | E67: 15.5 | F67: 17.1
B68: Mulch finisher (disk, chisel, and drag), 38 ft 3" | C68: Univ. Illinois | D68: 310 | E68: 15.4 | F68: 15.4
B69: Mulch finisher (disk, chisel, and drag), 44 ft 3" | C69: Univ. Illinois | D69: 390 | E69: 14.2 | F69: 15.7
B70: Mulch finisher (disk, chisel, and drag), 50 ft 3" | C70: Univ. Illinois | D70: 490 | E70: 13.4 | F70: 15.2
B71: Mulch finisher (disk, chisel, and drag), 56 ft 3" | C71: Univ. Illinois | D71: 590 | E71: 12.6 | F71: 14.5
B72: Mulch tiller (disk, chisel shanks), 11 ft. 3 in. | C72: Univ. Illinois | D72: 140 | E72: 20.5 | F72: 22.5
B73: Mulch tiller (disk, chisel shanks), 13 ft. 9 in. | C73: Univ. Illinois | D73: 175 | E73: 20.4 | F73: 21
B74: Mulch tiller (disk, chisel shanks), 16 ft. 3 in. | C74: Univ. Illinois | D74: 205 | E74: 21.4 | F74: 21.6
B75: Mulch tiller (disk, chisel shanks), 18 ft. 9 in. | C75: Univ. Illinois | D75: 240 | E75: 24.5 | F75: 22.3
B76: Mulch tiller (disk, chisel shanks), 21 ft 3 in. | C76: Univ. Illinois | D76: 260 | E76: 22.9 | F76: 22.7
B77: No-till drill, 10 ft | C77: Univ. Illinois | D77: 110 | E77: 33.8 | F77: 35.9
B78: No-till drill, 15 ft | C78: Univ. Illinois | D78: 140 | E78: 25.8 | F78: 27.2
B79: No-till drill, 20 ft. | C79: Univ. Illinois | D79: 175 | E79: 24.9 | F79: 26.6
B80: No-till planter (30" rows), 12-row | C80: Univ. Illinois | D80: 175 | E80: 17.8 | F80: 19.5
B81: No-till planter (30" rows), 16-row | C81: Univ. Illinois | D81: 225 | E81: 17.2 | F81: 19
B82: No-till planter (30" rows), 24-row | C82: Univ. Illinois | D82: 260 | E82: 15.5 | F82: 18
B83: No-till planter (30" rows), 8-row | C83: Univ. Illinois | D83: 140 | E83: 17 | F83: 19
B84: Offset disk, 10 ft. | C84: Univ. Illinois | D84: 120 | E84: 20 | F84: 21.7
B85: Offset disk, 14 ft. | C85: Univ. Illinois | D85: 155 | E85: 16 | F85: 17.5
B86: Offset disk, 16 ft. | C86: Univ. Illinois | D86: 205 | E86: 14.7 | F86: 18.8
B87: Self-propelled sprayer (High-crop ready), 100 ft boom | C87: Univ. Illinois | D87: 85 | E87: 5 | F87: 5.7
B88: Self-propelled sprayer (High-crop ready), 80 ft boom | C88: Univ. Illinois | D88: 85 | E88: 4.4 | F88: 5.2
B89: Self-propelled sprayer (High-crop ready), 90 ft boom | C89: Univ. Illinois | D89: 85 | E89: 5.3 | F89: 6.4
B90: Self-propelled sprayer , 120 ft boom | C90: Univ. Illinois | D90: 85 | E90: 4.4 | F90: 4.5
B91: Split-row planter (soybean acres only), 12-row split | C91: Univ. Illinois | D91: 205 | E91: 14.3 | F91: 17.1
B92: Split-row planter (soybean acres only), 16-row split | C92: Univ. Illinois | D92: 225 | E92: 12.5 | F92: 14.9
B93: Strip Till, 12-row | C93: Univ. Illinois | D93: 285 | E93: 19.3 | F93: 19.6
B94: Strip Till, 16-row | C94: Univ. Illinois | D94: 440 | E94: 16.7 | F94: 17.3
B95: Strip Till, 24-row | C95: Univ. Illinois | D95: 640 | E95: 11.3 | F95: 14.2
B96: Tandem disk, 23 ft. 7 in. | C96: Univ. Illinois | D96: 175 | E96: 12.7 | F96: 14.2
B97: Tandem disk, 26 ft. 5 in. | C97: Univ. Illinois | D97: 205 | E97: 12.5 | F97: 15
B98: Tandem disk, 29 ft. 3 in. | C98: Univ. Illinois | D98: 225 | E98: 13.4 | F98: 14.3
B99: Tandem disk, 33 ft. 7 in. | C99: Univ. Illinois | D99: 240 | E99: 12.6 | F99: 13.7
B100: Tandem disk, 40 ft. 8 in. | C100: Univ. Illinois | D100: 285 | E100: NA | F100: 14.4
B101: Tandem disk, 44 ft. 11 in. | C101: Univ. Illinois | D101: 310 | E101: NA | F101: 14.8
B102: Vertical tillage, rolling basket, 21 ft 9 in | C102: Univ. Illinois | D102: 190 | E102: NA | F102: 11.9
B103: Vertical tillage, rolling basket, 25 ft 5 in | C103: Univ. Illinois | D103: 260 | E103: NA | F103: 14
B104: Vertical tillage, rolling basket, 30 ft 3 in | C104: Univ. Illinois | D104: 285 | E104: NA | F104: 13.2
B105: Vertical tillage, rolling basket, 33 ft 10 in | C105: Univ. Illinois | D105: 390 | E105: NA | F105: 12.8
B106: Vertical tillage, rolling basket, 43 ft 6 in | C106: Univ. Illinois | D106: 440 | E106: NA | F106: 11.8
B107: Vertical tillage, rolling basket, 49 ft 6 in | C107: Univ. Illinois | D107: 590 | E107: NA | F107: 12.4
B108: V-Ripper (shanks only), 10 ft. 6 in. | C108: Univ. Illinois | D108: 175 | E108: 17.3 | F108: 22
B109: V-Ripper (shanks only), 14 ft. 7 in. | C109: Univ. Illinois | D109: 240 | E109: 20.4 | F109: 21.4
B110: V-Ripper (shanks only), 15 ft | C110: Univ. Illinois | D110: 260 | E110: 24.4 | F110: 25.5
B111: V-Ripper (shanks only), 18 ft. 4 in. | C111: Univ. Illinois | D111: 310 | E111: 22.5 | F111: 23.4
B112: V-Ripper (shanks only), 21 ft. 8 in. | C112: Univ. Illinois | D112: 440 | E112: 19.2 | F112: 21.1
B114: [insert user machinery description & cost (in 'Machinery Costs' tab)] | C114: [insert source] | D114: [insert horsepower] | E114: NA | F114: [insert user price]
B115: [insert user machinery description & cost] | C115: [insert source] | D115: [insert horsepower] | E115: NA | F115: [insert user price]
B116: [insert user machinery description & cost] | C116: [insert source] | D116: [insert horsepower] | E116: NA | F116: [insert user price]
B117: [insert user machinery description & cost] | C117: [insert source] | D117: [insert horsepower] | E117: NA | F117: [insert user price]
B118: [insert more rows if needed (in 'Machinery Costs' tab)] | C118: [See 'Machinery Costs' tab] | F118: [See 'Machinery Costs' tab]
B119: Fertilizer Application Machinery Costs1,2
B120: Item | C120: Source | D120: Tractor HP | E120: 2019 ($/ac) | F120: 2021 ($/ac)
B121: Anhydrous ammonia applicator, 27 ft. 6 in. | C121: Univ. Illinois | D121: 140 | E121: 17.6 | F121: 18.8
B122: Anhydrous ammonia applicator, 37 ft. 6 in. | C122: Univ. Illinois | D122: 240 | E122: 17.2 | F122: 17.9
B123: Anhydrous ammonia applicator, 47 ft. 6 in. | C123: Univ. Illinois | D123: 290 | E123: 16.5 | F123: 17.1
B124: Anhydrous ammonia applicator, 52 ft. 6 in. | C124: Univ. Illinois | D124: 370 | E124: 15.3 | F124: 16.4
B125: Anhydrous ammonia applicator, 62 ft. 6 in. | C125: Univ. Illinois | D125: 470 | E125: 14 | F125: 14.9
B126: Fertilizer Application, Anhydrous, injecting, with tool bar | C126: Iowa State Univ. | E126: 12.5 | F126: 13.4
B127: Fertilizer Application, Anhydrous, injecting, without tool bar | C127: Iowa State Univ. | E127: 11.4 | F127: 11.95
B128: Fertilizer application, dry bulk, applied | C128: Iowa State Univ. | E128: 5.8 | F128: 6.15
B129: Fertilizer application, liquid, side dressing | C129: Iowa State Univ. | E129: 11.35 | F129: 11.35
B130: Fertilizer application, liquid, spraying | C130: Iowa State Univ. | E130: 7.3 | F130: 6.8
B131: Manure Application, liquid, drag line ($/gal) | C131: Iowa State Univ.3 | F131: =12.7/1000 -> 0.0127
B132: Manure Application, liquid, injected ($/gal) | C132: Iowa State Univ.3 | F132: =13.35/1000 -> 0.01335
B133: Manure Application, loading and spreading solid manure ($/hr) | C133: Iowa State Univ.3 | F133: 141.65
B135: [insert user machinery description & cost (in 'Machinery Costs' tab)] | C135: [insert source] | D135: [insert horsepower] | E135: NA | F135: [insert user price]
B136: [insert user machinery description & cost] | C136: [insert source] | D136: [insert horsepower] | E136: NA | F136: [insert user price]
B137: [insert user machinery description & cost] | C137: [insert source] | D137: [insert horsepower] | E137: NA | F137: [insert user price]
B138: [insert more rows if needed (in 'Machinery Costs' tab)] | C138: [See 'Machinery Costs' tab] | F138: [See 'Machinery Costs' tab]
B139: 1 University of Illinois at Urbana-Champaign Department of Ag and Consumer Economics. (September 2021). Farm Business Management Machinery Cost Estimates: Field Operations. Retrieved on February 22, 2022 from https://farmdoc.illinois.edu/management#handbook
B140: 2 Iowa State University Extension and Outreach. (March 2022). Ag Decision Maker: 2022 Iowa Farm Custom Rate Survey (File A3-10). Retrieved on March 23, 2022 from https://www.extension.iastate.edu/agdm/crops/html/a3-10.html
B141: 3 Liquid manure application costs were converted from $/1000 gallons to $/gallon.
B142: * 2021 prices for the Chisel Plow 12' and 15' mahinery calculated using the Prices Paid Index because the September 2021 University of Illinois publication did not include machinery cost estimates for this smaller equipment, but it is used commonly enough by small-scale farmers that we kept it as an option.

Sheet Net Income Values by Crop
A1: 2020 & 2021 Calculated Net Income by Crop
A2: ABOUT THIS TAB:
A3: The USDA Economic Research Service publish biannual commodity costs and returns values by crop using national average production and cost values collected through the Agricultural Resource Management Survey (ARMS). ARMS is crop-specific. Using data below, we calculate net income in the row highlighted blue for use in the "ONLY CCR" tab. Net income is the value of production minus operating costs, hired labor, opportunity cost of unpaid labor, and capital recovery of machinery and equipment. • Operating costs include seed, fertilizer, chemicals, custom services, fuel/lube/electricity, repairs, purchased irrigation water, and interest on operating capital. The budget items included in this Tool’s partial budget analysis represent variable costs incurred when switching crop production or budget items primarily composed of variable costs. Operating costs are variable costs calculated from direct costing from farmer-provided answers in ARMS. • Three allocated overhead budget items are included in this partial budget analysis: hired labor, opportunity cost of unpaid labor, and capital recover of machinery. • Hired labor is included as it is a variable cost that is calculated similar to other operating costs using direct costing in the ARMS. • Opportunity cost of unpaid labor is measured directly as an estimate of the off-farm wages paid to farm operators working off-farm. Though part of the labor is fixed as an overhead from running the entire farm enterprise, the value also varies by individual production system. • Capital recovery of machinery and equipment is included as it is directly tied to crop production. This category does include both fixed and variable costs, which are attributed to individual production systems. Note: Only the 2021 net income calculated values in the row highlighted blue (Row 52) are used directly in the Tool. The other values in this table are provided for user reference in order to better understand the calculated net income values. We include 2020 values only for users' reference.
A22: Crop Production Costs and Returns Per Planted Acre, Excluding Government Payments 1
B23: Barley (2020) | C23: Barley (2021) | D23: Corn (2020) | E23: Corn (2021) | F23: Grain Sorghum (2020) | G23: Grain Sorghum (2021) | H23: Oats (2020) | I23: Oats (2021) | J23: Soybeans (2020) | K23: Soybeans (2021) | L23: Wheat (2020) | M23: Wheat (2021)
A24: Gross value of production
A25: Primary product, grain | B25: 313.93 | C25: 246.93 | D25: 642.58 | E25: 927.36 | F25: 322.52 | G25: 396.53 | H25: 192.1 | I25: 233.05 | J25: 524.17 | K25: 650.69 | L25: 238.41 | M25: 282.32
A26: Secondary product, silage | B26: 13.65 | C26: 18.15 | D26: 2.13 | E26: 2.34 | F26: 6.46 | G26: 7.24 | H26: 4.98 | I26: 5.47 | L26: 4.99 | M26: 6.48
A27: Secondary product, straw | H27: 72.86 | I27: 80.15
A28: Total, gross value of production | B28: =B26+B25 -> 327.58 | C28: =C26+C25 -> 265.08 | D28: 644.71 | E28: 929.7 | F28: =F26+F25 -> 328.98 | G28: =G26+G25 -> 403.77 | H28: =H26+H25+H27 -> 269.94 | I28: =I26+I25+I27 -> 318.67 | J28: 524.17 | K28: 650.69 | L28: =L26+L25 -> 243.4 | M28: =M26+M25 -> 288.8
A29: Operating costs
A30: Seed | B30: 19.69 | C30: 19.6 | D30: 91.84 | E30: 91.42 | F30: 13.35 | G30: 13.22 | H30: 18.26 | I30: 18.23 | J30: 59.66 | K30: 59.46 | L30: 14.53 | M30: 14.51
A31: Fertilizer ¹ | B31: 47.35 | C31: 47.54 | D31: 116.93 | E31: 116.57 | F31: 39.81 | G31: 39.97 | H31: 39.43 | I31: 39.74 | J31: 31.35 | K31: 30.97 | L31: 44.02 | M31: 43.63
A32: Chemicals | B32: 20.54 | C32: 20.24 | D32: 32.63 | E32: 31.48 | F32: 27.4 | G32: 26.8 | H32: 6.92 | I32: 6.74 | J32: 35.62 | K32: 34.58 | L32: 15.85 | M32: 15.14
A33: Custom services ² | B33: 6.02 | C33: 6.19 | D33: 22.94 | E33: 23.49 | F33: 17.71 | G33: 18.21 | H33: 10.36 | I33: 10.4 | J33: 12.68 | K33: 13.1 | L33: 13.7 | M33: 14.33
A34: Fuel, lube, and electricity | B34: 13.14 | C34: 13.25 | D34: 27.19 | E34: 26.96 | F34: 8.95 | G34: 8.94 | H34: 17.62 | I34: 17.73 | J34: 13.62 | K34: 13.79 | L34: 10.52 | M34: 10.55
A35: Repairs | B35: 28.56 | C35: 30.71 | D35: 35.56 | E35: 37.96 | F35: 26.28 | G35: 28.13 | H35: 27.19 | I35: 29.1 | J35: 29.18 | K35: 31.43 | L35: 25.73 | M35: 27.51
A36: Purchased irrigation water | B36: 2.51 | C36: 2.6 | D36: 0.28 | E36: 0.28 | F36: 0.16 | G36: 0.16 | H36: 2.18 | I36: 2.24 | J36: 0.01 | K36: 0.01 | L36: 0.79 | M36: 0.8
A37: Interest on operating capital | B37: 0.29 | C37: 0.04 | D37: 0.69 | E37: 0.1 | F37: 0.28 | G37: 0.04 | H37: 0.26 | I37: 0.04 | J37: 0.38 | K37: 0.06 | L37: 0.26 | M37: 0.04
A38: Total, operating costs | B38: 138.1 | C38: 140.17 | D38: 328.06 | E38: 328.26 | F38: 133.94 | G38: 135.48 | H38: 122.22 | I38: 124.22 | J38: 182.5 | K38: 183.4 | L38: 125.4 | M38: 126.51
A39: Allocated overhead
A40: Hired labor | B40: 4.23 | C40: 4.55 | D40: 5.33 | E40: 5.64 | F40: 4.26 | G40: 4.43 | H40: 2.43 | I40: 2.66 | J40: 5.06 | K40: 5.37 | L40: 4.23 | M40: 4.43
A41: Opportunity cost of unpaid labor | B41: 16.54 | C41: 17.4 | D41: 31.01 | E41: 32.34 | F41: 16.77 | G41: 17.79 | H41: 59.61 | I41: 63.99 | J41: 17.82 | K41: 18.77 | L41: 17.77 | M41: 18.9
A42: Capital recovery of machinery and equipment | B42: 106.27 | C42: 114.19 | D42: 126.06 | E42: 134.64 | F42: 102.38 | G42: 109.6 | H42: 109.33 | I42: 116.79 | J42: 109.82 | K42: 118.23 | L42: 97.06 | M42: 103.33
A43: Opportunity cost of land | B43: 74.56 | C43: 78.31 | D43: 161.86 | E43: 163.41 | F43: 55.77 | G43: 57.08 | H43: 100.81 | I43: 100.78 | J43: 151.46 | K43: 154.97 | L43: 60.04 | M43: 62.1
A44: Taxes and insurance | B44: 11.85 | C44: 12.13 | D44: 13.22 | E44: 13.53 | F44: 10.09 | G44: 10.38 | H44: 6.56 | I44: 7.2 | J44: 12.91 | K44: 13.25 | L44: 6.93 | M44: 7
A45: General farm overhead | B45: 19.1 | C45: 20.31 | D45: 19.62 | E45: 20.91 | F45: 14.27 | G45: 15.3 | H45: 13.93 | I45: 14.84 | J45: 18.69 | K45: 19.97 | L45: 9.45 | M45: 9.99
A46: Total, allocated overhead | B46: 232.55 | C46: 246.89 | D46: 357.1 | E46: 370.47 | F46: 203.54 | G46: 214.59 | H46: 292.67 | I46: 306.26 | J46: 315.76 | K46: 330.56 | L46: 195.48 | M46: 205.75
A47: Costs listed
A48: Total, costs listed | B48: =B46+B38 -> 370.65 | C48: =C46+C38 -> 387.06 | D48: =D38+D46 -> 685.16 | E48: =E38+E46 -> 698.73 | F48: =F46+F38 -> 337.48 | G48: =G46+G38 -> 350.07 | H48: =H46+H38 -> 414.89 | I48: =I46+I38 -> 430.48 | J48: =J38+J46 -> 498.26 | K48: =K38+K46 -> 513.96 | L48: =L46+L38 -> 320.88 | M48: =M46+M38 -> 332.26
A49: Net value
A50: Value of production less total costs listed | B50: =B28-B48 -> -43.07 | C50: =C28-C48 -> -121.98 | D50: =D28-D38-D46 -> -40.45 | E50: =E28-E38-E46 -> 230.97 | F50: =F28-F48 -> -8.5 | G50: =G28-G48 -> 53.7 | H50: =H28-H48 -> -144.95 | I50: =I28-I48 -> -111.81 | J50: =J28-J38-J46 -> 25.91 | K50: =K28-K38-K46 -> 136.73 | L50: =L28-L48 -> -77.48 | M50: =M28-M48 -> -43.46
A51: Value of production less operating costs | B51: =B28-B38 -> 189.48 | C51: =C28-C38 -> 124.91 | D51: =D28-D38 -> 316.65 | E51: =E28-E38 -> 601.44 | F51: =F28-F38 -> 195.04 | G51: =G28-G38 -> 268.29 | H51: =H28-H38 -> 147.72 | I51: =I28-I38 -> 194.45 | J51: =J28-J38 -> 341.67 | K51: 467.29 | L51: =L28-L38 -> 118 | M51: 162.29
A52: Value of production less operating costs, hired labor, OC unpaid labor, capital recovery | B52: =B28-B38-B40-B41-B42 -> 62.44 | C52: -11.23 | D52: 154.25 | E52: 428.82 | F52: 71.63 | G52: 136.47 | H52: -23.65 | I52: 11.01 | J52: 208.97 | K52: =K28-K38-K40-K41-K42 -> 324.92 | L52: =L28-L38-L40-L41-L42 -> -1.06 | M52: 35.63
A53: Supporting information
A54: Yield (bushels per planted acre) | B54: 70 | C54: 49 | D54: 178 | E54: 184 | F54: 74 | G54: 72 | H54: 70 | I54: 64 | J54: 54 | K54: 54 | L54: 52 | M54: 42
A55: Price (dollars per bushel at harvest) | B55: 4.5 | C55: 5.06 | D55: 3.61 | E55: 5.04 | F55: 4.36 | G55: 5.49 | H55: 2.76 | I55: 3.67 | J55: 9.67 | K55: 11.98 | L55: 4.61 | M55: 6.67
A56: Enterprise size (planted acres) | B56: 282 | C56: 282 | D56: 278 | E56: 278 | F56: 365 | G56: 365 | H56: 26 | I56: 26 | J56: 314 | K56: 314 | L56: 562 | M56: 562
A57: Production practices
A58: Winter wheat (percent of acres) | L58: 66 | M58: 69
A59: Spring wheat (percent of acres) | L59: 28 | M59: 26
A60: Durum wheat (percent of acres) | L60: 6 | M60: 6
A61: Dryland (percent of acres) | B61: 84 | C61: 84 | D61: 88 | E61: 89 | F61: 97 | G61: 97 | H61: 99 | I61: 99 | J61: 90 | K61: 90 | L61: 95 | M61: 95
A62: Irrigated (percent of acres) | B62: 16 | C62: 16 | D62: 12 | E62: 11 | F62: 3 | G62: 3 | H62: 1 | I62: 1 | J62: 10 | K62: 10 | L62: 5 | M62: 5
A63: 1 USDA Economic Research Service. (May 2, 2022). Commodity Costs and Returns: Recent Costs and Returns. Retrieved on June 17, 2022 from https://www.ers.usda.gov/data-products/commodity-costs-and-returns/

Sheet Lists
B1: LISTS
A3: ABOUT THIS TAB:
A4: The Lists tab contains lists of items used by Excel's Data Validation function. Items contained in each list below are available for selection from drop down menus on various tabs.
B7: Types of Tillage
B8: Conventional
B9: No-Till
B10: Reduced Till
B11: Strip-Till
B13: Crops
B14: Barley
B15: Corn Silage
B16: Corn Grain
B17: Hay
B18: Grain Sorghum (milo)
B19: Oats
B20: Soybeans
B21: Wheat
